Workbook

Sheet Pres & Prop Rev (hidden)
J2: TRANSPORT
J3: SCH 148 - WSU/
A4: WORK PAPER | D4: GEN SERVICE | E4: LRG GEN SVC | F4: EX LRG GEN SVC | G4: INTERRUPTIBLE | H4: TRANSPORT | I4: TRANSPORT | J4: BF GOODRICH
A5: REFERENCE | C5: TOTAL | D5: SCHEDULE 101 | E5: SCH. 111&112 | F5: SCH. 121&122 | G5: SCH. 131&132 | H5: SCHEDULE 146 | I5: SCHEDULE 148 | J5: ANN. MINIMUM | Q5: Print Header for all printed pages on this worksheet:
B6: PRESENT BILL DETERMINANTS | M6: Calculate all revenue exhibits using ____ rates: | Q6: ="AVISTA UTILITIES WASHINGTON GAS PRO FORMA REVENUE UNDER PRESENT AND PROPOSED "&O9&" RATES 12 MONTHS ENDED JUNE 30, 2013" -> AVISTA UTILITIES WASHINGTON GAS PRO FORMA REVENUE UNDER PRESENT AND PROPOSED BASE TARIFF RATES 12 MONTHS ENDED JUNE 30, 2013
B7: THERMS | L7: 1) | M7: BASE TARIFF
A8: PDE-G-8 | B8: BLOCK 1 | D8: ='Bill Determ'!E7 -> 74519037.37 | E8: ='Bill Determ'!B12 -> 5632648.155 | F8: ='Bill Determ'!B21 -> 177068.4321 | G8: ='Bill Determ'!B25 -> 240000 | H8: ='Bill Determ'!B29 -> 8309188.101 | I8: ='Bill Determ'!B35 -> 20651785.81 | J8: ='Bill Determ'!B41 -> 9870960.788 | M8: or | O8: 1
A9: PDE-G-8 | B9: BLOCK 2 | D9: ='Bill Determ'!F7 -> 42492169.63 | E9: ='Bill Determ'!C12 -> 14800996.82 | F9: ='Bill Determ'!C21 -> 176745.5418 | G9: ='Bill Determ'!C25 -> 360000 | H9: ='Bill Determ'!C29 -> 7562640.75 | I9: ='Bill Determ'!B36 -> 7028636.3 | L9: 2) | M9: BILLING | O9: =CHOOSE(Base1_Billing2,M7,M9) -> BASE TARIFF
A10: PDE-G-8 | B10: BLOCK 3 | E10: ='Bill Determ'!D12 -> 25823248.03 | F10: ='Bill Determ'!D21 -> 2926400.732 | G10: ='Bill Determ'!D25 -> 449337.6777 | H10: ='Bill Determ'!D29 -> 11926882.25 | I10: ='Bill Determ'!B37 -> 1730058.151 | O10: =CHOOSE(Base1_Billing2,"Base","Billing") -> Base
A11: PDE-G-8 | B11: BLOCK 4 | F11: ='Bill Determ'!E21 -> 1786297.02 | G11: ='Bill Determ'!E25 -> 238882.3223 | H11: ='Bill Determ'!E29 -> 2839692.666 | I11: ='Bill Determ'!B38 -> 6121047.949
A12: PDE-G-8 | B12: BLOCK 5 | F12: ='Bill Determ'!F21 -> 874046.2739 | H12: ='Bill Determ'!F29 -> 385474.2343 | I12: ='Bill Determ'!B32 -> 739726.9982
B14: SUBTOTAL | C14: =SUM(D14:J14) -> 247662972 | D14: =SUM(D8:D12) -> 117011207 | E14: 46256893 | F14: 5940558 | G14: 1288220 | H14: =SUM(H8:H12) -> 31023878 | I14: =SUM(I8:I12) -> 36271255.21 | J14: 9870960.788
B15: LOAD ADJUSTMENT
B17: SUBTOTAL | C17: =SUM(D17:J17) -> 247662972 | D17: =D14+D15 -> 117011207 | E17: 46256893 | F17: 5940558 | G17: 1288220 | H17: =H14+H15 -> 31023878 | I17: 36271255.21 | J17: 9870960.788
A18: PDE-G-8 | B18: ADJUSTMENT TO ACTUAL | C18: =SUM(D18:J18) -> 0 | D18: ='Bill Determ'!G9 -> 0 | E18: ='Bill Determ'!E17 -> 0
B20: TOTAL BEFORE ADJUSTMENT | C20: =SUM(D20:J20) -> 247662972 | D20: =D17+D18 -> 117011207 | E20: 46256893 | F20: 5940558 | G20: 1288220 | H20: =H17+I18 -> 31023878 | I20: =I17+I18 -> 36271255.21 | J20: 9870960.788
A21: PDE-G-3 | B21: WEATHER & UNBILLED REV. ADJ. | C21: =SUM(D21:J21) -> 5337877 | D21: =D134+D137 -> 3806706 | E21: =E134+E137 -> 1453854 | F21: 77317 | G21: 0 | H21: =H134+H137 -> 0 | I21: 0 | J21: 0
B23: TOTAL PROFORMA THERMS | C23: =IF(ROUND(SUM(C20:C21),3)<>ROUND(SUM(D23:J23),3),#VALUE!,SUM(D23:J23)) -> 253000849 | D23: =SUM(D20:D21) -> 120817913 | E23: 47710747 | F23: 6017875 | G23: 1288220 | H23: =SUM(H20:H21) -> 31023878 | I23: 36271255.21 | J23: 9870960.788
A25: PDE-G-8 | B25: TOTAL BILLS | D25: ='Bill Determ'!C7 -> 1802235 | G25: ='Bill Determ'!G25 -> 24 | H25: ='Bill Determ'!H29 -> 501 | I25: ='Bill Determ'!C39 -> 48 | J25: ='Bill Determ'!C41 -> 12
A26: PDE-G-8 | B26: TOTAL MINIMUM BILLS | E26: ='Bill Determ'!F16 -> 30276 | F26: ='Bill Determ'!H21 -> 329
B29: PROPOSED BILL DETERMINANTS
B30: THERMS
B31: BLOCK 1 | D31: ='Bill Determ'!E7 -> 74519037.37 | E31: =E8 -> 5632648.155 | F31: 177068.4321 | G31: 240000 | H31: 8309188.101 | I31: 20651785.81 | J31: 9870960.788
B32: BLOCK 2 | D32: ='Bill Determ'!F7 -> 42492169.63 | E32: =E9 -> 14800996.82 | F32: 176745.5418 | G32: 360000 | H32: 7562640.75 | I32: 7028636.3 | J32: 0
B33: BLOCK 3 | D33: =D10 -> 0 | E33: =E10 -> 25823248.03 | F33: 2926400.732 | G33: 449337.6777 | H33: 11926882.25 | I33: 1730058.151 | J33: 0
B34: BLOCK 4 | D34: =D11 -> 0 | E34: =E11 -> 0 | F34: 1786297.02 | G34: 238882.3223 | H34: 2839692.666 | I34: 6121047.949 | J34: 0
B35: BLOCK 5 | D35: =D12 -> 0 | E35: =E12 -> 0 | F35: 874046.2739 | G35: 0 | H35: 385474.2343 | I35: 739726.9982 | J35: 0
B37: SUBTOTAL | C37: =SUM(D37:J37) -> 247662972 | D37: =SUM(D31:D35) -> 117011207 | E37: 46256893 | F37: 5940558 | G37: 1288220 | H37: =SUM(H31:H35) -> 31023878 | I37: =SUM(I31:I35) -> 36271255.21 | J37: 9870960.788
B38: NET SHIFTING ADJUSTMENT | C38: =SUM(D38:J38) -> 0 | D38: =D15 -> 0 | E38: 0 | F38: 0 | G38: 0 | H38: =H15 -> 0 | I38: 0 | J38: 0
B40: SUBTOTAL | C40: =SUM(D40:J40) -> 247662972 | D40: =D37+D38 -> 117011207 | E40: 46256893 | F40: 5940558 | G40: 1288220 | H40: =H37+H38 -> 31023878 | I40: 36271255.21 | J40: 9870960.788
B41: ADJUSTMENT TO ACTUAL | C41: =SUM(D41:J41) -> 0 | D41: =D18 -> 0 | E41: 0 | F41: 0 | G41: 0 | H41: 0 | I41: 0 | J41: 0
B43: TOTAL BEFORE ADJUSTMENT | C43: =SUM(D43:J43) -> 247662972 | D43: =D40+D41 -> 117011207 | E43: 46256893 | F43: 5940558 | G43: 1288220 | H43: =H40+H41 -> 31023878 | I43: =I40+I41 -> 36271255.21 | J43: 9870960.788
B44: WEATHER & UNBILLED REV. ADJ. | C44: =SUM(D44:J44) -> 5337877 | D44: =D21 -> 3806706 | E44: 1453854 | F44: 77317 | G44: 0 | H44: =H21 -> 0 | I44: 0 | J44: 0
B46: TOTAL PROFORMA THERMS | C46: =IF(ROUND(SUM(C43:C44),3)<>ROUND(SUM(D46:J46),3),#VALUE!,SUM(D46:J46)) -> 253000849 | D46: =D43+D44 -> 120817913 | E46: 47710747 | F46: 6017875 | G46: 1288220 | H46: =H43+H44 -> 31023878 | I46: 36271255.21 | J46: 9870960.788
B48: TOTAL BILLS | D48: =D25 -> 1802235 | E48: 0 | F48: 0 | G48: =G25 -> 24 | H48: =H25 -> 501 | I48: =I25 -> 48 | J48: =J25 -> 12
B49: TOTAL MINIMUM BILLS | D49: 0 | E49: 30276 | F49: 329
E50: 2 | F50: 3 | G50: 4 | H50: 5 | I50: 6 | J50: 7
J51: TRANSPORT
J52: SCH 148 - WSU/
A53: WORK PAPER | D53: GEN SERVICE | E53: LRG GEN SVC | F53: EX LRG GEN SVC | G53: INTERRUPTIBLE | H53: TRANSPORT | I53: TRANSPORT | J53: BF GOODRICH | M53: ="selected in cell "&CELL("address",Base1_Billing2)&":" -> selected in cell $O$8:
A54: REFERENCE | C54: TOTAL | D54: SCHEDULE 101 | E54: SCHEDULE 111 | F54: SCHEDULE 121 | G54: SCHEDULE 131 | H54: SCHEDULE 146 | I54: SCHEDULE 148 | J54: ANN. MINIMUM | M54: =O10 -> Base
B55: PRESENT RATES | I55: -1 | J55: -2 | M55: ="Rates_"&$M$54&"_Present" -> Rates_Base_Present | O55: - range name where Present Rates table can be found
A56: PDE-G-13/14 | B56: BASIC CHARGE | D56: =INDEX(INDIRECT($M$55),$K56,D$50) -> 8 | E56: 0 | F56: 0 | G56: 0 | H56: 400 | I56: 200 | J56: 26332 | K56: 1 | M56: ="Rates_"&$M$54&"_Proposed" -> Rates_Base_Proposed | O56: - range name where Proposed Rates table can be found
A57: PDE-G-13/14 | B57: MONTHLY MINIMUM | D57: 0 | E57: 161.21 | F57: 409.92 | G57: 0 | H57: 0 | I57: 0 | J57: 0 | K57: 2
A59: PDE-G-13/14 | B59: BLOCK 1 PER THERM | D59: =INDEX(INDIRECT($M$55),$K59,D$50) -> 78.022 | E59: =INDEX(INDIRECT($M$55),$K59,E$50) -> 8.061 | F59: 6.062 | G59: 63.929 | H59: 8.289 | I59: 2.8 | J59: 1 | K59: 3
A60: PDE-G-13/14 | B60: BLOCK 2 PER THERM | D60: 88.13 | E60: 76.179 | F60: 75.695 | G60: 59.425 | H60: 7.38 | I60: 4.5 | J60: 0 | K60: 4
A61: PDE-G-13/14 | B61: BLOCK 3 PER THERM | D61: 0 | E61: 68.857 | F61: 68.207 | G61: 58.32 | H61: 6.659 | I61: 3.168 | J61: 0 | K61: 5
A62: PDE-G-13/14 | B62: BLOCK 4 PER THERM | D62: 0 | E62: 0 | F62: 63.505 | G62: 57.954 | H62: 6.162 | I62: 2.5 | J62: 0 | K62: 6
A63: PDE-G-13/14 | B63: BLOCK 5 PER THERM | D63: 0 | E63: 0 | F63: 59.721 | G63: 0 | H63: 4.642 | I63: 2.091 | J63: 0 | K63: 7
B65: ADJUST TO ACTUAL PER THERM | D65: =(D118-D106-D107)/D17*100 -> 81.69268131 | E65: =(E118-E106-E107)/E17*100 -> 63.79679031 | F65: =(F118-F106-F107)/F17*100 -> 63.91501741 | G65: =(G118-G106-G107)/G17*100 -> 59.60590505
B73: PROPOSED RATES
B74: BASIC CHARGE | D74: =INDEX(INDIRECT($M$56),$K74,D$50) -> 8.92 | E74: 0 | F74: 0 | G74: 0 | H74: 500 | I74: 200 | J74: 26332 | K74: 1
B75: MONTHLY MINIMUM | D75: 0 | E75: 78.5 | F75: 193.48 | G75: 0 | H75: 0 | I75: 0 | J75: 0 | K75: 2
B77: BLOCK 1 PER THERM | D77: =INDEX(INDIRECT($M$56),$K77,D$50) -> 78.022 | E77: =INDEX(INDIRECT($M$56),$K77,E$50) -> 49.535 | F77: 47.449 | G77: 61.418 | H77: 8.795 | I77: 2.8 | J77: 1 | K77: 3
B78: BLOCK 2 PER THERM | D78: =INDEX(INDIRECT($M$56),$K78,D$50) -> 88.13 | E78: 72.669 | F78: 71.115 | G78: 57.091 | H78: 7.886 | I78: 4.5 | J78: 0 | K78: 4
B79: BLOCK 3 PER THERM | D79: 0 | E79: 65.685 | F79: 64.08 | G79: 56.029 | H79: 7.165 | I79: 3.168 | J79: 0 | K79: 5
B80: BLOCK 4 PER THERM | D80: 0 | E80: 0 | F80: 59.663 | G80: 55.677 | H80: 6.668 | I80: 2.5 | J80: 0 | K80: 6
B81: BLOCK 5 PER THERM | D81: 0 | E81: 0 | F81: 59.721 | G81: 0 | H81: 5.148 | I81: 2.091 | J81: 0 | K81: 7
B83: ADJUST TO ACTUAL PER THERM | D83: =(D167-D155-D156)/D40*100 -> 81.69268131 | E83: =(E167-E155-E156)/E40*100 -> 65.95313073 | F83: =(F167-F155-F156)/F40*100 -> 61.8240736 | G83: =(G167-G155-G156)/G40*100 -> 57.2644983
B87: (1) Block 1 - Kaiser-Trentwood - workpaper PDE-G-19
B88: Block 2 - Lamb-Weston - workpaper PDE-G-21
B89: Block 3 - Mutual Materials - workpaper PDE-G-25
B90: Block 4 - Washington Potato - workpaper PDE-G-23
B91: Block 5 - Avista Electric generating facilities billed at 2.091 cents/therm (Sch. 148 floor)
B93: (2) Monthly minimum / rate per therm - workpaper PDE-G-27
B97: ="Note: Rates include Sch. 150 (Purch. Gas Cost Adj.)"&IF(Base1_Billing2=2," , Sch. 155 (Gas Rate Adj.), and Sch. 191 (Public Purp. Rider Adj.)","") -> Note: Rates include Sch. 150 (Purch. Gas Cost Adj.)
J100: TRANSPORT
J101: SCH 148 - WSU/
A102: WORK PAPER | D102: GEN SERVICE | E102: LRG GEN SVC | F102: EX LRG GEN SVC | G102: INTERRUPTIBLE | H102: TRANSPORT | I102: TRANSPORT | J102: BF GOODRICH
A103: REFERENCE | C103: TOTAL | D103: SCHEDULE 101 | E103: SCHEDULE 111 | F103: SCHEDULE 121 | G103: SCHEDULE 131 | H103: SCHEDULE 146 | I103: SCHEDULE 148 | J103: ANN. MINIMUM
B104: PRESENT REVENUE
B105: =UPPER(CHOOSE(Base1_Billing2,$O$9,$O$10))&" REVENUE" -> BASE TARIFF REVENUE
B106: BASIC CHARGE | C106: =SUM(D106:J106) -> 14943864 | D106: =D25*D56 -> 14417880 | E106: 0 | F106: 0 | G106: 0 | H106: =H25*H56 -> 200400 | I106: =I25*I56 -> 9600 | J106: =J25*J56 -> 315984
B107: MONTHLY MINIMUM | C107: 5015657.64 | D107: =D26*D57 -> 0 | E107: =E26*E57 -> 4880793.96 | F107: =F26*F57 -> 134863.68 | G107: 0 | H107: 0 | I107: 0 | J107: 0
B108: BLOCK 1 | C108: 60125162.8 | D108: =ROUND(D8*D59/100,2) -> 58141243.33 | E108: =ROUND(E8*E59/100,2) -> 454047.77 | F108: 10733.89 | G108: 153429.6 | H108: 688748.6 | I108: =ROUND(I8*I59/100,2) -> 578250 | J108: =ROUND(J8*J59/100,2) -> 98709.61
B109: BLOCK 2 | C109: 49945729.52 | D109: 37448349.1 | E109: 11275251.36 | F109: 133787.54 | G109: 213930 | H109: 558122.89 | I109: 316288.63 | J109: 0
B110: BLOCK 3 | C110: 20888197.11 | D110: 0 | E110: 17781113.9 | F110: 1996010.15 | G110: 262053.73 | H110: 794211.09 | I110: 54808.24 | J110: 0
B111: BLOCK 4 | C111: 1600837.84 | D111: =ROUND(D11*D62/100,2) -> 0 | E111: 0 | F111: 1134387.92 | G111: 138441.86 | H111: 174981.86 | I111: 153026.2 | J111: 0
B112: BLOCK 5 | C112: 555350.58 | D112: =ROUND(D12*D63/100,2) -> 0 | E112: 0 | F112: 521989.18 | G112: 0 | H112: 17893.71 | I112: 15467.69 | J112: 0
B113: ANNUAL MINIMUM | C113: 0 | J113: =BFG!F11 -> 0
B115: SUBTOTAL | C115: =IF(ROUND(SUM(D115:J115),3)<>ROUND(SUM(C106:C113),3),#VALUE!,SUM(D115:J115)) -> 153074799.5 | D115: =SUM(D106:D113) -> 110007472.4 | E115: 34391206.99 | F115: 3931772.36 | G115: 767855.19 | H115: 2434358.15 | I115: 1127440.76 | J115: =SUM(J106:J113) -> 414693.61
B116: NET SHIFTING ADJUSTMENT
B118: SUBTOTAL | C118: =SUM(D118:J118) -> 153074799.5 | D118: =D115+D116 -> 110007472.4 | E118: 34391206.99 | F118: 3931772.36 | G118: 767855.19 | H118: =H115+H116 -> 2434358.15 | I118: 1127440.76 | J118: 414693.61
B119: ADJUST TO ACTUAL | C119: =SUM(D119:J119) -> 0 | D119: =ROUND(D18*D65/100,2) -> 0 | E119: =ROUND(E18*E65/100,2) -> 0 | F119: =ROUND(F18*F65/100,2) -> 0 | G119: =ROUND(G18*G65/100,2) -> 0 | H119: 0 | I119: 0 | J119: 0
B121: ="TOTAL "&UPPER(CHOOSE(Base1_Billing2,$O$9,$O$10))&" REVENUE" -> TOTAL BASE TARIFF REVENUE | C121: =IF(ROUND(C118+C119,3)<>ROUND(SUM(D121:J121),3),#VALUE!,SUM(D121:J121)) -> 153074799.5 | D121: =D118+D119 -> 110007472.4 | E121: 34391206.99 | F121: 3931772.36 | G121: 767855.19 | H121: =H118+H119 -> 2434358.15 | I121: 1127440.76 | J121: 414693.61
B124: ADJUSTMENT REVENUE
B125: UNBILLED REVENUE ADJUSTMENT
A126: PDE-G-15 | B126: UNBILLED LOAD THERMS | C126: =SUM(D126:J126) -> 0 | D126: 0 | E126: 0 | F126: 0
A127: PDE-G-2/5/6 | B127: UNBILLED LOAD RATE | D127: =D65 -> 81.69268131 | E127: =E65 -> 63.79679031 | F127: =F65 -> 63.91501741
B128: UNBILLED LOAD REVENUE | C128: =SUM(D128:J128) -> 0 | D128: =ROUND(D126*D127/100,2) -> 0 | E128: =ROUND(E126*E127/100,2) -> 0 | F128: =ROUND(F126*F127/100,2) -> 0
A130: PDE-G-14 | B130: WEATHER-SENSITIVE THERMS | C130: =SUM(D130:J130) -> 0 | D130: 0 | E130: 0
A131: PDE-G-2/5 | B131: WEATHER-SENSITIVE RATE | D131: =D59 -> 78.022 | E131: =I230 -> 69.88882546
B132: WEATHER-SENSITIVE REVENUE | C132: =SUM(D132:J132) -> 0 | D132: =ROUND(D130*D131/100,2) -> 0 | E132: =ROUND(E130*E131/100,2) -> 0
B134: TOTAL UNBILLED THERM ADJ | C134: =IF(ROUND(SUM(D134:J134),3)<>ROUND(C126+C130,3),#VALUE!,SUM(D134:J134)) -> 0 | D134: =D126+D130 -> 0 | E134: =E126+E130 -> 0 | F134: =F126+F130 -> 0
B135: TOTAL UNBILLED REVENUE ADJ | C135: =IF(ROUND(SUM(D135:J135),3)<>ROUND(C128+C132,3),#VALUE!,SUM(D135:J135)) -> 0 | D135: =D128+D132 -> 0 | E135: =E128+E132 -> 0 | F135: =F128+F132 -> 0
B136: WEATHER NORMALIZATION ADJ
A137: PDE-G-17 | B137: WEATHER-SENSITIVE THERMS | C137: =SUM(D137:J137) -> 5337877 | D137: 3806706 | E137: 1453854 | F137: 77317
A138: PDE-G-2/5/6 | B138: WEATHER-SENSITIVE RATE | D138: =I208 -> 82.70179123 | E138: =I230 -> 69.88882546 | F138: =I258 -> 61.50856557
B139: WEATHER-SENSITIVE REVENUE | C139: =SUM(D139:J139) -> 4211852.11 | D139: =ROUND(D137*D138/100,2) -> 3148214.05 | E139: =ROUND(E137*E138/100,2) -> 1016081.48 | F139: =ROUND(F137*F138/100,2) -> 47556.58
B140: OTHER ADJUSTMENTS
B142: TOTAL ADJUSTMENT REVENUE | C142: =IF(ROUND(SUM(D142:J142),3)<>ROUND(C135+C139+C140,3),#VALUE!,SUM(D142:J142)) -> 4211852.11 | D142: =D135+D139+D140 -> 3148214.05 | E142: =E135+E139+E140 -> 1016081.48 | F142: =F135+F139+F140 -> 47556.58 | G142: 0 | H142: 0 | I142: 0 | J142: 0
B143: =B121 -> TOTAL BASE TARIFF REVENUE | C143: =SUM(D143:J143) -> 153074799.5 | D143: =D121 -> 110007472.4 | E143: 34391206.99 | F143: 3931772.36 | G143: 767855.19 | H143: =H121 -> 2434358.15 | I143: 1127440.76 | J143: 414693.61
B145: TOTAL PRESENT REVENUE | C145: =IF(ROUND(SUM(D145:J145),3)<>ROUND(C142+C143,3),#VALUE!,SUM(D145:J145)) -> 157286651.6 | D145: =D142+D143 -> 113155686.5 | E145: 35407288.47 | F145: =F142+F143 -> 3979328.94 | G145: 767855.19 | H145: =H142+H143 -> 2434358.15 | I145: 1127440.76 | J145: 414693.61
J149: TRANSPORT
J150: SCH 148 - WSU/
A151: WORK PAPER | D151: GEN SERVICE | E151: LRG GEN SVC | F151: EX LRG GEN SVC | G151: INTERRUPTIBLE | H151: TRANSPORT | I151: TRANSPORT | J151: BF GOODRICH
A152: REFERENCE | C152: TOTAL | D152: SCHEDULE 101 | E152: SCHEDULE 111 | F152: SCHEDULE 121 | G152: SCHEDULE 131 | H152: SCHEDULE 146 | I152: SCHEDULE 148 | J152: ANN. MINIMUM
B153: PROPOSED REVENUE
B154: =UPPER(CHOOSE(Base1_Billing2,$O$9,$O$10))&" REVENUE" -> BASE TARIFF REVENUE
B155: BASIC CHARGE | C155: =SUM(D155:J155) -> 16652020.2 | D155: =D48*D74 -> 16075936.2 | E155: =E48*E74 -> 0 | F155: 0 | G155: 0 | H155: 250500 | I155: =I48*I74 -> 9600 | J155: 315984
B156: MONTHLY MINIMUM | C156: =SUM(D156:J156) -> 2440320.92 | D156: =D49*D75 -> 0 | E156: 2376666 | F156: =F49*F75 -> 63654.92 | G156: 0 | H156: 0 | I156: 0 | J156: 0
B157: BLOCK 1 | C157: 62570548.69 | D157: =ROUND(D31*D77/100,2) -> 58141243.33 | E157: =ROUND(E31*E77/100,2) -> 2790132.26 | F157: 84017.2 | G157: 147403.2 | H157: 730793.09 | I157: 578250 | J157: 98709.61
B158: BLOCK 2 | C158: 49447984.15 | D158: =ROUND(D32*D78/100,2) -> 37448349.1 | E158: 10755736.38 | F158: 125692.59 | G158: 205527.6 | H158: 596389.85 | I158: 316288.63 | J158: 0
B159: BLOCK 3 | C159: 19998366.82 | D159: 0 | E159: 16962000.47 | F159: 1875237.59 | G159: 251759.41 | H159: 854561.11 | I159: 54808.24 | J159: 0
B160: BLOCK 4 | C160: 1541137.81 | D160: 0 | E160: 0 | F160: 1065758.39 | G160: 133002.51 | H160: 189350.71 | I160: 153026.2 | J160: 0
B161: BLOCK 5 | C161: 557301.08 | D161: 0 | E161: 0 | F161: 521989.18 | G161: 0 | H161: 19844.21 | I161: 15467.69 | J161: 0
B162: ANNUAL MINIMUM | C162: 0 | J162: =BFG!F11 -> 0
B164: SUBTOTAL | C164: =IF(ROUND(SUM(D164:J164),3)<>ROUND(SUM(C155:C162),3),#VALUE!,SUM(D164:J164)) -> 153207679.7 | D164: =SUM(D155:D163) -> 111665528.6 | E164: 32884535.11 | F164: 3736349.87 | G164: 737692.72 | H164: 2641438.97 | I164: 1127440.76 | J164: 414693.61
B165: NET SHIFTING ADJUSTMENT
B167: SUBTOTAL | C167: =SUM(D167:J167) -> 153207679.7 | D167: =D164+D165 -> 111665528.6 | E167: 32884535.11 | F167: 3736349.87 | G167: 737692.72 | H167: =H164+H165 -> 2641438.97 | I167: 1127440.76 | J167: 414693.61
B168: ADJUST TO ACTUAL | C168: =SUM(D168:J168) -> 0 | D168: =ROUND(D41*D83/100,2) -> 0 | E168: =ROUND(E41*E83/100,2) -> 0 | F168: 0 | G168: 0 | H168: 0 | I168: 0 | J168: 0
B170: ="TOTAL "&UPPER(CHOOSE(Base1_Billing2,$O$9,$O$10))&" REVENUE" -> TOTAL BASE TARIFF REVENUE | C170: =IF(ROUND(SUM(D170:J170),3)<>ROUND(C167+C168,3),#VALUE!,SUM(D170:J170)) -> 153207679.7 | D170: =D167+D168 -> 111665528.6 | E170: 32884535.11 | F170: 3736349.87 | G170: 737692.72 | H170: =H167+H168 -> 2641438.97 | I170: 1127440.76 | J170: 414693.61
B172: ADJUSTMENT REVENUE
B173: UNBILLED REVENUE ADJUSTMENT
B174: BASE LOAD THERMS | C174: =SUM(D174:J174) -> 0 | D174: =D126 -> 0 | E174: =E126 -> 0 | F174: =F126 -> 0
A175: PDE-G-2/5/6 | B175: BASE LOAD RATE | D175: =D83 -> 81.69268131 | E175: =E83 -> 65.95313073 | F175: =F83 -> 61.8240736
B176: BASE LOAD REVENUE | C176: =SUM(D176:J176) -> 0 | D176: =ROUND(D174*D175/100,2) -> 0 | E176: =ROUND(E174*E175/100,2) -> 0 | F176: =ROUND(F174*F175/100,2) -> 0
B178: WEATHER-SENSITIVE THERMS | C178: =SUM(D178:J178) -> 0 | D178: =D130 -> 0 | E178: =E130 -> 0 | F178: =F130 -> 0
A179: PDE-G-2/5 | B179: WEATHER-SENSITIVE RATE | D179: =D77 -> 78.022 | E179: =I240 -> 66.66919408 | F179: =F83 -> 61.8240736
B180: WEATHER-SENSITIVE REVENUE | C180: =SUM(D180:J180) -> 0 | D180: =ROUND(D178*D179/100,2) -> 0 | E180: =ROUND(E178*E179/100,2) -> 0 | F180: =ROUND(F178*F179/100,2) -> 0
B182: TOTAL UNBILLED THERM ADJ | C182: =C174+C178 -> 0 | D182: =D174+D178 -> 0 | E182: =E174+E178 -> 0 | F182: =F174+F178 -> 0
B183: TOTAL UNBILLED REVENUE ADJ | C183: =C176+C180 -> 0 | D183: =D176+D180 -> 0 | E183: =E176+E180 -> 0 | F183: =F176+F180 -> 0
B184: WEATHER NORMALIZATION ADJ
B185: WEATHER-SENSITIVE THERMS | C185: =SUM(D185:J185) -> 5337877 | D185: =D137 -> 3806706 | E185: =E137 -> 1453854 | F185: =F137 -> 77317
A186: PDE-G-2/5/6 | B186: WEATHER-SENSITIVE RATE | D186: =I217 -> 82.70179123 | E186: =I240 -> 66.66919408 | F186: =I270 -> 59.69360074
B187: WEATHER-SENSITIVE REVENUE | C187: =SUM(D187:J187) -> 4163640.09 | D187: =ROUND(D185*D186/100,2) -> 3148214.05 | E187: =ROUND(E185*E186/100,2) -> 969272.74 | F187: =ROUND(F185*F186/100,2) -> 46153.3
B188: OTHER ADJUSTMENTS
B190: TOTAL ADJUSTMENT REVENUE | C190: =SUM(D190:J190) -> 4163640.09 | D190: =D187+D183 -> 3148214.05 | E190: 969272.74 | F190: 46153.3 | G190: 0 | H190: =H187+H183 -> 0 | I190: 0 | J190: 0
B191: =B170 -> TOTAL BASE TARIFF REVENUE | C191: =SUM(D191:J191) -> 153207679.7 | D191: =D170 -> 111665528.6 | E191: 32884535.11 | F191: 3736349.87 | G191: 737692.72 | H191: =H170 -> 2641438.97 | I191: 1127440.76 | J191: 414693.61
B192: TOTAL PROPOSED REVENUE | C192: =SUM(D192:J192) -> 157371319.8 | D192: =D190+D191 -> 114813742.7 | E192: 33853807.85 | F192: 3782503.17 | G192: =G190+G191 -> 737692.72 | H192: =H190+H191 -> 2641438.97 | I192: 1127440.76 | J192: 414693.61
B193: TOTAL PRESENT REVENUE | C193: =SUM(D193:J193) -> 157286651.6 | D193: =D145 -> 113155686.5 | E193: 35407288.47 | F193: 3979328.94 | G193: 767855.19 | H193: =H145 -> 2434358.15 | I193: 1127440.76 | J193: 414693.61
B195: TOTAL INCREASED REVENUE | C195: =SUM(D195:J195) -> 84668.16 | D195: =D192-D193 -> 1658056.2 | E195: =E192-E193 -> -1553480.62 | F195: -196825.77 | G195: =G192-G193 -> -30162.47 | H195: =H192-H193 -> 207080.82 | I195: 0 | J195: 0
B196: PERCENT REVENUE INCREASE | C196: =C195/C193 -> 0.000538304803 | D196: =D195/D193 -> 0.01465287562 | E196: -0.04387460004 | F196: =F195/F193 -> -0.04946205075 | G196: -0.03928145618 | H196: 0.08506588071 | I196: 0 | J196: 0
A200: WORK PAPER | D200: TOTAL | E200: TOTAL | F200: BASE LOAD | G200: BASE LOAD | H200: WTHR-SENS. | I200: WTHR-SENS.
A201: REFERENCE | C201: RATES | D201: THERMS | E201: REVENUE | F201: THERMS(1) | G201: REVENUE | H201: THERMS | I201: REVENUE
B202: PRESENT BASELOAD AND WEATHER-SENSITIVE RATE
B203: SCHEDULE 101
B204: 0-70 THERMS | C204: =D59 -> 78.022 | D204: =D8 -> 74519037.37 | E204: =C204*D204/100 -> 58141243.33 | F204: =MIN(D204,F207) -> 25231290 | G204: =F204*C204/100 -> 19685957.08 | H204: =D204-F204 -> 49287747.37 | I204: =H204*C204/100 -> 38455286.25 | K204: =H204/H207 -> 0.5370210497
B205: OVER 70 THERMS | C205: =D60 -> 88.13 | D205: =D9 -> 42492169.63 | E205: =C205*D205/100 -> 37448349.1 | F205: =MIN(F207-F204,D205) -> 0 | G205: =F205*C205/100 -> 0 | H205: =D205-F205 -> 42492169.63 | I205: =H205*C205/100 -> 37448349.1 | K205: =H205/H207 -> 0.4629789503
B207: TOTAL | D207: =D204+D205 -> 117011207 | E207: =E204+E205 -> 95589592.43 | F207: =14*D25 -> 25231290 | G207: =G204+G205 -> 19685957.08 | H207: =H204+H205 -> 91779917 | I207: =I204+I205 -> 75903635.35
B208: AVERAGE RATE | E208: =E207/D207*100 -> 81.69268131 | G208: =G207/F207*100 -> 78.022 | I208: =I207/H207*100 -> 82.70179123
B211: PROPOSED BASELOAD AND WEATHER-SENSITIVE RATE
B212: SCHEDULE 101
B213: 0-70 THERMS | C213: =D77 -> 78.022 | D213: =D8 -> 74519037.37 | E213: =C213*D213/100 -> 58141243.33 | F213: =MIN(D213,F216) -> 25231290 | G213: =F213*C213/100 -> 19685957.08 | H213: =D213-F213 -> 49287747.37 | I213: =H213*C213/100 -> 38455286.25
B214: OVER 70 THERMS | C214: =D78 -> 88.13 | D214: =D9 -> 42492169.63 | E214: =C214*D214/100 -> 37448349.1 | F214: =MIN(F216-F213,D214) -> 0 | G214: =F214*C214/100 -> 0 | H214: =D214-F214 -> 42492169.63 | I214: =H214*C214/100 -> 37448349.1
B216: TOTAL | D216: =D213+D214 -> 117011207 | E216: =E213+E214 -> 95589592.43 | F216: =F207 -> 25231290 | G216: =G213+G214 -> 19685957.08 | H216: =H213+H214 -> 91779917 | I216: =I212+I213+I214 -> 75903635.35
B217: AVERAGE RATE | E217: =E216/D216*100 -> 81.69268131 | G217: =G216/F216*100 -> 78.022 | I217: =I216/H216*100 -> 82.70179123
B220: (1) Base load per bill for Schedule 101 is shown on workpaper PDE-G-18 multiplied by total billings from PDE-G-1, or
B221: ="14 X "&TEXT(D25,"#,##0")&" = "&TEXT(F207,"#,##0") -> 14 X 1,802,235 = 25,231,290
B223: PRESENT BASELOAD AND WEATHER-SENSITIVE RATE
B224: SCHEDULE 111
B225: 0-200 THERMS | C225: =E59 -> 8.061 | D225: =E8 -> 5632648.155 | E225: =C225*D225/100 -> 454047.7678 | F225: =MIN(D225,F229) -> 5632648.155 | G225: =F225*C225/100 -> 454047.7678 | H225: =D225-F225 -> 0 | I225: =H225*C225/100 -> 0
B226: 201-1,000 THERMS | C226: =E60 -> 76.179 | D226: =E9 -> 14800996.82 | E226: =C226*D226/100 -> 11275251.36 | F226: =MIN(F229-F225,D226) -> 10565011.85 | G226: =F226*C226/100 -> 8048320.374 | H226: =D226-F226 -> 4235984.97 | I226: =H226*C226/100 -> 3226930.99
B227: OVER 1,000 THERMS | C227: =E61 -> 68.857 | D227: =E10 -> 25823248.03 | E227: =C227*D227/100 -> 17781113.9 | F227: =MIN(F229-F225-F226,D227) -> 0 | G227: =F227*C227/100 -> 0 | H227: =D227-F227 -> 25823248.03 | I227: =H227*C227/100 -> 17781113.9
B229: TOTAL | D229: =D225+D226+D227 -> 46256893 | E229: =E225+E226+E227 -> 29510413.03 | F229: =535*E26 -> 16197660 | G229: =G225+G226+G227 -> 8502368.141 | H229: =H225+H226+H227 -> 30059233 | I229: =I225+I226+I227 -> 21008044.89
B230: AVERAGE RATE | E230: =E229/D229*100 -> 63.7967903 | G230: =G229/F229*100 -> 52.49133604 | I230: =I229/H229*100 -> 69.88882546
B233: PROPOSED BASELOAD AND WEATHER-SENSITIVE RATE
B234: SCHEDULE 111
B235: 0-200 THERMS | C235: =E77 -> 49.535 | D235: =E31 -> 5632648.155 | E235: =C235*D235/100 -> 2790132.263 | F235: =MIN(D235,F239) -> 5632648.155 | G235: =F235*C235/100 -> 2790132.263 | H235: =D235-F235 -> 0 | I235: =H235*C235/100 -> 0
B236: 201-1,000 THERMS | C236: =E78 -> 72.669 | D236: =E32 -> 14800996.82 | E236: =C236*D236/100 -> 10755736.38 | F236: =MIN(F239-F235,D236) -> 10565011.85 | G236: =F236*C236/100 -> 7677488.458 | H236: =D236-F236 -> 4235984.97 | I236: =H236*C236/100 -> 3078247.918
B237: OVER 1,000 THERMS | C237: =E79 -> 65.685 | D237: =E33 -> 25823248.03 | E237: =C237*D237/100 -> 16962000.47 | F237: =MIN(F239-F235-F236,D237) -> 0 | G237: =F237*C237/100 -> 0 | H237: =D237-F237 -> 25823248.03 | I237: =H237*C237/100 -> 16962000.47
B239: TOTAL | D239: =D235+D236+D237 -> 46256893 | E239: =E235+E236+E237 -> 30507869.11 | F239: =F229 -> 16197660 | G239: =G235+G236+G237 -> 10467620.72 | H239: =H235+H236+H237 -> 30059233 | I239: =I234+I235+I236+I237 -> 20040248.39
B240: AVERAGE RATE | E240: =E239/D239*100 -> 65.95313072 | G240: =G239/F239*100 -> 64.62427734 | I240: =I239/H239*100 -> 66.66919408
B243: (1) Base load per bill for Schedule 111 is shown on workpaper PDE-G-18 multiplied by total billings from PDE-G-1, or
B244: ="535 X "&TEXT(E26,"#,##0")&" = "&TEXT(F229,"#,##0") -> 535 X 30,276 = 16,197,660
A246: WORK PAPER | D246: TOTAL | E246: TOTAL | F246: BASE LOAD | G246: BASE LOAD | H246: WTHR-SENS. | I246: WTHR-SENS.
A247: REFERENCE | C247: RATES | D247: THERMS | E247: REVENUE | F247: THERMS(1) | G247: REVENUE | H247: THERMS | I247: REVENUE
B249: PRESENT BASELOAD AND WEATHER-SENSITIVE RATE
B250: SCHEDULE 121
B251: 0-500 THERMS | C251: =F59 -> 6.062 | D251: =F31 -> 177068.4321 | E251: =C251*D251/100 -> 10733.88836 | F251: =MIN(D251,F257) -> 177068.4321 | G251: =F251*C251/100 -> 10733.88836 | H251: =D251-F251 -> 0 | I251: =H251*C251/100 -> 0
B252: 501-1,000 THERMS | C252: =F60 -> 75.695 | D252: =F32 -> 176745.5418 | E252: =C252*D252/100 -> 133787.5378 | F252: =MIN(F257-F251,D252) -> 176745.5418 | G252: =F252*C252/100 -> 133787.5378 | H252: =D252-F252 -> 0 | I252: =H252*C252/100 -> 0
B253: 1001-10,000 THERMS | C253: 68.207 | D253: 2926400.732 | E253: =C253*D253/100 -> 1996010.147 | F253: =MIN(F257-F251-F252,D253) -> 2926400.732 | G253: =F253*C253/100 -> 1996010.147 | H253: =D253-F253 -> 0 | I253: =H253*C253/100 -> 0
B254: 10,001-25,000 THERMS | C254: 63.505 | D254: 1786297.02 | E254: =C254*D254/100 -> 1134387.923 | F254: =MIN(F257-F251-F252-F253,D254) -> 1003694.294 | G254: =F254*C254/100 -> 637396.0614 | H254: =D254-F254 -> 782602.7261 | I254: =H254*C254/100 -> 496991.8612
B255: OVER 25,000 THERMS | C255: 59.721 | D255: 874046.2739 | E255: 521989.1753 | F255: =MIN(F257-F251-F252-F253-F254,D255) -> 0 | G255: 0 | H255: 874046.2739 | I255: 521989.1753
B257: TOTAL | D257: =D251+D252+D253+D254+D255 -> 5940558 | E257: =E251+E252+E253+E254+E255 -> 3796908.671 | F257: =13021*F26 -> 4283909 | G257: =G251+G252+G253 -> 2140531.574 | H257: =H251+H252+H253+H254+H255 -> 1656649 | I257: =I251+I252+I253+I254+I255 -> 1018981.036
B258: AVERAGE RATE | E258: =E257/D257*100 -> 63.91501727 | G258: =G257/F257*100 -> 49.96678439 | I258: =I257/H257*100 -> 61.50856557
B261: PROPOSED BASELOAD AND WEATHER-SENSITIVE RATE
B262: SCHEDULE 121
B263: 0-500 THERMS | C263: =F77 -> 47.449 | D263: =F31 -> 177068.4321 | E263: =C263*D263/100 -> 84017.20036 | F263: =MIN(D263,F269) -> 177068.4321 | G263: =F263*C263/100 -> 84017.20036 | H263: =D263-F263 -> 0 | I263: =H263*C263/100 -> 0
B264: 501-1,000 THERMS | C264: =F78 -> 71.115 | D264: =F32 -> 176745.5418 | E264: =C264*D264/100 -> 125692.592 | F264: =MIN(F269-F263,D264) -> 176745.5418 | G264: =F264*C264/100 -> 125692.592 | H264: =D264-F264 -> 0 | I264: =H264*C264/100 -> 0
B265: 1001-10,000 THERMS | C265: 64.08 | D265: 2926400.732 | E265: 1875237.589 | F265: =MIN(F269-F263-F264,D265) -> 2926400.732 | G265: =F265*C265/100 -> 1875237.589 | H265: 0 | I265: 0
B266: 10,001-25,000 THERMS | C266: 59.663 | D266: 1786297.02 | E266: 1065758.391 | F266: =MIN(F269-F263-F264-F265,D266) -> 1003694.294 | G266: =F266*C266/100 -> 598834.1266 | H266: 782602.7261 | I266: 466924.2645
B267: OVER 25,000 THERMS | C267: 59.721 | D267: 874046.2739 | E267: 521989.1753 | F267: =MIN(F269-F263-F264-F265-F266,D267) -> 0 | G267: 0 | H267: 874046.2739 | I267: 521989.1753
B269: TOTAL | D269: =D263+D264+D265+D266+D267 -> 5940558 | E269: =E263+E264+E265+E266+E267 -> 3672694.948 | F269: =F257 -> 4283909 | G269: =G263+G264+G265+G266+G267 -> 2683781.508 | H269: =H263+H264+H265+H266+H267 -> 1656649 | I269: =I262+I263+I264+I265+I266+I267 -> 988913.4397
B270: AVERAGE RATE | E270: =E269/D269*100 -> 61.82407356 | G270: =G269/F269*100 -> 62.64795793 | I270: =I269/H269*100 -> 59.69360074
B272: (1) Base load per bill for Schedule 121 is shown on workpaper PDE-G-18 multiplied by total billings from PDE-G-1, or
B273: ="13,021 X "&TEXT(F26,"#,##0")&" = "&TEXT(F257,"#,##0") -> 13,021 X 329 = 4,283,909
D276: =D195/D48 -> 0.92 | E276: =E195/E49 -> -51.31062954 | F276: =F195/F49 -> -598.2546201 | G276: =G195/G48 -> -1256.769583 | H276: =H195/H48 -> 413.3349701
D277: =D46/D48 -> 67.03782415 | E277: =E46/E49 -> 1575.860318 | F277: =F46/F49 -> 18291.41337 | G277: =G46/G48 -> 53675.83333 | H277: =H46/H48 -> 61923.90818
D280: =D74-D56 -> 0.92
... 3 more rows

Sheet Exh1
A1: AVISTA UTILITIES | N1: This worksheet pulls data from 'Pres & Prop Rev' tab.
A2: WASHINGTON NATURAL GAS
A3: PROPOSED INCREASE BY SERVICE SCHEDULE
A4: 12 MONTHS ENDED JUNE 30, 2013
A5: (000s of Dollars)
D8: Base Tariff | F8: Base Tariff | G8: Base | H8: Total Billed | K8: Percent
D9: Revenue | E9: Proposed | F9: Revenue | G9: Tariff | H9: Revenue | I9: Sch. 191 | J9: Proposed | K9: Increase
A10: Line | B10: Type of | C10: Schedule | D10: Under Present | E10: General | F10: Under Proposed | G10: Percent | H10: at Present | I10: LIRAP/DSM | J10: General | K10: on Billed
A11: No. | B11: Service | C11: Number | D11: Rates(1) | E11: Increase | F11: Rates | G11: Increase | H11: Rates (2) | I11: Increase | J11: Increase | K11: Revenue
B12: (a) | C12: (b) | D12: (c) | E12: (d) | F12: (e) | G12: (f) | H12: (g) | I12: (h) | J12: (h) | K12: (i)
A14: 1 | B14: General Service | C14: 101 | D14: ='Pres & Prop Rev'!$D$145/1000+0.5 -> 113156.1865 | E14: ='Pres & Prop Rev'!$D$195/1000-1 -> 1657.0562 | F14: ='Pres & Prop Rev'!$D$192/1000 -> 114813.7427 | G14: =E14/D14 -> 0.01464397353 | H14: 117555.4093 | I14: 0 | J14: =E14+I14 -> 1657.0562 | K14: =(E14)/H14 -> 0.01409595875
A15: 2 | B15: Large General Service | C15: 111/112 | D15: ='Pres & Prop Rev'!$E$145/1000 -> 35407.28847 | E15: ='Pres & Prop Rev'!$E$195/1000 -> -1553.48062 | F15: ='Pres & Prop Rev'!$E$192/1000 -> 33853.80785 | G15: =E15/D15 -> -0.04387460004 | H15: 36976.23425 | I15: 0 | J15: =E15+I15 -> -1553.48062 | K15: =(E15)/H15 -> -0.04201294836
A16: 3 | B16: Large General Svc.-High Annual Load Factor | C16: 121/122 | D16: ='Pres & Prop Rev'!$F$145/1000 -> 3979.32894 | E16: ='Pres & Prop Rev'!$F$195/1000 -> -196.82577 | F16: ='Pres & Prop Rev'!$F$192/1000 -> 3782.50317 | G16: -0.04946205075 | H16: 4209.89366 | I16: 0 | J16: -196.82577 | K16: -0.0467531453
A17: 4 | B17: Interruptible Service | C17: 131/132 | D17: ='Pres & Prop Rev'!$G$145/1000 -> 767.85519 | E17: ='Pres & Prop Rev'!$G$195/1000 -> -30.16247 | F17: ='Pres & Prop Rev'!$G$192/1000 -> 737.69272 | G17: =E17/D17 -> -0.03928145618 | H17: 798.24431 | I17: 0 | J17: -30.16247 | K17: =(E17)/H17 -> -0.03778601316
A18: 5 | B18: Transportation Service | C18: 146 | D18: ='Pres & Prop Rev'!$H$145/1000 -> 2434.35815 | E18: ='Pres & Prop Rev'!$H$195/1000 -> 207.08082 | F18: ='Pres & Prop Rev'!$H$192/1000 -> 2641.43897 | G18: =E18/D18 -> 0.08506588071 | H18: 2435.5991 | I18: 0 | J18: 207.08082 | K18: =(E18)/H18 -> 0.08502253922
A19: 6 | B19: Special Contracts | C19: 148 | D19: =SUM('Pres & Prop Rev'!$I$145:$J$145)/1000 -> 1542.13437 | E19: =SUM('Pres & Prop Rev'!$I$195:$J$195)/1000 -> 0 | F19: =SUM('Pres & Prop Rev'!$I$192:$J$192)/1000 -> 1542.13437 | G19: 0 | H19: 1542.13437 | I19: 0 | J19: 0 | K19: 0
A20: 7 | B20: Total | D20: ='Pres & Prop Rev'!$C$145/1000+0.1 -> 157286.7516 | E20: ='Pres & Prop Rev'!$C$195/1000 -> 84.66816 | F20: ='Pres & Prop Rev'!$C$192/1000 -> 157371.3198 | G20: =E20/D20 -> 0.0005383044607 | H20: =SUM(H14:H19) -> 163517.515 | I20: =SUM(I14:I19) -> 0 | J20: =SUM(J14:J19)+1 -> 84.66816 | K20: 0.0005177926048
D21: =ROUND(D20-SUM(D14:D19),0) -> 0 | F21: =ROUND(F20-SUM(F14:F19),0) -> 0 | J21: =ROUND(J20-SUM(J14:J19),-1) -> 0 | K21: =ROUND(K20-SUM(K14:K19),0) -> 0
D23: =IF(Base1_Billing2=2,"Exhibit won't work until Base1_Billing2 range set to '1'","") -> 
A25: (1) Includes Purchase Adjustment Schedule 150; excludes all other rate adjustments.
A27: (2) Includes Schedule 150 (Purchase Gas Cost Adjustment), Schedule 155 (Gas Rate Adjustment),
A28: and Schedule 191 (Public Purpose Rider Adjustment).
D30: =SUM(ROUND(D14:D19,0)) -> 157286 | E30: =SUM(ROUND(E14:E19,0)) -> 84 | F30: =SUM(ROUND(F14:F19,0)) -> 157372 | H30: =SUM(ROUND(H14:H19,0)) -> 163517 | K30: =SUM(ROUND(K14:K19,0)) -> 0
D31: =ROUND(D20,0)-D30 -> 1 | E31: =ROUND(E20,0)-E30 -> 1 | F31: =ROUND(F20,0)-F30 -> -1 | H31: =ROUND(H20,0)-H30 -> 1 | K31: =ROUND(K20,0)-K30 -> 0
G34: Rate Sch. | H34: Therms | J34: Sch 155 Rate | K34: Sch 155 Rate | L34: Billing Impact
G35: 112 | H35: ='Rev Runs CY'!O40 -> 0 | J35: 0.00623 | K35: 0.00041 | L35: =(H35*(K35-J35)/1000) -> 0 | M35: No 112's in test year
G36: 122 | H36: ='Rev Runs CY'!O42 -> 852890 | J36: 0.01697 | K36: 0.00041 | L36: =(H36*(K36-J36)/1000) -> -14.1238584

Sheet Exh2
A1: AVISTA UTILITIES | L1: This worksheet pulls data from 'ROR' tab.
A2: WASHINGTON NATURAL GAS
A3: PRESENT & PROPOSED RATES OF RETURN BY RATE SCHEDULE
A4: 12 MONTHS ENDED JUNE 30, 2013
D9: Present Rates | G9: Base | I9: Proposed Rates
D10: Present | E10: Present | G10: Tariff | I10: Proposed | J10: Proposed
A11: Line | B11: Type of | C11: Sch. | D11: Rate of | E11: Relative | G11: Proposed | I11: Rate of | J11: Relative
A12: No. | B12: Service | C12: Number | D12: Return | E12: ROR | G12: Increase | I12: Return | J12: ROR
B13: (a) | C13: (b) | D13: (c) | E13: (d) | G13: (e) | I13: (f) | J13: (g)
A15: 1 | B15: General Service | C15: 101 | D15: =INDEX(ROR!$C$20:$H$20,$A15+1) -> 0.03958128346 | E15: =INDEX(ROR!$C$21:$H$21,$A15+1) -> 0.8149606848 | G15: =INDEX(ROR!$C$47:$H$47,$A15+1) -> 0.06185729865 | I15: =INDEX(ROR!$C$38:$H$38,$A15+1) -> 0.06029042727 | J15: =INDEX(ROR!$C$37:$H$37,$A15+1) -> 0.9106560638
A16: 2 | B16: Large General Service | C16: 111 | D16: =INDEX(ROR!$C$20:$H$20,$A16+1) -> 0.08831521865 | E16: =INDEX(ROR!$C$21:$H$21,$A16+1) -> 1.81837032 | G16: =INDEX(ROR!$C$47:$H$47,$A16+1) -> 0 | I16: =INDEX(ROR!$C$38:$H$38,$A16+1) -> 0.09142139976 | J16: =INDEX(ROR!$C$37:$H$37,$A16+1) -> 1.380873479
A17: 3 | B17: Large General Svc.-High Annual Load Factor | C17: 121 | D17: =INDEX(ROR!$C$20:$H$20,$A17+1) -> 0.1013825662 | E17: =INDEX(ROR!$C$21:$H$21,$A17+1) -> 2.087421083 | G17: =INDEX(ROR!$C$47:$H$47,$A17+1) -> 0 | I17: =INDEX(ROR!$C$38:$H$38,$A17+1) -> 0.1051533229 | J17: =INDEX(ROR!$C$37:$H$37,$A17+1) -> 1.588287154
A18: 4 | B18: Interruptible Service | C18: 131 | D18: =INDEX(ROR!$C$20:$H$20,$A18+1) -> 0.05158814076 | E18: =INDEX(ROR!$C$21:$H$21,$A18+1) -> 1.062176434 | G18: =INDEX(ROR!$C$47:$H$47,$A18+1) -> 0.0267012045 | I18: =INDEX(ROR!$C$38:$H$38,$A18+1) -> 0.06620548599 | J18: =INDEX(ROR!$C$37:$H$37,$A18+1) -> 1
A19: 5 | B19: Transportation Service | C19: 146 | D19: =INDEX(ROR!$C$20:$H$20,$A19+1) -> 0.04527111404 | E19: =INDEX(ROR!$C$21:$H$21,$A19+1) -> 0.9321117174 | G19: =INDEX(ROR!$C$47:$H$47,$A19+1) -> 0.1724496978 | I19: =INDEX(ROR!$C$38:$H$38,$A19+1) -> 0.06620548599 | J19: =INDEX(ROR!$C$37:$H$37,$A19+1) -> 1
A20: 6 | B20: Total | D20: =INDEX(ROR!$C$20:$H$20,1) -> 0.04856833488 | E20: =INDEX(ROR!$C$21:$H$21,1) -> 1 | G20: =INDEX(ROR!$C$47:$H$47,1) -> 0.04771525743 | I20: =INDEX(ROR!$C$38:$H$38,1) -> 0.06620548599 | J20: =INDEX(ROR!$C$37:$H$37,1) -> 1

Sheet Exh3
A1: AVISTA UTILITIES | L1: This worksheet uses Base & Billing rates from 'Rate Design' tab.
A2: WASHINGTON NATURAL GAS
A3: PRESENT AND PROPOSED RATE COMPONENTS BY SCHEDULE
I5: Proposed | J5: Proposed
C6: Sch. 150 | D6: Base Rate | E6: Present | G6: General | H6: Proposed | I6: Base Rate | J6: Base Rate
B7: Base | C7: PGA | D7: including | E7: Billing | F7: Present | G7: Rate | H7: Billing | I7: including | J7: excluding
A8: Type of Service | B8: Rate | C8: Rate Adj | D8: Schedule 150 | E8: Rate Adj. | F8: Billing Rate (1) | G8: Increase | H8: Rate(1) | I8: Schedule 150 | J8: Schedule 150
A9: (a) | B9: (b) | C9: (c) | D9: (d) | E9: (e) | F9: (f) | G9: (g) | H9: (h) | I9: (i) | J9: (j)
A10: General Service - Schedule 101
A11: Basic Charge | D11: ='Rate Design'!D4 -> 8 | E11: =F11-D11 -> 0 | F11: ='Rate Design'!D14 -> 8 | G11: =IF(ROUND(H11-F11,5)<>ROUND(I11-D11,5),#VALUE!,I11-D11) -> 0.92 | H11: ='Rate Design'!D36 -> 8.92 | I11: ='Rate Design'!D26 -> 8.92 | J11: =D11+G11 -> 8.92 | K11: =I11/D11-1 -> 0.115 | T11: =D11 -> 8 | V11: =I11 -> 8.92
A12: Usage Charge:
A13: First 70 Therms | B13: 0.28219 | C13: 0.49803 | D13: ='Rate Design'!D6/100 -> 0.78022 | E13: =F13-D13 -> 0.03803 | F13: ='Rate Design'!D16/100 -> 0.81825 | G13: =I13-D13 -> 0 | H13: ='Rate Design'!D38/100 -> 0.81825 | I13: ='Rate Design'!D28/100 -> 0.78022 | J13: =B13+G13 -> 0.28219 | K13: =I13/D13-1 -> 0
A14: All over 70 Therms | B14: 0.38327 | C14: =C13 -> 0.49803 | D14: ='Rate Design'!D7/100 -> 0.8813 | E14: =E13 -> 0.03803 | F14: ='Rate Design'!D17/100 -> 0.91933 | G14: =I14-D14 -> 0 | H14: ='Rate Design'!D39/100 -> 0.91933 | I14: ='Rate Design'!D29/100 -> 0.8813 | J14: =B14+G14 -> 0.38327 | K14: =I14/D14-1 -> 0 | L14: =(70*D13)+(130*D14)+D11 -> 177.1844 | O14: =(70*H13)+(130*H14)+H11 -> 185.7104 | P14: =(70*I13)+(130*I14)+I11 -> 178.1044 | Q14: =(70*(B13+G13))+(430*(B14+G14))+I11 -> 193.4794 | R14: =(D13*70)+(D14*130)+D11 -> 177.1844 | S14: =((D13+G13)*70)+((D14+G14)*130)+H11 -> 178.1044 | T14: =B13 -> 0.28219 | U14: =T14*70 -> 19.7533 | V14: =B13+G13 -> 0.28219 | W14: =V14*70 -> 19.7533
A16: Large General Service - Schedule 111 | R16: =(D13*70)+(D14*430)+D11 -> 441.5744 | S16: =((D13+G13)*70)+((D14+G14)*430)+H11 -> 442.4944 | T16: =B14 -> 0.38327 | U16: =T16*130 -> 49.8251 | V16: =B14+G14 -> 0.38327 | W16: =V16*130 -> 49.8251
A17: Usage Charge: | K17: =I22/200+I23-I18 -> 0 | U17: =T11+U14+U16 -> 77.5784 | W17: =V11+W14+W16 -> 78.4984
A18: ="First "&TEXT('Rate Design'!M6,"#,##0")&" therms" -> First 200 therms | B18: 0.39131 | C18: 0.49535 | D18: ='Rate Design'!M11/100 -> 0.88666 | E18: =F18-D18 -> 0.03407 | F18: ='Rate Design'!M21/100 -> 0.92073 | G18: =I18-D18 -> 0.00119 | H18: ='Rate Design'!M43/100 -> 0.92192 | I18: ='Rate Design'!M33/100 -> 0.88785 | J18: =B18+G18 -> 0.3925 | K18: =I18/D18-1 -> 0.001342115354 | L18: =D18*200 -> 177.332 | M18: =F18*200 -> 184.146 | N18: =G18*200 -> 0.238 | O18: =H18*200 -> 184.384 | P18: =I18*200 -> 177.57 | R18: =I22/200+I23 -> 0.88785
A19: =TEXT('Rate Design'!M6,"#,##0")&" - "&TEXT('Rate Design'!M7,"#,##0")&" therms" -> 200 - 1,000 therms | B19: 0.26644 | C19: =C18 -> 0.49535 | D19: ='Rate Design'!E7/100 -> 0.76179 | E19: =F19-D19 -> 0.03407 | F19: ='Rate Design'!E17/100 -> 0.79586 | G19: =I19-D19 -> -0.0351 | H19: ='Rate Design'!E39/100 -> 0.76076 | I19: ='Rate Design'!E29/100 -> 0.72669 | J19: =B19+G19 -> 0.23134 | K19: =I19/D19-1 -> -0.04607569015
A20: ="All over "&TEXT('Rate Design'!M7,"#,##0")&" therms" -> All over 1,000 therms | B20: 0.19322 | C20: =C18 -> 0.49535 | D20: ='Rate Design'!E8/100 -> 0.68857 | E20: =F20-D20 -> 0.03407 | F20: ='Rate Design'!E18/100 -> 0.72264 | G20: =I20-D20 -> -0.03172 | H20: ='Rate Design'!E40/100 -> 0.69092 | I20: ='Rate Design'!E30/100 -> 0.65685 | J20: 0.1615 | K20: =I20/D20-1 -> -0.04606648562
A21: Minimum Charge:
A22: per month | D22: ='Rate Design'!E5 -> 161.21 | E22: =F22-D22 -> 0 | F22: ='Rate Design'!E15 -> 161.21 | G22: =IF(ROUND(H22-F22,5)<>ROUND(I22-D22,5),#VALUE!,I22-D22) -> -82.71 | H22: ='Rate Design'!E37 -> 78.5 | I22: ='Rate Design'!E27 -> 78.5 | J22: =D22+G22 -> 78.5 | K22: =I22/D22-1 -> -0.5130575026 | T22: =F22+G11+(70*G13)+(130*G14) -> 162.13 | U22: =T22 -> 162.13 | V22: =(B18+G18)*200 -> 78.5
A23: per therm | B23: -0.41474 | C23: =C18 -> 0.49535 | D23: ='Rate Design'!E6/100 -> 0.08061 | E23: =F23-D23 -> 0.03407 | F23: ='Rate Design'!E16/100 -> 0.11468 | G23: =I23-D23 -> 0.41474 | H23: =E23+I23 -> 0.52942 | I23: 0.49535 | J23: =B23+G23 -> 0 | K23: =I23/D23-1 -> 5.145019228 | L23: =$D22+D23*200 -> 177.332 | M23: =$F22+F23*200 -> 184.146 | N23: =$G22+G23*200 -> 0.238 | O23: =$H22+H23*200 -> 184.384 | P23: =$I22+I23*200 -> 177.57 | T23: =D23 -> 0.08061 | U23: =T23*200 -> 16.122 | V23: =C18*200 -> 99.07
L24: =L18-L23 -> 0 | M24: =M18-M23 -> 0 | N24: =N18-N23 -> -3.108624469e-14 | O24: =O18-O23 -> 0 | P24: =P18-P23 -> 0 | U24: =SUM(U22:U23) -> 178.252 | V24: =SUM(V22:V23) -> 177.57
A25: High Annual Load Factor Large General Service - Schedule 121
A26: Usage Charge: | K26: =I33/500+I34-I27 -> 0
A27: ="First "&TEXT('Rate Design'!N6,"#,##0")&" therms" -> First 500 therms | B27: 0.40597 | C27: 0.47449 | D27: ='Rate Design'!N11/100 -> 0.88046 | E27: =F27-D27 -> 0.04203 | F27: ='Rate Design'!N21/100 -> 0.92249 | G27: =I27-D27 -> -0.01901 | H27: ='Rate Design'!N43/100 -> 0.90348 | I27: ='Rate Design'!N33/100 -> 0.86145 | J27: =B27+G27 -> 0.38696 | K27: =I27/D27-1 -> -0.02159098653 | L27: =D27*500 -> 440.23 | M27: =F27*500 -> 461.245 | N27: =G27*500 -> -9.505 | O27: =H27*500 -> 451.74 | P27: =I27*500 -> 430.725 | R27: =I33/500+I34 -> 0.86145
A28: =TEXT('Rate Design'!N6,"#,##0")&" - "&TEXT('Rate Design'!N7,"#,##0")&" therms" -> 500 - 1,000 therms | B28: 0.28246 | C28: =C27 -> 0.47449 | D28: ='Rate Design'!F7/100 -> 0.75695 | E28: =F28-D28 -> 0.04203 | F28: ='Rate Design'!F17/100 -> 0.79898 | G28: =I28-D28 -> -0.0458 | H28: ='Rate Design'!F39/100 -> 0.75318 | I28: ='Rate Design'!F29/100 -> 0.71115 | J28: =B28+G28 -> 0.23666 | K28: =I28/D28-1 -> -0.06050597794
A29: =TEXT('Rate Design'!N7,"#,##0")&" - "&TEXT('Rate Design'!N8,"#,##0")&" therms" -> 1,000 - 10,000 therms | B29: 0.20758 | C29: =C27 -> 0.47449 | D29: ='Rate Design'!F8/100 -> 0.68207 | E29: =F29-D29 -> 0.04203 | F29: ='Rate Design'!F18/100 -> 0.7241 | G29: =I29-D29 -> -0.04127 | H29: ='Rate Design'!F40/100 -> 0.68283 | I29: ='Rate Design'!F30/100 -> 0.6408 | J29: 0.16631 | K29: =I29/D29-1 -> -0.06050698609
A30: =TEXT('Rate Design'!N8,"#,##0")&" - "&TEXT('Rate Design'!N9,"#,##0")&" therms" -> 10,000 - 25,000 therms | B30: 0.16056 | C30: =C27 -> 0.47449 | D30: ='Rate Design'!F9/100 -> 0.63505 | E30: =F30-D30 -> 0.04203 | F30: ='Rate Design'!F19/100 -> 0.67708 | G30: =I30-D30 -> -0.03842 | H30: ='Rate Design'!F41/100 -> 0.63866 | I30: ='Rate Design'!F31/100 -> 0.59663 | J30: 0.12214 | K30: =I30/D30-1 -> -0.06049917329
A31: ="All over "&TEXT('Rate Design'!N9,"#,##0")&" therms" -> All over 25,000 therms | B31: 0.12272 | C31: =C27 -> 0.47449 | D31: ='Rate Design'!F10/100 -> 0.59721 | E31: =F31-D31 -> 0.04203 | F31: ='Rate Design'!F20/100 -> 0.63924 | G31: =I31-D31 -> 0 | H31: ='Rate Design'!F42/100 -> 0.63924 | I31: ='Rate Design'!F32/100 -> 0.59721 | J31: 0.12272 | K31: =I31/D31-1 -> 0
A32: Minimum Charge:
A33: per month | D33: ='Rate Design'!F5 -> 409.92 | E33: =F33-D33 -> 0 | F33: ='Rate Design'!F15 -> 409.92 | G33: =IF(ROUND(H33-F33,5)<>ROUND(I33-D33,5),#VALUE!,I33-D33) -> -216.44 | H33: ='Rate Design'!F37 -> 193.48 | I33: ='Rate Design'!F27 -> 193.48 | J33: =D33+G33 -> 193.48 | K33: =I33/D33-1 -> -0.5280054645 | T33: =F33+G11+(70*G13)+(430*G14) -> 410.84
A34: per therm | B34: -0.41387 | C34: =C27 -> 0.47449 | D34: ='Rate Design'!F6/100 -> 0.06062 | E34: =F34-D34 -> 0.04203 | F34: ='Rate Design'!F16/100 -> 0.10265 | G34: =I34-D34 -> 0.41387 | H34: ='Rate Design'!F38/100 -> 0.51652 | I34: ='Rate Design'!F28/100 -> 0.47449 | J34: =B34+G34 -> 0 | K34: =I34/D34-1 -> 6.827284725 | L34: =D33+D34*500 -> 440.23 | M34: =F33+F34*500 -> 461.245 | N34: =G33+G34*500 -> -9.505 | O34: =H33+H34*500 -> 451.74 | P34: =I33+I34*500 -> 430.725 | Q34: =(B27+G27)*500 -> 193.48
A35: Annual Minimum per therm | D35: Present: | E35: 0.30041 | H35: Proposed: | I35: =D29-0.37977-N("Tariffed Commodity Rate, 2013 PGA - Grossed up for Rev Related Items")+G29 -> 0.26103 | J35: =D29-0.37977-N("Tariffed Commodity Rate, 2013 PGA - Grossed up for Rev Related Items")+G29 -> 0.26103 | K35: =I35/E35-1 -> -0.1310875137 | L35: =L27-L34 -> 0 | M35: =M27-M34 -> 0 | N35: =N27-N34 -> 6.75015599e-14 | O35: =O27-O34 -> 0 | P35: =P27-P34 -> 0
A37: Interruptible Service - Schedule 132
A38: Usage Charge:
A39: ="First "&TEXT('Rate Design'!O6,"#,##0")&" therms" -> First 10,000 therms | B39: 0.18974 | C39: 0.44955 | D39: ='Rate Design'!G6/100 -> 0.63929 | E39: =F39-D39 -> 0.02359 | F39: ='Rate Design'!G16/100 -> 0.66288 | G39: =I39-D39 -> -0.02511 | H39: ='Rate Design'!G38/100 -> 0.63777 | I39: ='Rate Design'!G28/100 -> 0.61418 | J39: =B39+G39 -> 0.16463 | K39: =I39/D39-1 -> -0.03927794897
A40: =TEXT('Rate Design'!O6,"#,##0")&" - "&TEXT('Rate Design'!O7,"#,##0")&" therms" -> 10,000 - 25,000 therms | B40: 0.1447 | C40: =C39 -> 0.44955 | D40: ='Rate Design'!G7/100 -> 0.59425 | E40: =F40-D40 -> 0.02359 | F40: ='Rate Design'!G17/100 -> 0.61784 | G40: =I40-D40 -> -0.02334 | H40: ='Rate Design'!G39/100 -> 0.5945 | I40: ='Rate Design'!G29/100 -> 0.57091 | J40: =B40+G40 -> 0.12136 | K40: =I40/D40-1 -> -0.03927639882
A41: =TEXT('Rate Design'!O7,"#,##0")&" - "&TEXT('Rate Design'!O8,"#,##0")&" therms" -> 25,000 - 50,000 therms | B41: 0.13365 | C41: =C39 -> 0.44955 | D41: ='Rate Design'!G8/100 -> 0.5832 | E41: =F41-D41 -> 0.02359 | F41: ='Rate Design'!G18/100 -> 0.60679 | G41: =I41-D41 -> -0.02291 | H41: ='Rate Design'!G40/100 -> 0.58388 | I41: ='Rate Design'!G30/100 -> 0.56029 | J41: 0.11074 | K41: =I41/D41-1 -> -0.03928326475
A42: ="All over "&TEXT('Rate Design'!O8,"#,##0")&" therms" -> All over 50,000 therms | B42: 0.12999 | C42: =C39 -> 0.44955 | D42: ='Rate Design'!G9/100 -> 0.57954 | E42: =F42-D42 -> 0.02359 | F42: ='Rate Design'!G19/100 -> 0.60313 | G42: =I42-D42 -> -0.02277 | H42: ='Rate Design'!G41/100 -> 0.58036 | I42: ='Rate Design'!G31/100 -> 0.55677 | J42: 0.10722 | K42: =I42/D42-1 -> -0.03928978155
A43: Annual Minimum per therm | D43: Present: | E43: 0.21578 | H43: Proposed: | I43: =D40-0.37977-N("Tariffed Commodity Rate, 2013 PGA - Grossed up for Rev Related Items")+G40 -> 0.19114 | J43: =D40-0.37977-N("Tariffed Commodity Rate, 2013 PGA - Grossed up for Rev Related Items")+G40 -> 0.19114 | K43: =I43/E43-1 -> -0.1141903791
A45: Transportation Service - Schedule 146
A46: Basic Charge | D46: ='Rate Design'!H4 -> 400 | E46: =F46-D46 -> 0 | F46: ='Rate Design'!H14 -> 400 | G46: =IF(ROUND(H46-F46,5)<>ROUND(I46-D46,5),#VALUE!,I46-D46) -> 100 | H46: ='Rate Design'!H36 -> 500 | I46: ='Rate Design'!H26 -> 500 | J46: =D46+G46 -> 500 | K46: =I46/D46-1 -> 0.25
A47: Usage Charge:
A48: ="First "&TEXT('Rate Design'!P6,"#,##0")&" therms" -> First 20,000 therms | B48: 0.08233 | C48: 0.00056 | D48: ='Rate Design'!H6/100 -> 0.08289 | E48: =F48-D48 -> 4e-05 | F48: ='Rate Design'!H16/100 -> 0.08293 | G48: =I48-D48 -> 0.00506 | H48: ='Rate Design'!H38/100 -> 0.08799 | I48: ='Rate Design'!H28/100 -> 0.08795 | J48: =B48+G48 -> 0.08739 | K48: =I48/D48-1 -> 0.06104475811 | N48: =I48-D48 -> 0.00506 | O48: =H48-F48 -> 0.00506
A49: =TEXT('Rate Design'!P6,"#,##0")&" - "&TEXT('Rate Design'!P7,"#,##0")&" therms" -> 20,000 - 50,000 therms | B49: 0.07324 | C49: =C48 -> 0.00056 | D49: ='Rate Design'!H7/100 -> 0.0738 | E49: =F49-D49 -> 4e-05 | F49: ='Rate Design'!H17/100 -> 0.07384 | G49: =I49-D49 -> 0.00506 | H49: ='Rate Design'!H39/100 -> 0.0789 | I49: ='Rate Design'!H29/100 -> 0.07886 | J49: =B49+G49 -> 0.0783 | K49: =I49/D49-1 -> 0.06856368564
A50: =TEXT('Rate Design'!P7,"#,##0")&" - "&TEXT('Rate Design'!P8,"#,##0")&" therms" -> 50,000 - 300,000 therms | B50: 0.06603 | C50: =C48 -> 0.00056 | D50: ='Rate Design'!H8/100 -> 0.06659 | E50: =F50-D50 -> 4e-05 | F50: ='Rate Design'!H18/100 -> 0.06663 | G50: =I50-D50 -> 0.00506 | H50: ='Rate Design'!H40/100 -> 0.07169 | I50: ='Rate Design'!H30/100 -> 0.07165 | J50: 0.07109 | K50: =I50/D50-1 -> 0.07598738549
A51: =TEXT('Rate Design'!P8,"#,##0")&" - "&TEXT('Rate Design'!P9,"#,##0")&" therms" -> 300,000 - 500,000 therms | B51: 0.06106 | C51: =C48 -> 0.00056 | D51: ='Rate Design'!H9/100 -> 0.06162 | E51: =F51-D51 -> 4e-05 | F51: ='Rate Design'!H19/100 -> 0.06166 | G51: =I51-D51 -> 0.00506 | H51: ='Rate Design'!H41/100 -> 0.06672 | I51: ='Rate Design'!H31/100 -> 0.06668 | J51: 0.06612 | K51: =I51/D51-1 -> 0.08211619604
A52: ="All over "&TEXT('Rate Design'!P9,"#,##0")&" therms" -> All over 500,000 therms | B52: 0.04586 | C52: =C48 -> 0.00056 | D52: ='Rate Design'!H10/100 -> 0.04642 | E52: =F52-D52 -> 4e-05 | F52: ='Rate Design'!H20/100 -> 0.04646 | G52: =I52-D52 -> 0.00506 | H52: ='Rate Design'!H42/100 -> 0.05152 | I52: ='Rate Design'!H32/100 -> 0.05148 | J52: 0.05092 | K52: =I52/D52-1 -> 0.1090047393
A53: Annual Minimum per therm | D53: Present: | E53: =D49 -> 0.0738 | H53: Proposed: | I53: =I49 -> 0.07886 | J53: =I49 -> 0.07886 | K53: =I53/E53-1 -> 0.06856368564
A55: (1) Includes Schedule 150 (Purchase Gas Cost Adjustment), Schedule 155 (Gas Rate Adjustment), and Schedule 191 (Public Purpose Rider Adjustment).

Sheet Rate Design (hidden)
A1: PRESENT RATES | D1: 1 | E1: 2 | F1: 3 | G1: 4 | H1: 5 | L1: Tiers - used for bill comparisons
C2: TOTAL | D2: SCH. 101 | E2: SCH. 111,112 | F2: SCH. 121,122 | G2: SCH. 132 | H2: SCH. 146 | J2: Range Name | L2: SCH. 101 | M2: SCH. 111,112 | N2: SCH. 121,122 | O2: SCH. 131,132 | P2: SCH. 146
B3: Base Tariff Rates
A4: 1 | B4: BASIC CHARGE | D4: 8 | H4: 400
A5: 2 | B5: MONTHLY MINIMUM | E5: 161.21 | F5: 409.92
A6: 3 | B6: BLOCK 1 PER THERM | D6: =27.398+0.821+49.803 -> 78.022 | E6: =-41.539+0.065+49.535 -> 8.061 | F6: =-41.437+0.05+47.449 -> 6.062 | G6: =18.464+0.51+44.955 -> 63.929 | H6: =8.151+0.082+0.056 -> 8.289 | L6: 70 | M6: 200 | N6: 500 | O6: 10000 | P6: 20000
A7: 4 | B7: BLOCK 2 PER THERM | D7: =37.398+0.929+49.803 -> 88.13 | E7: =25.957+0.687+49.535 -> 76.179 | F7: =27.558+0.688+47.449 -> 75.695 | G7: =13.996+0.474+44.955 -> 59.425 | H7: =7.251+0.073+0.056 -> 7.38 | I7: =H7/H6-1 -> -0.1096634093 | L7: 70 | M7: 1000 | N7: 1000 | O7: 25000 | P7: 50000
A8: 5 | B8: BLOCK 3 PER THERM | E8: =18.701+0.621+49.535 -> 68.857 | F8: =20.138+0.62+47.449 -> 68.207 | G8: =12.9+0.465+44.955 -> 58.32 | H8: =6.537+0.066+0.056 -> 6.659 | I8: =H8/H7-1 -> -0.09769647696 | J8: Rates_Base_Present | L8: 9999999 | M8: 9999999 | N8: 10000 | O8: 50000 | P8: 300000
A9: 6 | B9: BLOCK 4 PER THERM | F9: =15.479+0.577+47.449 -> 63.505 | G9: =12.537+0.462+44.955 -> 57.954 | H9: =6.045+0.061+0.056 -> 6.162 | I9: -0.07463583121 | L9: 9999999 | M9: 9999999 | N9: 25000 | O9: 9999999 | P9: 500000
A10: 7 | B10: BLOCK 5 PER THERM | F10: =11.73+0.542+47.449 -> 59.721 | H10: =4.54+0.046+0.056 -> 4.642 | I10: -0.2466731581 | L10: 9999999 | M10: 9999999 | N10: 9999999 | O10: 9999999 | P10: 9999999
L11: 1st block rate | M11: =(M6/100*E6+E5)/M6*100 -> 88.666 | N11: =(N6/100*F6+F5)/N6*100 -> 88.046
B12: Billing Rates | D12: =IF(D13<>'Pres & Prop Rev'!D$5,#VALUE!,"") ->  | E12: =IF(E13<>'Pres & Prop Rev'!E$5,#VALUE!,"") ->  | F12: =IF(F13<>'Pres & Prop Rev'!F$5,#VALUE!,"") ->  | G12: =IF(G13<>'Pres & Prop Rev'!G$5,#VALUE!,"") ->  | H12: =IF(H13<>'Pres & Prop Rev'!H$5,#VALUE!,"") ->  | L12: check | M12: =M6*M11/100-(M6*E6/100+E5) -> 0 | N12: =N6*N11/100-(N6*F6/100+F5) -> 0
D13: SCHEDULE 101 | E13: SCH. 111&112 | F13: SCH. 121&122 | G13: SCH. 131&132 | H13: SCHEDULE 146
A14: 1 | B14: BASIC CHARGE | D14: =D4 -> 8 | E14: 0 | F14: 0 | G14: 0 | H14: 400
A15: 2 | B15: MONTHLY MINIMUM | D15: 0 | E15: =E5 -> 161.21 | F15: =F5 -> 409.92 | G15: 0 | H15: 0
A16: 3 | B16: BLOCK 1 PER THERM | D16: =D6+0.348+3.455 -> 81.825 | E16: =E6+0.623+2.784 -> 11.468 | F16: =F6+1.697+2.506 -> 10.265 | G16: =G6+0.041+2.318 -> 66.288 | H16: =H6+0.004 -> 8.293 | L16: =L6 -> 70 | M16: 200 | N16: 500 | O16: 10000 | P16: 20000
A17: 4 | B17: BLOCK 2 PER THERM | D17: =D7+0.348+3.455 -> 91.933 | E17: =E7+0.623+2.784 -> 79.586 | F17: =F7+1.697+2.506 -> 79.898 | G17: =G7+0.041+2.318 -> 61.784 | H17: =H7+0.004 -> 7.384 | L17: 70 | M17: 1000 | N17: 1000 | O17: 25000 | P17: 50000
A18: 5 | B18: BLOCK 3 PER THERM | D18: =D8 -> 0 | E18: =E8+0.623+2.784 -> 72.264 | F18: =F8+1.697+2.506 -> 72.41 | G18: =G8+0.041+2.318 -> 60.679 | H18: =H8+0.004 -> 6.663 | J18: Rates_Billing_Present | L18: 9999999 | M18: 9999999 | N18: 10000 | O18: 50000 | P18: 300000
A19: 6 | B19: BLOCK 4 PER THERM | D19: =D9 -> 0 | E19: =E9 -> 0 | F19: =F9+1.697+2.506 -> 67.708 | G19: =G9+0.041+2.318 -> 60.313 | H19: =H9+0.004 -> 6.166 | L19: =L9 -> 9999999 | M19: 9999999 | N19: 25000 | O19: 9999999 | P19: 500000
A20: 7 | B20: BLOCK 5 PER THERM | D20: =D10 -> 0 | E20: =E10 -> 0 | F20: =F10+1.697+2.506 -> 63.924 | H20: =H10+0.004 -> 4.646 | L20: 9999999 | M20: 9999999 | N20: 9999999 | O20: 9999999 | P20: 9999999
L21: 1st block rate | M21: =(M16/100*E16+E15)/M16*100 -> 92.073 | N21: =(N16/100*F16+F15)/N16*100 -> 92.249
A22: PROPOSED RATES | L22: check | M22: =M16*M21/100-(M16*E16/100+E15) -> 0 | N22: =N16*N21/100-(N16*F16/100+F15) -> 0
B24: Base Tariff Rates | D24: =IF(D25<>'Pres & Prop Rev'!D$5,#VALUE!,"") ->  | E24: =IF(E25<>'Pres & Prop Rev'!E$5,#VALUE!,"") ->  | F24: =IF(F25<>'Pres & Prop Rev'!F$5,#VALUE!,"") ->  | G24: =IF(G25<>'Pres & Prop Rev'!G$5,#VALUE!,"") ->  | H24: =IF(H25<>'Pres & Prop Rev'!H$5,#VALUE!,"") -> 
D25: SCHEDULE 101 | E25: SCH. 111&112 | F25: SCH. 121&122 | G25: SCH. 131&132 | H25: SCHEDULE 146
A26: 1 | B26: BASIC CHARGE | D26: =IF(D4>0,ROUND(D63,2),0) -> 8.92 | E26: =IF(E4>0,ROUND(E63,2),0) -> 0 | F26: =IF(F4>0,ROUND(F63,2),0) -> 0 | G26: =IF(G4>0,ROUND(G63,2),0) -> 0 | H26: =IF(H4>0,ROUND(H63,2),0) -> 500
A27: 2 | B27: MONTHLY MINIMUM | D27: =IF(D5>0,ROUND(D63,2),0) -> 0 | E27: =IF(E5>0,ROUND(E63,2),0) -> 78.5 | F27: =IF(F5>0,ROUND(F63,2),0) -> 193.48 | G27: =IF(G5>0,ROUND(G63,2),0) -> 0 | H27: =IF(H5>0,ROUND(H63,2),0) -> 0
A28: 2 | B28: BLOCK 1 PER THERM | D28: =ROUND(D82,3) -> 78.022 | E28: =ROUND(E82,3) -> 49.535 | F28: 47.449 | G28: 61.418 | H28: 8.795 | L28: 70 | M28: 200 | N28: 500 | O28: 10000 | P28: 20000
A29: 3 | B29: BLOCK 2 PER THERM | D29: =ROUND(D83,3) -> 88.13 | E29: 72.669 | F29: 71.115 | G29: 57.091 | H29: 7.886 | I29: =H29/H28-1 -> -0.1033541785 | L29: 70 | M29: 1000 | N29: 1000 | O29: 25000 | P29: 50000
A30: 4 | B30: BLOCK 3 PER THERM | D30: 0 | E30: 65.685 | F30: 64.08 | G30: 56.029 | H30: 7.165 | I30: =H30/H29-1 -> -0.09142784682 | J30: Rates_Base_Proposed | L30: 9999999 | M30: 9999999 | N30: 10000 | O30: 50000 | P30: 300000
A31: 5 | B31: BLOCK 4 PER THERM | D31: =ROUND(D85,3) -> 0 | E31: 0 | F31: 59.663 | G31: 55.677 | H31: 6.668 | I31: -0.0693649686 | L31: 9999999 | M31: 9999999 | N31: 25000 | O31: 9999999 | P31: 500000
A32: 6 | B32: BLOCK 5 PER THERM | D32: 0 | E32: 0 | F32: 59.721 | G32: 0 | H32: 5.148 | I32: =H32/H31-1 -> -0.2279544091 | L32: 9999999 | M32: 9999999 | N32: 9999999 | O32: 9999999 | P32: 9999999
L33: 1st block rate | M33: =(M28/100*E28+E27)/M28*100 -> 88.785 | N33: =(N28/100*F28+F27)/N28*100 -> 86.145
B34: Billing Rates | D34: =D28/D6-1 -> 0 | E34: =IF(E35<>'Pres & Prop Rev'!E$5,#VALUE!,"") ->  | F34: =IF(F35<>'Pres & Prop Rev'!F$5,#VALUE!,"") ->  | G34: =IF(G35<>'Pres & Prop Rev'!G$5,#VALUE!,"") ->  | H34: =IF(H35<>'Pres & Prop Rev'!H$5,#VALUE!,"") ->  | L34: check | M34: =M28*M33/100-(M28*E28/100+E27) -> 0 | N34: =N28*N33/100-(N28*F28/100+F27) -> 0
D35: SCHEDULE 101 | E35: SCH. 111&112 | F35: SCH. 121&122 | G35: SCH. 131&132 | H35: SCHEDULE 146 | L35: Basic Charge Calc | M35: =E5+(D26-D4)+(((D28/100)-(D6/100))*200) -> 162.13 | N35: =+(D26)+(500*((D28/100)-(F28/100))) -> 161.785 | S35: 100
A36: 1 | B36: BASIC CHARGE | D36: =D26 -> 8.92 | E36: 0 | F36: 0 | G36: 0 | H36: 500 | S36: LIRAP increase
A37: 2 | B37: MONTHLY MINIMUM | D37: 0 | E37: 78.5 | F37: =F27 -> 193.48 | G37: 0 | H37: 0 | S37: 101 | T37: 111 | U37: 121 | V37: 131
A38: 2 | B38: BLOCK 1 PER THERM | D38: =D28+0.348+3.455 -> 81.825 | E38: =E28+0.623+2.784 -> 52.942 | F38: =F28+1.697+2.506 -> 51.652 | G38: =G28+0.041+2.318 -> 63.777 | H38: =H28+0.004 -> 8.799 | L38: =L28 -> 70 | M38: 200 | N38: 500 | O38: 10000 | P38: 20000 | S38: 0 | T38: 0 | U38: 0 | V38: 0
A39: 3 | B39: BLOCK 2 PER THERM | D39: =D29+0.348+3.455 -> 91.933 | E39: =E29+0.623+2.784 -> 76.076 | F39: =F29+1.697+2.506 -> 75.318 | G39: =G29+0.041+2.318 -> 59.45 | H39: =H29+0.004 -> 7.89 | L39: 70 | M39: 1000 | N39: 1000 | O39: 25000 | P39: 50000 | S39: =S$38 -> 0 | T39: =T$38 -> 0 | U39: =U$38 -> 0 | V39: =V$38 -> 0
A40: 4 | B40: BLOCK 3 PER THERM | D40: =D30 -> 0 | E40: =E30+0.623+2.784 -> 69.092 | F40: =F30+1.697+2.506 -> 68.283 | G40: =G30+0.041+2.318 -> 58.388 | H40: =H30+0.004 -> 7.169 | J40: Rates_Billing_Proposed | L40: 9999999 | M40: 9999999 | N40: 10000 | O40: 50000 | P40: 300000 | S40: =S$38 -> 0 | T40: 0 | U40: 0 | V40: 0
A41: 5 | B41: BLOCK 4 PER THERM | D41: =D31 -> 0 | E41: =E31 -> 0 | F41: =F31+1.697+2.506 -> 63.866 | G41: =G31+0.041+2.318 -> 58.036 | H41: =H31+0.004 -> 6.672 | L41: 9999999 | M41: 9999999 | N41: 25000 | O41: 9999999 | P41: 500000 | S41: 0 | T41: 0 | U41: 0 | V41: 0
A42: 6 | B42: BLOCK 5 PER THERM | D42: =D32 -> 0 | E42: =E32 -> 0 | F42: =F32+1.697+2.506 -> 63.924 | H42: =H32+0.004 -> 5.152 | L42: 9999999 | M42: 9999999 | N42: 9999999 | O42: 9999999 | P42: 9999999 | S42: 0 | T42: 0 | U42: 0 | V42: 0
L43: 1st block rate | M43: =(M38/100*E38+E37)/M38*100 -> 92.192 | N43: =(N38/100*F38+F37)/N38*100 -> 90.348
L44: check | M44: =M38*M43/100-(M38*E38/100+E37) -> 0 | N44: =N38*N43/100-(N38*F38/100+F37) -> 0
B47: Proposed Rate Workup - from Pres & Prop Rev tab
B49: THERMS
B50: BLOCK 1 | C50: =SUM(D50:H50) -> 88877942.05 | D50: ='Pres & Prop Rev'!D31 -> 74519037.37 | E50: ='Pres & Prop Rev'!E31 -> 5632648.155 | F50: ='Pres & Prop Rev'!F31 -> 177068.4321 | G50: ='Pres & Prop Rev'!G31 -> 240000 | H50: ='Pres & Prop Rev'!H31 -> 8309188.101
B51: BLOCK 2 | C51: 65392552.74 | D51: ='Pres & Prop Rev'!D32 -> 42492169.63 | E51: ='Pres & Prop Rev'!E32 -> 14800996.82 | F51: ='Pres & Prop Rev'!F32 -> 176745.5418 | G51: ='Pres & Prop Rev'!G32 -> 360000 | H51: ='Pres & Prop Rev'!H32 -> 7562640.75
B52: BLOCK 3 | C52: 41125868.69 | D52: ='Pres & Prop Rev'!D33 -> 0 | E52: ='Pres & Prop Rev'!E33 -> 25823248.03 | F52: ='Pres & Prop Rev'!F33 -> 2926400.732 | G52: ='Pres & Prop Rev'!G33 -> 449337.6777 | H52: ='Pres & Prop Rev'!H33 -> 11926882.25
B53: BLOCK 4 | C53: 4864872.009 | D53: ='Pres & Prop Rev'!D34 -> 0 | E53: ='Pres & Prop Rev'!E34 -> 0 | F53: ='Pres & Prop Rev'!F34 -> 1786297.02 | G53: ='Pres & Prop Rev'!G34 -> 238882.3223 | H53: ='Pres & Prop Rev'!H34 -> 2839692.666
B54: BLOCK 5 | C54: 1259520.508 | D54: ='Pres & Prop Rev'!D35 -> 0 | E54: ='Pres & Prop Rev'!E35 -> 0 | F54: ='Pres & Prop Rev'!F35 -> 874046.2739 | G54: ='Pres & Prop Rev'!G35 -> 0 | H54: ='Pres & Prop Rev'!H35 -> 385474.2343
B55: ADJ. TO ACTUAL | C55: 0 | D55: ='Pres & Prop Rev'!D41 -> 0 | E55: ='Pres & Prop Rev'!E41 -> 0 | F55: ='Pres & Prop Rev'!F41 -> 0 | G55: ='Pres & Prop Rev'!G41 -> 0 | H55: ='Pres & Prop Rev'!H41 -> 0
B56: WEATHER & U/B THERMS | C56: 5337877 | D56: ='Pres & Prop Rev'!D44 -> 3806706 | E56: ='Pres & Prop Rev'!E44 -> 1453854 | F56: ='Pres & Prop Rev'!F44 -> 77317 | G56: ='Pres & Prop Rev'!G44 -> 0 | H56: ='Pres & Prop Rev'!H44 -> 0 | I56: Proposed rates:
B57: TOTAL PROFORMA THERMS | C57: =IF(ROUND(SUM(D57:H57),3)<>ROUND(SUM(C50:C56),3),#VALUE!,SUM(D57:H57)) -> 206858633 | D57: =SUM(D50:D56) -> 120817913 | E57: =SUM(E50:E56) -> 47710747 | F57: =SUM(F50:F56) -> 6017875 | G57: =SUM(G50:G56) -> 1288220 | H57: =SUM(H50:H56) -> 31023878 | I57: same as current
B58: TOTAL BILLS | D58: =SUM('Pres & Prop Rev'!D48:D49) -> 1802235 | E58: =SUM('Pres & Prop Rev'!E48:E49) -> 30276 | F58: =SUM('Pres & Prop Rev'!F48:F49) -> 329 | G58: =SUM('Pres & Prop Rev'!G48:G49) -> 24 | H58: =SUM('Pres & Prop Rev'!H48:H49) -> 501 | I58: diff than current
I59: Formulas to copy
B60: Proposed Revenue | C60: =SUM(D60:H60) -> 155570000 | D60: =ROR!D46 -> 114618423.6 | E60: =ROR!E46 -> 33798192.39 | F60: =ROR!F46 -> 3762196.801 | G60: =ROR!G46 -> 749594.3715 | H60: =ROR!H46 -> 2641592.825 | I60: FLOOR | J60: CEILING | K60: OTHER
B61: Targeted Rate Increase | C61: =ROR!C47 -> 0.04771525743 | D61: =ROR!D47 -> 0.06185729865 | E61: =ROR!E47 -> 0 | F61: =ROR!F47 -> 0 | G61: =ROR!G47 -> 0.0267012045 | H61: =ROR!H47 -> 0.1724496978
B62: Present Basic/Min Charge | D62: =D4+D5 -> 8 | E62: =E4+E5 -> 161.21 | F62: =F4+F5 -> 409.92 | G62: =G4+G5 -> 0 | H62: =H4+H5 -> 400
B63: BASIC/MIN CHARGE | D63: 8.915266 | E63: =(0.28219*70)+(0.38327*130)+D62+(70*'Exh3'!G13)+(130*'Exh3'!G14)+'Exh3'!G11 -> 78.4984 | F63: =(0.28219*70)+(0.38327*430)+(70*'Exh3'!G13)+(430*'Exh3'!G14)+'Exh3'!H11 -> 193.4794 | G63: 496 | H63: 500 | I63: =FLOOR(I62*(1+I$61),$I64) -> 0 | J63: =CEILING(J62*(1+J$61),$J64) -> 0 | K63: 1.05
B64: % D in Basic Charge | D64: =IF(D62,D63/D62-1,0) -> 0.11440825 | E64: =IF(E62,E63/E62-1,0) -> -0.5130674276 | F64: =IF(F62,F63/F62-1,0) -> -0.5280069282 | G64: =IF(G62,G63/G62-1,0) -> 0 | H64: =IF(H62,H63/H62-1,0) -> 0.25 | I64: 0.05 | J64: 0.05
B65: Basic Charge Revenue | C65: =SUM(D65:H65) -> 18770080.7 | D65: =D58*D63 -> 16067404.42 | E65: =E58*E63 -> 2376617.558 | F65: =F58*F63 -> 63654.7226 | G65: =G58*G63 -> 11904 | H65: =H58*H63 -> 250500 | I65: =H62*H58 -> 200400
D66: 0 | I66: =H65-I65 -> 50100
B67: Present Block 1 Rate | D67: =D6 -> 78.022 | E67: 8.061 | F67: 6.062 | G67: 63.929 | H67: 8.289 | J67: =+E62+(D63-D62)+30*(D82/100)+130*(D83/100) -> 300.100866
B68: Present Block 2 Rate | D68: 88.13 | E68: 76.179 | F68: 75.695 | G68: 59.425 | H68: 7.38
B69: Present Block 3 Rate | D69: 0 | E69: 68.857 | F69: 68.207 | G69: 58.32 | H69: 6.659
B70: Present Block 4 Rate | D70: =D9 -> 0 | E70: 0 | F70: =F9 -> 63.505 | G70: 57.954 | H70: 6.162
B71: Present Block 5 Rate | D71: 0 | E71: 0 | F71: 59.721 | G71: 0 | H71: 4.642
B73: 1) Flat Rate Increase | D73: 1 | E73: -3.3337528 | F73: -4.041738153 | G73: 1 | H73: 0.506495904
B74: 2) % Rate Increase | D74: 0 | E74: -0.04607212939 | F74: -0.06050614108 | G74: -0.03928452063 | H74: 0.09256449035 | K74: =K$61 -> 0
B75: Method ---> | D75: 2 | E75: 2 | F75: 2 | G75: 2 | H75: 1
F76: 0
A77: Calculated | B77: BLOCK 1 PER THERM | D77: =CHOOSE(D$75,D67+D$73,D67*(1+D$74)) -> 78.022 | E77: 49.535 | F77: 47.449 | G77: =CHOOSE(G$75,G67+G$73,G67*(1+G$74)) -> 61.41757988 | H77: 8.795495904
B78: BLOCK 2 PER THERM | D78: =CHOOSE(D$75,D68+D$73,D68*(1+D$74)) -> 88.13 | E78: =CHOOSE(E$75,E68+E$73,E68*(1+E$74)) -> 72.66927126 | F78: =CHOOSE(F$75,F68+F$73,F68*(1+F$74+F76)) -> 71.11498765 | G78: 57.09051736 | H78: 7.886495904
B79: BLOCK 3 PER THERM | D79: 0 | E79: 65.68461139 | F79: =CHOOSE(F$75,F69+F$73,F69*(1+F$74+F76)) -> 64.08005764 | G79: 56.02892676 | H79: 7.165495904
B80: BLOCK 4 PER THERM | D80: 0 | E80: 0 | F80: =CHOOSE(F$75,F70+F$73,F70*(1+F$74+F76)) -> 59.66255751 | G80: 55.67730489 | H80: 6.668495904
B81: BLOCK 5 PER THERM | D81: 0 | E81: 0 | F81: =F71 -> 59.721 | G81: 0 | H81: =CHOOSE(H$75,H71+H$73,H71*(1+H$74)) -> 5.148495904
A82: Input | B82: BLOCK 1 PER THERM | D82: =D77 -> 78.022 | E82: =E77 -> 49.535 | F82: =F77 -> 47.449 | G82: =G77 -> 61.41757988 | H82: =H77 -> 8.795495904 | J82: =F82-F67 -> 41.387 | K82: =H82-H67 -> 0.506495904 | L82: =D63+((D77/100)*200) -> 164.959266 | M82: =E63+((E82/100)*200) -> 177.5684 | P82: =F63+((F82/100)*500) -> 430.7244
B83: BLOCK 2 PER THERM | D83: =D78 -> 88.13 | E83: =E78 -> 72.66927126 | F83: =F78 -> 71.11498765 | G83: =G78 -> 57.09051736 | H83: =H78 -> 7.886495904 | J83: =F83-F68 -> -4.580012349 | K83: =H83-H68 -> 0.506495904
B84: BLOCK 3 PER THERM | E84: =E79 -> 65.68461139 | F84: =F79 -> 64.08005764 | G84: 56.02892676 | H84: 7.165495904 | J84: =F84-F69 -> -4.126942364 | K84: =H84-H69 -> 0.506495904
B85: BLOCK 4 PER THERM | E85: =E80 -> 0 | F85: =F80 -> 59.66255751 | G85: =G80 -> 55.67730489 | H85: =H80 -> 6.668495904 | J85: =F85-F70 -> -3.842442489 | K85: 0.506495904
B86: BLOCK 5 PER THERM | E86: 0 | F86: =F81 -> 59.721 | G86: 0 | H86: =H81 -> 5.148495904 | J86: 0 | K86: 0.506495904
B87: Blocks 1-5 Revenue | C87: =SUM(D87:H87) -> 132898873.2 | D87: =SUMPRODUCT(D50:D54,D82:D86)/100 -> 95589592.43 | E87: =SUMPRODUCT(E50:E54,E82:E86)/100 -> 30507808.9 | F87: =SUMPRODUCT(F50:F54,F82:F86)/100 -> 3672688.709 | G87: =SUMPRODUCT(G50:G54,G82:G86)/100 -> 737690.3715 | H87: =SUMPRODUCT(H50:H54,H82:H86)/100 -> 2391092.825 | L87: 101 | M87: 111/112 | N87: 101 | O87: 111 | P87: 121
B88: Adj. to Actual Revenue | C88: =SUM(D88:H88) -> 0 | D88: ='Pres & Prop Rev'!D168 -> 0 | E88: ='Pres & Prop Rev'!E168 -> 0 | F88: ='Pres & Prop Rev'!F168 -> 0 | G88: ='Pres & Prop Rev'!G168 -> 0 | H88: ='Pres & Prop Rev'!H168 -> 0 | K88: Breakeven Proof Calc | M88: 200 | N88: 500
B89: Weather & U/B Revenue | C89: =SUM(D89:H89) -> 4163640.09 | D89: ='Pres & Prop Rev'!D190 -> 3148214.05 | E89: ='Pres & Prop Rev'!E190 -> 969272.74 | F89: ='Pres & Prop Rev'!F190 -> 46153.3 | G89: ='Pres & Prop Rev'!G190 -> 0 | H89: ='Pres & Prop Rev'!H190 -> 0 | K89: Basic Charge/Minimum | L89: =D63 -> 8.915266 | M89: =E63 -> 78.4984 | N89: =D63 -> 8.915266 | O89: =E63 -> 78.4984 | P89: =F63 -> 193.4794
K90: Therm Rate | L90: =D82/100 -> 0.78022 | M90: ='Exh3'!C18 -> 0.49535 | N90: =D82/100 -> 0.78022 | O90: =(E82/100) -> 0.49535 | P90: =F82/100 -> 0.47449
B91: Revenue Remaining | C91: =IF(ROUND(C60-C65-SUM(C87:C89),3)<>ROUND(SUM(D91:H91),3),#VALUE!,SUM(D91:H91)) -> -262594.0313 | D91: =D60-D65-SUM(D87:D89) -> -186787.2912 | E91: =E60-E65-SUM(E87:E89) -> -55506.81 | F91: =F60-F65-SUM(F87:F89) -> -20299.93017 | G91: =G60-G65-SUM(G87:G89) -> 0 | H91: =H60-H65-SUM(H87:H89) -> 0 | K91: Therm Rate | L91: =D83/100 -> 0.8813 | N91: =L91 -> 0.8813 | O91: =E83/100 -> 0.7266927126
B92: Revenue Remaining - ¢/Th | C92: =C91/C57*100 -> -0.1269437139 | D92: -0.1546023156 | E92: -0.1163402661 | F92: -0.3373272155 | G92: 0 | H92: 0 | K92: Bill Calculation | L92: =(70*L90)+(130*L91)+L89 -> 178.099666 | M92: =(M88*M90)+M89 -> 177.5684 | N92: =((70*N90)+(430*N91))+N89 -> 442.489666 | O92: =O89+(200*O90)+((N88-200)*O91) -> 395.5762138 | P92: =P89+(N88*P90) -> 430.7244
B93: check - < $4k is rounding | C93: =SUM(D93:H93) -> 3408.641334 | D93: =D60-'Pres & Prop Rev'!D192-D91 -> -8531.778442 | E93: =E60-'Pres & Prop Rev'!E192-E91 -> -108.6481492 | F93: =F60-'Pres & Prop Rev'!F192-F91 -> -6.438882691 | G93: =G60-'Pres & Prop Rev'!G192-G91 -> 11901.65147 | H93: =H60-'Pres & Prop Rev'!H192-H91 -> 153.8553409
K94: Gas Costs | L94: 0.49803 | M94: 0.49535 | N94: 0.49803 | O94: 0.49535 | P94: 0.47449
B95: Proposed Target | C95: =SUM(D95:H95) -> 155570000 | D95: =D60 -> 114618423.6 | E95: =E60 -> 33798192.39 | F95: =F60 -> 3762196.801 | G95: =G60 -> 749594.3715 | H95: =H60 -> 2641592.825 | K95: Gas Cost Revenue | L95: =L94*200 -> 99.606 | M95: =M94*200 -> 99.07 | N95: =$N$88*N94 -> 249.015 | O95: =$N$88*O94 -> 247.675 | P95: 237.245
B96: Proposed Actual | C96: ='Pres & Prop Rev'!C192-SUM('Pres & Prop Rev'!I192:J192) -> 155829185.4 | D96: ='Pres & Prop Rev'!D192 -> 114813742.7 | E96: ='Pres & Prop Rev'!E192 -> 33853807.85 | F96: ='Pres & Prop Rev'!F192 -> 3782503.17 | G96: ='Pres & Prop Rev'!G192 -> 737692.72 | H96: ='Pres & Prop Rev'!H192 -> 2641438.97 | K96: Gas Cost Difference | M96: =L95-M95 -> 0.536 | P96: =N95-P95 -> 11.77
C97: =SUM(D97:H97) -> 259185.39 | D97: =D96-D95 -> 195319.0696 | E97: =E96-E95 -> 55615.45815 | F97: =F96-F95 -> 20306.36905 | G97: =G96-G95 -> -11901.65147 | H97: =H96-H95 -> -153.8553409
B98: Rate D Check | M98: =L92-M92-M96 -> -0.004734 | P98: =N92-P92-P96 -> -0.004734
B99: Basic/Min Charge | C99: =SUM('Pres & Prop Rev'!C155:C156)/SUM('Pres & Prop Rev'!C106:C107)-1 -> -0.04344695908 | D99: =SUM('Pres & Prop Rev'!D155:D156)/SUM('Pres & Prop Rev'!D106:D107)-1 -> 0.115 | E99: =SUM('Pres & Prop Rev'!E155:E156)/SUM('Pres & Prop Rev'!E106:E107)-1 -> -0.5130575026 | F99: =SUM('Pres & Prop Rev'!F155:F156)/SUM('Pres & Prop Rev'!F106:F107)-1 -> -0.5280054645 | G99: =SUM('Pres & Prop Rev'!G155:G156)/SUM('Pres & Prop Rev'!G106:G107)-1 ->  | H99: =SUM('Pres & Prop Rev'!H155:H156)/SUM('Pres & Prop Rev'!H106:H107)-1 -> 0.25
B100: Adj. to Actual Revenue | C100: ='Pres & Prop Rev'!C168/'Pres & Prop Rev'!C119-1 ->  | D100: ='Pres & Prop Rev'!D168/'Pres & Prop Rev'!D119-1 ->  | E100: ='Pres & Prop Rev'!E168/'Pres & Prop Rev'!E119-1 ->  | F100: ='Pres & Prop Rev'!F168/'Pres & Prop Rev'!F119-1 ->  | G100: ='Pres & Prop Rev'!G168/'Pres & Prop Rev'!G119-1 ->  | H100: ='Pres & Prop Rev'!H168/'Pres & Prop Rev'!H119-1 -> 
B101: Weather & U/B Revenue | C101: ='Pres & Prop Rev'!C190/'Pres & Prop Rev'!C142-1 -> -0.01144675044 | D101: ='Pres & Prop Rev'!D190/'Pres & Prop Rev'!D142-1 -> 0 | E101: ='Pres & Prop Rev'!E190/'Pres & Prop Rev'!E142-1 -> -0.04606789999 | F101: ='Pres & Prop Rev'!F190/'Pres & Prop Rev'!F142-1 -> -0.02950758864 | G101: ='Pres & Prop Rev'!G190/'Pres & Prop Rev'!G142-1 ->  | H101: ='Pres & Prop Rev'!H190/'Pres & Prop Rev'!H142-1 -> 
B102: Block Therm Charges | C102: =SUM('Pres & Prop Rev'!C157:C161)/SUM('Pres & Prop Rev'!C108:C112)-1 -> 0.007512741709 | D102: =SUM('Pres & Prop Rev'!D157:D161)/SUM('Pres & Prop Rev'!D108:D112)-1 -> 0 | E102: =SUM('Pres & Prop Rev'!E157:E161)/SUM('Pres & Prop Rev'!E108:E112)-1 -> 0.0338001396 | F102: =SUM('Pres & Prop Rev'!F157:F161)/SUM('Pres & Prop Rev'!F108:F112)-1 -> -0.03271443705 | G102: =SUM('Pres & Prop Rev'!G157:G161)/SUM('Pres & Prop Rev'!G108:G112)-1 -> -0.03928145618 | H102: =SUM('Pres & Prop Rev'!H157:H161)/SUM('Pres & Prop Rev'!H108:H112)-1 -> 0.07027025999
B103: Overall Revenue | C103: ='Pres & Prop Rev'!C192/'Pres & Prop Rev'!C193-1 -> 0.000538304803 | D103: ='Pres & Prop Rev'!D192/'Pres & Prop Rev'!D193-1 -> 0.01465287562 | E103: ='Pres & Prop Rev'!E192/'Pres & Prop Rev'!E193-1 -> -0.04387460004 | F103: ='Pres & Prop Rev'!F192/'Pres & Prop Rev'!F193-1 -> -0.04946205075 | G103: ='Pres & Prop Rev'!G192/'Pres & Prop Rev'!G193-1 -> -0.03928145618 | H103: ='Pres & Prop Rev'!H192/'Pres & Prop Rev'!H193-1 -> 0.08506588071
B105: Avg. Usage | D105: =D57/D58 -> 67.03782415 | E105: =E57/E58 -> 1575.860318 | F105: =F57/F58 -> 18291.41337 | G105: =G57/G58 -> 53675.83333 | H105: =H57/H58 -> 61923.90818
B106: Bill Compare: | C106: =INDEX($D$2:$H$2,I106) -> SCH. 101 | F106: =INDEX($D$2:$H$2,J106) -> SCH. 111,112 | I106: 1 | J106: 2
C107: Pres | D107: Prop | E107: % Incr | F107: Pres | G107: Prop | H107: % Incr
B108: 0 | C108: =I$108+MIN($B108,M$109)*I$109/100+MAX(0,MIN($B108-M$109,M$110-M$109))*I$110/100+MAX(0,MIN($B108-M$110,M$111-M$110))*I$111/100+MAX(0,MIN($B108-M$111,M$112-M$111))*I$112/100+MAX(0,B108-M$113)*I$113/100 -> 8 | D108: =J$108+MIN($B108,N$109)*J$109/100+MAX(0,MIN($B108-N$109,N$110-N$109))*J$110/100+MAX(0,MIN($B108-N$110,N$111-N$110))*J$111/100+MAX(0,MIN($B108-N$111,N$112-N$111))*J$112/100+MAX(0,C108-N$113)*J$113/100 -> 8.92 | E108: =D108/C108-1 -> 0.115 | F108: =K$108+MIN($B108,O$109)*K$109/100+MAX(0,MIN($B108-O$109,O$110-O$109))*K$110/100+MAX(0,MIN($B108-O$110,O$111-O$110))*K$111/100+MAX(0,MIN($B108-O$111,O$112-O$111))*K$112/100+MAX(0,E108-O$113)*K$113/100 -> 161.21 | G108: =L$108+MIN($B108,P$109)*L$109/100+MAX(0,MIN($B108-P$109,P$110-P$109))*L$110/100+MAX(0,MIN($B108-P$110,P$111-P$110))*L$111/100+MAX(0,MIN($B108-P$111,P$112-P$111))*L$112/100+MAX(0,F108-P$113)*L$113/100 -> 78.5 | H108: =G108/F108-1 -> -0.5130575026 | I108: =INDEX(CHOOSE(Base1_Billing2,$D$4:$H$4,$D$14:$H$14),$I$106)+INDEX(CHOOSE(Base1_Billing2,$D$5:$H$5,$D$15:$H$15),$I$106) -> 8 | J108: =INDEX(CHOOSE(Base1_Billing2,$D$26:$H$26,$D$36:$H$36),$I$106)+INDEX(CHOOSE(Base1_Billing2,$D$27:$H$27,$D$37:$H$37),$I$106) -> 8.92 | K108: =INDEX(CHOOSE(Base1_Billing2,$D$4:$H$4,$D$14:$H$14),$J$106)+INDEX(CHOOSE(Base1_Billing2,$D$5:$H$5,$D$15:$H$15),$J$106) -> 161.21 | L108: =INDEX(CHOOSE(Base1_Billing2,$D$26:$H$26,$D$36:$H$36),$J$106)+INDEX(CHOOSE(Base1_Billing2,$D$27:$H$27,$D$37:$H$37),$J$106) -> 78.5
B109: 68 | C109: =I$108+MIN($B109,M$109)*I$109/100+MAX(0,MIN($B109-M$109,M$110-M$109))*I$110/100+MAX(0,MIN($B109-M$110,M$111-M$110))*I$111/100+MAX(0,MIN($B109-M$111,M$112-M$111))*I$112/100+MAX(0,B109-M$113)*I$113/100 -> 61.05496 | D109: =J$108+MIN($B109,N$109)*J$109/100+MAX(0,MIN($B109-N$109,N$110-N$109))*J$110/100+MAX(0,MIN($B109-N$110,N$111-N$110))*J$111/100+MAX(0,MIN($B109-N$111,N$112-N$111))*J$112/100+MAX(0,C109-N$113)*J$113/100 -> 61.97496 | E109: 0.01506839084 | F109: =K$108+MIN($B109,O$109)*K$109/100+MAX(0,MIN($B109-O$109,O$110-O$109))*K$110/100+MAX(0,MIN($B109-O$110,O$111-O$110))*K$111/100+MAX(0,MIN($B109-O$111,O$112-O$111))*K$112/100+MAX(0,E109-O$113)*K$113/100 -> 166.69148 | G109: =L$108+MIN($B109,P$109)*L$109/100+MAX(0,MIN($B109-P$109,P$110-P$109))*L$110/100+MAX(0,MIN($B109-P$110,P$111-P$110))*L$111/100+MAX(0,MIN($B109-P$111,P$112-P$111))*L$112/100+MAX(0,F109-P$113)*L$113/100 -> 112.1838 | H109: -0.3269973966 | I109: =INDEX(CHOOSE(Base1_Billing2,$D6:$H6,$D16:$H16),$I$106) -> 78.022 | J109: =INDEX(CHOOSE(Base1_Billing2,$D28:$H28,$D38:$H38),$I$106) -> 78.022 | K109: =INDEX(CHOOSE(Base1_Billing2,$D6:$H6,$D16:$H16),$J$106) -> 8.061 | L109: =INDEX(CHOOSE(Base1_Billing2,$D28:$H28,$D38:$H38),$J$106) -> 49.535 | M109: =INDEX($L6:$P6,$I$106) -> 70 | N109: =INDEX($L28:$P28,$I$106) -> 70 | O109: =INDEX($L6:$P6,$J$106) -> 200 | P109: =INDEX($L28:$P28,$J$106) -> 200
B110: 2000 | C110: 62.6154 | D110: 63.5354 | E110: 0.01469287108 | F110: 1475.334 | G110: 1415.772 | H110: -0.04037187511 | I110: =INDEX(CHOOSE(Base1_Billing2,$D7:$H7,$D17:$H17),$I$106) -> 88.13 | J110: =INDEX(CHOOSE(Base1_Billing2,$D29:$H29,$D39:$H39),$I$106) -> 88.13 | K110: =INDEX(CHOOSE(Base1_Billing2,$D7:$H7,$D17:$H17),$J$106) -> 76.179 | L110: =INDEX(CHOOSE(Base1_Billing2,$D29:$H29,$D39:$H39),$J$106) -> 72.669 | M110: =INDEX($L7:$P7,$I$106) -> 70 | N110: =INDEX($L29:$P29,$I$106) -> 70 | O110: =INDEX($L7:$P7,$J$106) -> 1000 | P110: =INDEX($L29:$P29,$J$106) -> 1000
B111: 3000 | C111: 62.6154 | D111: 63.5354 | E111: 0.01469287108 | F111: 2163.904 | G111: 2072.622 | H111: -0.04218394162 | I111: =INDEX(CHOOSE(Base1_Billing2,$D8:$H8,$D18:$H18),$I$106) -> 0 | J111: =INDEX(CHOOSE(Base1_Billing2,$D30:$H30,$D40:$H40),$I$106) -> 0 | K111: =INDEX(CHOOSE(Base1_Billing2,$D8:$H8,$D18:$H18),$J$106) -> 68.857 | L111: =INDEX(CHOOSE(Base1_Billing2,$D30:$H30,$D40:$H40),$J$106) -> 65.685 | M111: =INDEX($L8:$P8,$I$106) -> 9999999 | N111: =INDEX($L30:$P30,$I$106) -> 9999999 | O111: =INDEX($L8:$P8,$J$106) -> 9999999 | P111: =INDEX($L30:$P30,$J$106) -> 9999999
B112: 4000 | C112: 62.6154 | D112: 63.5354 | E112: 0.01469287108 | F112: 2852.474 | G112: 2729.472 | H112: -0.04312116429 | I112: =INDEX(CHOOSE(Base1_Billing2,$D9:$H9,$D19:$H19),$I$106) -> 0 | J112: =INDEX(CHOOSE(Base1_Billing2,$D31:$H31,$D41:$H41),$I$106) -> 0 | K112: =INDEX(CHOOSE(Base1_Billing2,$D9:$H9,$D19:$H19),$J$106) -> 0 | L112: =INDEX(CHOOSE(Base1_Billing2,$D31:$H31,$D41:$H41),$J$106) -> 0 | M112: =INDEX($L9:$P9,$I$106) -> 9999999 | N112: =INDEX($L31:$P31,$I$106) -> 9999999 | O112: =INDEX($L9:$P9,$J$106) -> 9999999 | P112: =INDEX($L31:$P31,$J$106) -> 9999999
B113: 5000 | C113: 62.6154 | D113: 63.5354 | E113: 0.01469287108 | F113: 3541.044 | G113: 3386.322 | H113: -0.04369389367 | I113: =INDEX(CHOOSE(Base1_Billing2,$D10:$H10,$D20:$H20),$I$106) -> 0 | J113: =INDEX(CHOOSE(Base1_Billing2,$D32:$H32,$D42:$H42),$I$106) -> 0 | K113: =INDEX(CHOOSE(Base1_Billing2,$D10:$H10,$D20:$H20),$J$106) -> 0 | L113: =INDEX(CHOOSE(Base1_Billing2,$D32:$H32,$D42:$H42),$J$106) -> 0 | M113: =INDEX($L10:$P10,$I$106) -> 9999999 | N113: =INDEX($L32:$P32,$I$106) -> 9999999 | O113: =INDEX($L10:$P10,$J$106) -> 9999999 | P113: =INDEX($L32:$P32,$J$106) -> 9999999
B114: 6000 | C114: 62.6154 | D114: 63.5354 | E114: 0.01469287108 | F114: 4229.614 | G114: 4043.172 | H114: -0.04408014537
B115: 7000 | C115: 62.6154 | D115: 63.5354 | E115: 0.01469287108 | F115: 4918.184 | G115: 4700.022 | H115: -0.0443582428
B116: 8000 | C116: 62.6154 | D116: 63.5354 | E116: 0.01469287108 | F116: 5606.754 | G116: 5356.872 | H116: -0.04456803348
B117: 9000 | C117: 62.6154 | D117: 63.5354 | E117: 0.01469287108 | F117: 6295.324 | G117: 6013.722 | H117: -0.04473193119
B118: 10000 | C118: 62.6154 | D118: 63.5354 | E118: 0.01469287108 | F118: 6983.894 | G118: 6670.572 | H118: -0.04486351024
B119: 11000 | C119: 62.6154 | D119: 63.5354 | E119: 0.01469287108 | F119: 7672.464 | G119: 7327.422 | H119: -0.04497147201
B120: 12000 | C120: 62.6154 | D120: 63.5354 | E120: 0.01469287108 | F120: 8361.034 | G120: 7984.272 | H120: -0.04506165147
B121: 13000 | C121: 62.6154 | D121: 63.5354 | E121: 0.01469287108 | F121: 9049.604 | G121: 8641.122 | H121: -0.0451381077
B122: 14000 | C122: 62.6154 | D122: 63.5354 | E122: 0.01469287108 | F122: 9738.174 | G122: 9297.972 | H122: -0.04520375175

Sheet ROR (hidden)
B1: AVISTA UTILITIES
B2: WASHINGTON GAS
B3: PRESENT & PROPOSED RATE OF RETURN BY RATE SCHEDULE
B4: 12 MONTHS ENDED JUNE 30, 2013
C7: Total | D7: Sch 101 | E7: Sch 111 | F7: Sch 121 | G7: Sch 131 | H7: Sch 146 | K7: COS Line
B8: Total Rate Base | C8: =SUM(D8:H8) -> 249360000 | D8: 193733067 | E8: 39932442.33 | F8: 3569118.479 | G8: 851456.4145 | H8: 11273915.82 | I8: from COS | K8: 461
D9: 0 | E9: 0 | F9: 0 | G9: 0 | H9: 0
B10: Revenue From Retail Rates | C10: =SUM(D10:H10) -> 148485000 | D10: 107941456.7 | E10: 33798192.39 | F10: 3762196.801 | G10: 730099.8267 | H10: 2253054.293 | I10: from COS | K10: 463
B11: Other Operating Revenues | C11: =SUM(D11:H11) -> 1950000 | D11: 1515027.401 | E11: 312191.2145 | F11: 27889.64853 | G11: 6654.334069 | H11: 88237.40177 | I11: from COS | K11: 464
B12: Total Revenues | C12: =IF(ROUND(C10+C11,0)<>ROUND(SUM(D12:H12),0),#VALUE!,SUM(D12:H12)) -> 150435000 | D12: =D10+D11 -> 109456484.1 | E12: =E10+E11 -> 34110383.61 | F12: =F10+F11 -> 3790086.449 | G12: =G10+G11 -> 736754.1608 | H12: =H10+H11 -> 2341291.695
B14: Total Operating Exp b4 conv items & taxes | C14: =SUM(D14:H14) -> 127031000 | D14: =D17-D15-D16 -> 94631951.57 | E14: =E17-E15-E16 -> 27138103.92 | F14: =F17-F15-F16 -> 3049831.591 | G14: =G17-G15-G16 -> 641279.3185 | H14: =H17-H15-H16 -> 1569833.617
B15: Revenue Related conversion items | C15: =SUM(D15:H15) -> 7420000 | D15: 5393983.289 | E15: 1688942.234 | F15: 188002.1569 | G15: 36484.09411 | H15: 112588.2268 | I15: from COS | K15: 530
B16: Income Taxes | C16: =SUM(D16:H16) -> 3873000 | D16: 1762345.792 | E16: 1756695.08 | F16: 190406.3109 | G16: 15065.69481 | H16: 148487.1223 | I16: from COS | K16: 484
B17: Total Expenses | C17: =IF(ROUND(SUM(C14:C16),0)<>ROUND(SUM(D17:H17),0),#VALUE!,SUM(D17:H17)) -> 138324000 | D17: 101788280.7 | E17: 30583741.23 | F17: 3428240.059 | G17: 692829.1074 | H17: 1830908.967 | I17: from COS | K17: 485
B19: Net Operating Income | C19: =IF(ROUND(C12-C17,0)<>ROUND(SUM(D19:H19),0),#VALUE!,SUM(D19:H19)) -> 12110999.99 | D19: =D12-D17 -> 7668203.438 | E19: =E12-E17 -> 3526642.375 | F19: =F12-F17 -> 361846.3905 | G19: =G12-G17 -> 43925.05337 | H19: =H12-H17 -> 510382.7285
B20: Present Rate of Return | C20: =C19/C8 -> 0.04856833488 | D20: =D19/D8 -> 0.03958128346 | E20: 0.08831521865 | F20: 0.1013825662 | G20: 0.05158814076 | H20: =H19/H8 -> 0.04527111404
B21: Present Return Ratio | C21: =C20/$C20 -> 1 | D21: =D20/$C20 -> 0.8149606848 | E21: 1.81837032 | F21: 2.087421083 | G21: 1.062176434 | H21: =H20/$C20 -> 0.9321117174
B23: Interest Expense | C23: =SUM(D23:H23) -> 6702000 | D23: 5206925.789 | E23: 1073256.45 | F23: 95926.50002 | G23: 22884.4277 | H23: 303006.8327 | I23: from COS | K23: 491
B25: Proposed Misc Revenue Increase | C25: 0
B26: Proposed Rate Revenue Increase | C26: 7085000 | D26: =C26/C10 -> 0.04771525743 | J26: % excludes special contract revenue
B27: Proposed Rev Increase | C27: =C25+C26 -> 7085000
D28: change
B29: Proposed Rate Revenues | C29: =C10+C26 -> 155570000 | D29: =C29-C10 -> 7085000 | F29: Uncollectibles | G29: 0.004449
B30: incremental conversion expenses | C30: =ROUND(C27*G29,-3)+ROUND(C27*G30,-3)+ROUND(C27*G31,-3) -> 318000 | F30: Commiss Fees | G30: 0.002
B31: incremental Income Taxes | C31: =ROUND(C27*G32,-3) -> 2369000 | F31: Excise Tax | G31: 0.038349
B32: Proposed Return | C32: =C19+C27-C30-C31 -> 16508999.99 | D32: =C32-C19 -> 4398000 | F32: Federal Inc Tax | G32: 0.334321
B33: Proposed Return % | C33: =C32/C8 -> 0.06620548599
B35: Allocation of incremental Misc Rev | C35: =SUM(D35:H35) -> 0 | D35: 0 | E35: 0 | F35: 0 | G35: 0 | H35: 0 | I35: from COS
B37: Target Relative Return | C37: =C38/C33 -> 1 | D37: =D39/D8/C33 -> 0.9106560638 | E37: 1.380873479 | F37: 1.588287154 | G37: 1 | H37: 1 | I37: Input | K37: =D26 -> 0.04771525743
B38: Target Return % | C38: =C39/C8 -> 0.06620548599 | D38: 0.06029042727 | E38: =E39/E8 -> 0.09142139976 | F38: =F39/F8 -> 0.1051533229 | G38: 0.06620548599 | H38: =H39/H8 -> 0.06620548599
B39: Target Return (NOI b4 Interest) | C39: =C32 -> 16508999.99 | D39: =$C$32-SUM(E39:H39) -> 11680249.38 | E39: =E8*E37*$C$32/$C$8 -> 3650679.773 | F39: =F8*F37*$C$32/$C$8 -> 375304.6679 | G39: =G8*G37*$C$32/$C$8 -> 56371.08572 | H39: =H8*H37*$C$32/$C$8 -> 746395.0755 | I39: =ROUND(C39-SUM(D39:H39),0) -> 0
B40: Target Return after Interest Expense | C40: =C39-C23 -> 9806999.986 | D40: 6473323.594 | E40: 2577423.323 | F40: 279378.1679 | G40: 33486.65803 | H40: 443388.2429 | I40: =ROUND(C40-SUM(D40:H40),0) -> 0
B41: Target Return b4 Income Taxes & Interest | C41: =C40+C16+C31+C23 -> 22750999.99 | D41: =D40+D23+D40/$C40*SUM($C$16,$C$31) -> 15800417.22 | E41: =E40+E23+E40/$C40*SUM($C$16,$C$31) -> 5291168.853 | F41: =F40+F23+F40/$C40*SUM($C$16,$C$31) -> 553124.4421 | G41: =G40+G23+G40/$C40*SUM($C$16,$C$31) -> 77684.81262 | H41: =H40+H23+H40/$C40*SUM($C$16,$C$31) -> 1028604.662 | I41: 0
B42: Target Return b4 Misc Rev | C42: =C41-C11-$C$25*C35 -> 20800999.99 | D42: =D41-D11-$C$25*D35 -> 14285389.82 | E42: 4978977.639 | F42: 525234.7936 | G42: =G41-G11-$C$25*G35 -> 71030.47855 | H42: =H41-H11-$C$25*H35 -> 940367.2604 | I42: 0
B43: =B14 -> Total Operating Exp b4 conv items & taxes | C43: 127031000 | D43: 94631951.57 | E43: 27138103.92 | F43: 3049831.591 | G43: =G14 -> 641279.3185 | H43: =H14 -> 1569833.617 | I43: 0
B44: Conversion Items | C44: =C15+C30 -> 7738000 | D44: =$C44*D46/$C46 -> 5701082.226 | E44: =$C44*E46/$C46 -> 1681110.836 | F44: =$C44*F46/$C46 -> 187130.4162 | G44: =$C44*G46/$C46 -> 37284.57444 | H44: =$C44*H46/$C46 -> 131391.9476 | I44: 0
B45: Incremental Rate Revenue | C45: =C26 -> 7085000 | D45: =(D42-D10+D14+($C$44*D10)/$C$29)/(1-$C$44/$C$29) -> 6676966.923 | E45: =(E42-E10+E14+($C$44*E10)/$C$29)/(1-$C$44/$C$29) -> 1.127081626e-08 | F45: =(F42-F10+F14+($C$44*F10)/$C$29)/(1-$C$44/$C$29) -> -1.133207069e-09 | G45: =(G42-G10+G14+($C$44*G10)/$C$29)/(1-$C$44/$C$29) -> 19494.54478 | H45: =(H42-H10+H14+($C$44*H10)/$C$29)/(1-$C$44/$C$29) -> 388538.5321 | I45: 0 | K45: CM %
B46: Target Rate Revenue | C46: =C42+C43+C44 -> 155570000 | D46: =D10+D45 -> 114618423.6 | E46: =E10+E45 -> 33798192.39 | F46: =F10+F45 -> 3762196.801 | G46: =G10+G45 -> 749594.3715 | H46: =H10+H45 -> 2641592.825 | I46: 0
B47: Change in Rate Revenue | C47: =C46/C10-1 -> 0.04771525743 | D47: =D46/D10-1 -> 0.06185729865 | E47: =E46/E10-1 -> 0 | F47: =F46/F10-1 -> 0 | G47: =G46/G10-1 -> 0.0267012045 | H47: =H46/H10-1 -> 0.1724496978 | K47: 0.7744632691 | L47: 0.1723073562 | M47: 0.01618719029 | N47: 0.002716932305 | O47: 0.03432525206
B49: Incremental Rate Revenue - rounded | C49: =SUM(D49:H49) -> 7084000 | D49: =ROUND(D45,-3) -> 6677000 | E49: =ROUND(E45,-3)-1000 -> -1000 | F49: 0 | G49: 19000 | H49: 389000 | K49: =$C$26*K47 -> 5487072.262 | L49: =$C$26*L47 -> 1220797.619 | M49: 114686.2432 | N49: 19249.46538 | O49: =$C$26*O47 -> 243194.4108
B50: Target Rate Revenue - rounded | C50: =SUM(D50:H50) -> 155570000 | D50: 114618000 | E50: 33798000 | F50: 3762000 | G50: 750000 | H50: 2642000
B52: Billed Revenue | C52: =SUM(D52:I52) -> 156193000 | D52: 112307000 | E52: 35342000 | F52: 3987000 | G52: 759000 | H52: 2254000 | I52: 1544000 | K52: =SUM(K49:O49) -> 7085000
B53: Billed Increase | C53: =C45/C52 -> 0.04536054753 | D53: =D45/D52 -> 0.0594528117 | E53: =E45/E52 -> 3.189071432e-16 | F53: -2.842255002e-16 | G53: 0.02568451222 | H53: 0.1723773434
B57: % movement towards unity | D57: =(D37-D21)/(1-D21) -> 0.5171624141 | E57: =(E37-E21)/(1-E21) -> 0.5345951955 | F57: 0.4590070372 | G57: 1 | H57: 1
K59: ='Rate Design'!H91 -> 0
C60: 1 | D60: 7788207.675 | E60: 5768.480443 | F60: -30715.24841 | G60: 65594.55615 | H60: 1303144.536 | K60: =K59/H45 -> 0
C61: 0.5 | D61: =D60/2 -> 3894103.838 | E61: =E60/2 -> 2884.240222 | F61: -15357.62421 | G61: 32797.27808 | H61: 651572.2682
C62: 0.75 | D62: =D60*75% -> 5841155.757 | E62: =E60*75% -> 4326.360332 | F62: -23036.43631 | G62: 49195.91712 | H62: 977358.4023

Sheet BFG (hidden)
A1: AVISTA UTILITIES
A2: GAS ANNUAL MINIMUM DEFICIENCY FOR B.F. GOODRICH
A3: STATE OF WASHINGTON
A4: BASED ON 2007 ANNUAL MINIMUM
F6: Gas
A7: Annual Minimum Usage Requirement(1) | F7: 10500000
A8: Less: Jan 09 - Dec 09 Usage(2) | F8: =SUMIF('Big Schedules'!$A$4:$A$44,"BF Goodrich",'Big Schedules'!$N$4:$N$44) -> 0
A9: Usage Deficiency | F9: =F7-F8 -> 10500000
A10: Deficiency Charge per therm(3) | F10: 0
A11: Annual Minimum Deficiency | F11: =F9*F10 -> 0
A16: (1) Per Contract - workpaper BJH-G-36
A17: (2) From workpaper BJH-G-9
A18: (3) From workpaper BJH-G-35
A21: ** Annual Minimum Ended in 2009
F24: =ROUND(F11-'Pres & Prop Rev'!J113,0) -> 0

Sheet Bill Determ (hidden)
A1: AVISTA UTILITIES
A2: WASHINGTON GAS
A3: USAGE & BILLINGS BY RATE SCHEDULE | C3: Billing Determinants
A4: 12 MONTHS ENDED JUNE 30, 2013 | C4: Rate Year
B5: Current | J5: Last GRC | R5: Difference | Z5: Percentage | AH5: 2015 | AP5: 2016
A6: Schedule 101 | B6: Total therms | C6: Total Billings | E6: 0-70 | F6: >70 | G6: Total Therms | J6: Total therms | K6: Total Billings | M6: 0-70 | N6: >70 | O6: Total Therms | R6: Total therms | S6: Total Billings | U6: 0-70 | V6: >70 | W6: Total Therms | Z6: Total therms | AA6: Total Billings | AC6: 0-70 | AD6: >70 | AE6: Total Therms | AH6: Total therms | AI6: Total Billings | AK6: 0-70 | AL6: >70 | AM6: Total Therms | AP6: Total therms | AQ6: Total Billings | AS6: 0-70 | AT6: >70 | AU6: Total Therms
A7: therms per Revenue Run(1)(2) | B7: =IF($C$4="Rate Year",AH7,IF($C$4=2016,AP7,'Rev Runs CY'!O38)) -> 117011207 | C7: =IF($C$4="Rate Year",AI7,IF($C$4=2016,AQ7,'Rev Runs CY'!O12*12)) -> 1802235 | E7: =IF($C$4="Rate Year",AK7,IF($C$4="2016",AS7,'Block Usage'!O17)) -> 74519037.37 | F7: =IF($C$4="Rate Year",AL7,IF($C$4="2016",AT7,'Block Usage'!O18)) -> 42492169.63 | G7: =SUM(D7:F7) -> 117011207 | J7: 123192356 | K7: 1748256 | M7: 75494547 | N7: 47697809 | O7: =SUM(L7:N7) -> 123192356 | R7: =B7-J7 -> -6181149 | S7: =C7-K7 -> 53979 | U7: =E7-M7 -> -975509.633 | V7: =F7-N7 -> -5205639.367 | W7: =SUM(T7:V7) -> -6181149 | Z7: =R7/J7 -> -0.05017477708 | AA7: =S7/K7 -> 0.03087591291 | AC7: =U7/M7 -> -0.01292159066 | AD7: =V7/N7 -> -0.1091379138 | AE7: =W7/O7 -> -0.05017477708 | AH7: 117011207 | AI7: 1802235 | AK7: 74519037.37 | AL7: 42492169.63 | AM7: =SUM(AJ7:AL7) -> 117011207 | AP7: 117834261 | AQ7: 1818533 | AS7: 75043202.47 | AT7: 42791058.53 | AU7: =SUM(AR7:AT7) -> 117834261
G8: =IF($C$4="Rate Year",AM8,IF($C$4="2016",AU8,'Rev Runs CY'!O38)) -> 117011207 | O8: 123192356 | W8: =G8-O8 -> -6181149 | AE8: =W8/O8 -> -0.05017477708 | AM8: 117011207 | AU8: 117834261
A9: Schedule 111,112 | B9: 0-200 thms | C9: 201-1000 thms | D9: > 1000 thms | G9: =G8-G7 -> 0 | J9: 0-200 thms | K9: 201-1000 thms | L9: > 1000 thms | O9: =O8-O7 -> 0 | R9: 0-200 thms | S9: 201-1000 thms | T9: > 1000 thms | W9: =W8-W7 -> -7.450580597e-09 | Z9: 0-200 thms | AA9: 201-1000 thms | AB9: > 1000 thms | AE9: =W9/O9 ->  | AH9: 0-200 thms | AI9: 201-1000 thms | AJ9: > 1000 thms | AM9: =AM8-AM7 -> 0 | AP9: 0-200 thms | AQ9: 201-1000 thms | AR9: > 1000 thms | AU9: =AU8-AU7 -> 0
A10: therms by block(2) | B10: =IF($C$4="Rate Year",AH10,IF($C$4="2016",AP10,'Block Usage'!O35)) -> 5632648.155 | C10: =IF($C$4="Rate Year",AI10,IF($C$4="2016",AQ10,'Block Usage'!O36)) -> 14800996.82 | D10: =IF($C$4="Rate Year",AJ10,IF($C$4="2016",AR10,'Block Usage'!O37)) -> 25823248.03 | E10: =SUM(B10:D10) -> 46256893 | J10: 5241853 | K10: 14630620 | L10: 29785967 | M10: =SUM(J10:L10) -> 49658440 | R10: =B10-J10 -> 390795.1548 | S10: =C10-K10 -> 170376.8151 | T10: =D10-L10 -> -3962718.97 | U10: =SUM(R10:T10) -> -3401547 | Z10: =R10/J10 -> 0.07455286418 | AA10: =S10/K10 -> 0.01164522181 | AB10: =T10/L10 -> -0.1330397959 | AC10: =U10/M10 -> -0.06849886948 | AH10: 5632648.155 | AI10: 14800996.82 | AJ10: 25823248.03 | AK10: =SUM(AH10:AJ10) -> 46256893 | AP10: 5700235.584 | AQ10: 14978597.35 | AR10: 26133107.07 | AS10: =SUM(AP10:AR10) -> 46811940
A11: less: shifted to Sch 146 | B11: 0 | C11: 0 | D11: 0 | E11: =SUM(B11:D11) -> 0 | J11: -10800 | K11: -49200 | L11: -1989404 | M11: =SUM(J11:L11) -> -2049404 | R11: 10800 | S11: 49200 | T11: 1989404 | U11: =SUM(R11:T11) -> 2049404 | Z11: -1 | AA11: -1 | AB11: -1 | AC11: -1 | AH11: 0 | AI11: 0 | AJ11: 0 | AK11: =SUM(AH11:AJ11) -> 0 | AP11: 0 | AQ11: 0 | AR11: 0 | AS11: =SUM(AP11:AR11) -> 0
A12: Total therms by block | B12: =SUM(B10:B11) -> 5632648.155 | C12: =SUM(C10:C11) -> 14800996.82 | D12: =SUM(D10:D11) -> 25823248.03 | E12: =SUM(E10:E11) -> 46256893 | J12: =SUM(J10:J11) -> 5231053 | K12: =SUM(K10:K11) -> 14581420 | L12: =SUM(L10:L11) -> 27796563 | M12: =SUM(M10:M11) -> 47609036 | R12: =SUM(R10:R11) -> 401595.1548 | S12: =SUM(S10:S11) -> 219576.8151 | T12: =SUM(T10:T11) -> -1973314.97 | U12: =SUM(U10:U11) -> -1352143 | Z12: 0.07677137945 | AA12: 0.01505867159 | AB12: -0.07099132975 | AC12: -0.02840097413 | AH12: =SUM(AH10:AH11) -> 5632648.155 | AI12: =SUM(AI10:AI11) -> 14800996.82 | AJ12: =SUM(AJ10:AJ11) -> 25823248.03 | AK12: =SUM(AK10:AK11) -> 46256893 | AP12: =SUM(AP10:AP11) -> 5700235.584 | AQ12: =SUM(AQ10:AQ11) -> 14978597.35 | AR12: =SUM(AR10:AR11) -> 26133107.07 | AS12: =SUM(AS10:AS11) -> 46811940
A13: Per Rev. Run(1) | E13: =IF($C$4="Rate Year",AK13,IF($C$4="2016",AS13,'Rev Runs CY'!O39+'Rev Runs CY'!O40)) -> 46256893 | F13: =IF($C$4="Rate Year",AL13,IF($C$4="2016",AT13,SUM('Rev Runs CY'!O13:O14)*12)) -> 30276 | M13: 49403582 | N13: 28837 | U13: =E13-M13 -> -3146689 | V13: =F13-N13 -> 1439 | AC13: =U13/M13 -> -0.06369353947 | AD13: 0.04990116864 | AK13: 46256893 | AL13: 30276 | AS13: 46811940 | AT13: 30654
A14: less: shifted to Sch. 146 (2) | B14: 0 | C14: 0 | D14: 0 | E14: =SUM(B14:D14) -> 0 | F14: 0 | J14: -10800 | K14: -49200 | L14: -1989404 | M14: -2049404 | N14: -54 | R14: =B14-J14 -> 10800 | S14: 49200 | T14: 1989404 | U14: 2049404 | V14: =F14-N14 -> 54 | Z14: =R14/J14 -> -1 | AA14: =S14/K14 -> -1 | AB14: =T14/L14 -> -1 | AC14: -1 | AD14: -1 | AH14: 0 | AI14: 0 | AJ14: 0 | AK14: =SUM(AH14:AJ14) -> 0 | AL14: 0 | AP14: 0 | AQ14: 0 | AR14: 0 | AS14: =SUM(AP14:AR14) -> 0 | AT14: 0
A15: less: shifted from Sch. 121 | E15: 0 | F15: 0 | M15: 0 | N15: 0 | U15: =E15-M15 -> 0 | V15: =F15-N15 -> 0 | AK15: 0 | AL15: 0 | AS15: 0 | AT15: 0
A16: Total | E16: =E13+E14+E15 -> 46256893 | F16: =F13+F14+F15 -> 30276 | M16: 47354178 | N16: 28783 | U16: =E16-M16 -> -1097285 | V16: =F16-N16 -> 1493 | AC16: -0.02317187303 | AD16: 0.05187089602 | AK16: =AK13+AK14+AK15 -> 46256893 | AL16: =AL13+AL14+AL15 -> 30276 | AS16: =AS13+AS14+AS15 -> 46811940 | AT16: =AT13+AT14+AT15 -> 30654
A17: Adjust. To Actual | E17: =E16-E12 -> 0 | M17: =M16-M12 -> -254858 | U17: =U16-U12 -> 254858 | AC17: =U17/M17 -> -1 | AK17: =AK16-AK12 -> 0 | AS17: =AS16-AS12 -> 0
D19: 1001-10000 | E19: 10000- | G19: Total | L19: 1001-10000 | M19: 10000- | O19: Total | T19: 1001-10000 | U19: 10000- | W19: Total | AB19: 1001-10000 | AC19: 10000- | AE19: Total | AJ19: 1001-10000 | AK19: 10000- | AM19: Total | AR19: 1001-10000 | AS19: 10000- | AU19: Total
A20: Schedule 121,122 | B20: 0-500 thms | C20: 501-1000 thms | D20: therms | E20: 25000 thms | F20: >25000 thms | G20: therms | H20: Total Billings | J20: 0-500 thms | K20: 501-1000 thms | L20: therms | M20: 25000 thms | N20: >25000 thms | O20: therms | P20: Total Billings | R20: 0-500 thms | S20: 501-1000 thms | T20: therms | U20: 25000 thms | V20: >25000 thms | W20: therms | X20: Total Billings | Z20: 0-500 thms | AA20: 501-1000 thms | AB20: therms | AC20: 25000 thms | AD20: >25000 thms | AE20: therms | AF20: Total Billings | AH20: 0-500 thms | AI20: 501-1000 thms | AJ20: therms | AK20: 25000 thms | AL20: >25000 thms | AM20: therms | AN20: Total Billings | AP20: 0-500 thms | AQ20: 501-1000 thms | AR20: therms | AS20: 25000 thms | AT20: >25000 thms | AU20: therms | AV20: Total Billings
A21: therms by block(3) | B21: =IF($C$4="Rate Year",AH21,IF($C$4="2016",AP21,'Big Schedules'!P89)) -> 177068.4321 | C21: =IF($C$4="Rate Year",AI21,IF($C$4="2016",AQ21,'Big Schedules'!Q89)) -> 176745.5418 | D21: =IF($C$4="Rate Year",AJ21,IF($C$4="2016",AR21,'Big Schedules'!R89)) -> 2926400.732 | E21: =IF($C$4="Rate Year",AK21,IF($C$4="2016",AS21,'Big Schedules'!S89)) -> 1786297.02 | F21: =IF($C$4="Rate Year",AL21,IF($C$4="2016",AT21,'Big Schedules'!T89)) -> 874046.2739 | G21: =SUM(B21:F21) -> 5940558 | H21: =IF($C$4="Rate Year",AN21,IF($C$4="2016",AV21,28*12)) -> 329 | J21: 156000 | K21: 156000 | L21: 2638873 | M21: 1825796 | N21: 1360194 | O21: =SUM(J21:N21) -> 6136863 | P21: 312 | R21: =B21-J21 -> 21068.43213 | S21: 20745.54177 | T21: 287527.7322 | U21: -39498.97999 | V21: -486147.7261 | W21: =SUM(R21:V21) -> -196305 | X21: =H21-P21 -> 17 | Z21: =R21/J21 -> 0.1350540521 | AA21: 0.1329842421 | AB21: 0.1089585335 | AC21: -0.02163384079 | AD21: -0.3574105797 | AE21: =W21/O21 -> -0.03198784134 | AF21: =X21/P21 -> 0.05448717949 | AH21: 177068.4321 | AI21: 176745.5418 | AJ21: 2926400.732 | AK21: 1786297.02 | AL21: 874046.2739 | AM21: =SUM(AH21:AL21) -> 5940558 | AN21: 329 | AP21: 177380.3592 | AQ21: 177056.9001 | AR21: 2931555.935 | AS21: 1789443.795 | AT21: 875586.0105 | AU21: =SUM(AP21:AT21) -> 5951023 | AV21: 329
B23: first | C23: next | D23: next | E23: over | F23: Total | J23: first | K23: next | L23: next | M23: over | N23: Total | R23: first | S23: next | T23: next | U23: over | V23: Total | Z23: first | AA23: next | AB23: next | AC23: over | AD23: Total | AH23: first | AI23: next | AJ23: next | AK23: over | AL23: Total | AP23: first | AQ23: next | AR23: next | AS23: over | AT23: Total
A24: Schedule 131,132 | B24: 10000 thms | C24: 15000 thms | D24: 25000 thms | E24: 50000 thms | F24: therms | G24: Total Billings | J24: 10000 thms | K24: 15000 thms | L24: 25000 thms | M24: 50000 thms | N24: therms | O24: Total Billings | R24: 10000 thms | S24: 15000 thms | T24: 25000 thms | U24: 50000 thms | V24: therms | W24: Total Billings | Z24: 10000 thms | AA24: 15000 thms | AB24: 25000 thms | AC24: 50000 thms | AD24: therms | AE24: Total Billings | AH24: 10000 thms | AI24: 15000 thms | AJ24: 25000 thms | AK24: 50000 thms | AL24: therms | AM24: Total Billings | AP24: 10000 thms | AQ24: 15000 thms | AR24: 25000 thms | AS24: 50000 thms | AT24: therms | AU24: Total Billings
A25: billed/pro forma therms(3) | B25: =IF($C$4="Rate Year",AH25,IF($C$4="2016",AP25,'Big Schedules'!P103)) -> 240000 | C25: =IF($C$4="Rate Year",AI25,IF($C$4="2016",AQ25,'Big Schedules'!Q103)) -> 360000 | D25: =IF($C$4="Rate Year",AJ25,IF($C$4="2016",AR25,'Big Schedules'!R103)) -> 449337.6777 | E25: =IF($C$4="Rate Year",AK25,IF($C$4="2016",AS25,'Big Schedules'!S103)) -> 238882.3223 | F25: =SUM(B25:E25) -> 1288220 | G25: =IF($C$4="Rate Year",AM25,IF($C$4="2016",AU25,24)) -> 24 | J25: 120000 | K25: 175338 | L25: 211422 | M25: 136145 | N25: =SUM(J25:M25) -> 642905 | O25: 12 | R25: =B25-J25 -> 120000 | S25: 184662 | T25: 237915.6777 | U25: 102737.3223 | V25: =SUM(R25:U25) -> 645315 | W25: =G25-O25 -> 12 | Z25: =R25/J25 -> 1 | AA25: 1.053177292 | AB25: 1.12531183 | AC25: 0.7546169323 | AD25: 1.00374861 | AE25: =W25/O25 -> 1 | AH25: 240000 | AI25: 360000 | AJ25: 449337.6777 | AK25: 238882.3223 | AL25: =SUM(AH25:AK25) -> 1288220 | AM25: 24 | AP25: 240000 | AQ25: 360000 | AR25: 445978.5159 | AS25: 237096.4841 | AT25: =SUM(AP25:AS25) -> 1283075 | AU25: 24
B27: first | C27: next | D27: next | E27: next | F27: over | G27: Total | J27: first | K27: next | L27: next | M27: next | N27: over | O27: Total | R27: first | S27: next | T27: next | U27: next | V27: over | W27: Total | Z27: first | AA27: next | AB27: next | AC27: next | AD27: over | AE27: Total | AH27: first | AI27: next | AJ27: next | AK27: next | AL27: over | AM27: Total | AP27: first | AQ27: next | AR27: next | AS27: next | AT27: over | AU27: Total
A28: Schedule 146 | B28: 20000 thms | C28: 30000 thms | D28: 250000 thms | E28: 200000 thms | F28: 500000 thms | G28: therms | H28: Total Billings | J28: 20000 thms | K28: 30000 thms | L28: 250000 thms | M28: 200000 thms | N28: 500000 thms | O28: therms | P28: Total Billings | R28: 20000 thms | S28: 30000 thms | T28: 250000 thms | U28: 200000 thms | V28: 500000 thms | W28: therms | X28: Total Billings | Z28: 20000 thms | AA28: 30000 thms | AB28: 250000 thms | AC28: 200000 thms | AD28: 500000 thms | AE28: therms | AF28: Total Billings | AH28: 20000 thms | AI28: 30000 thms | AJ28: 250000 thms | AK28: 200000 thms | AL28: 500000 thms | AM28: therms | AN28: Total Billings | AP28: 20000 thms | AQ28: 30000 thms | AR28: 250000 thms | AS28: 200000 thms | AT28: 500000 thms | AU28: therms | AV28: Total Billings
A29: billed/pro forma therms(4) | B29: =IF($C$4="Rate Year",AH29,IF($C$4="2016",AP29,'Big Schedules'!P44)) -> 8309188.101 | C29: =IF($C$4="Rate Year",AI29,IF($C$4="2016",AQ29,'Big Schedules'!Q44)) -> 7562640.75 | D29: =IF($C$4="Rate Year",AJ29,IF($C$4="2016",AR29,'Big Schedules'!R44)) -> 11926882.25 | E29: =IF($C$4="Rate Year",AK29,IF($C$4="2016",AS29,'Big Schedules'!S44)) -> 2839692.666 | F29: =IF($C$4="Rate Year",AL29,IF($C$4="2016",AT29,'Big Schedules'!T44)) -> 385474.2343 | G29: =SUM(B29:F29) -> 31023878 | H29: =IF($C$4="Rate Year",AN29,IF($C$4="2016",AV29,38*12)) -> 501 | J29: 7725697.27 | K29: 7336427.73 | L29: 11915987 | M29: 2350212 | N29: 120325 | O29: =SUM(J29:N29) -> 29448649 | P29: 444 | R29: =B29-J29 -> 583490.8313 | S29: 226213.0191 | T29: 10895.24875 | U29: 489480.6665 | V29: 265149.2343 | W29: =SUM(R29:V29) -> 1575229 | X29: =H29-P29 -> 57 | Z29: =R29/J29 -> 0.07552597661 | AA29: 0.03083421898 | AB29: 0.0009143387581 | AC29: 0.2082708566 | AD29: 2.203608845 | AE29: =W29/O29 -> 0.05349070513 | AF29: =X29/P29 -> 0.1283783784 | AH29: 8309188.101 | AI29: 7562640.75 | AJ29: 11926882.25 | AK29: 2839692.666 | AL29: 385474.2343 | AM29: =SUM(AH29:AL29) -> 31023878 | AN29: 501 | AP29: 8301352.675 | AQ29: 7555509.305 | AR29: 11915635.4 | AS29: 2837014.884 | AT29: 385110.7385 | AU29: =SUM(AP29:AT29) -> 30994623 | AV29: 496
A31: Sch. 147-Interdepartmental(3) | B31: Total therms | J31: Total therms | R31: Total therms | Z31: Total therms | AH31: Total therms | AP31: Total therms
A32: billed/pro forma therms | B32: =IF($C$4="Rate Year",AH32,IF($C$4="2016",AP32,'Big Schedules'!N127)) -> 739726.9982 | J32: 986014 | R32: =B32-J32 -> -246287.0018 | Z32: =R32/J32 -> -0.2497804309 | AH32: 739726.9982 | AP32: 749030.3418
A34: Sch. 148-Sp. Contracts(3) | B34: Total therms | C34: Total Billings | J34: Total therms | K34: Total Billings | R34: Total therms | S34: Total Billings | Z34: Total therms | AA34: Total Billings | AH34: Total therms | AI34: Total Billings | AP34: Total therms | AQ34: Total Billings
A35: Kaiser -Trentwood | B35: =IF($C$4="Rate Year",AH35,IF($C$4="2016",AP35,'Big Schedules'!N111)) -> 20651785.81 | C35: =IF($C$4="Rate Year",AI35,IF($C$4="2016",AQ35,12)) -> 12 | J35: 20176537 | K35: 12 | R35: =B35-J35 -> 475248.8136 | S35: =C35-K35 -> 0 | Z35: =R35/J35 -> 0.02355452839 | AA35: =S35/K35 -> 0 | AH35: 20651785.81 | AI35: 12 | AP35: 20911517.66 | AQ35: 12
A36: Lamb-Weston | B36: =IF($C$4="Rate Year",AH36,IF($C$4="2016",AP36,'Big Schedules'!N112)) -> 7028636.3 | C36: 12 | J36: 7301077 | K36: 12 | R36: -272440.6998 | S36: 0 | Z36: -0.03731513854 | AA36: 0 | AH36: 7028636.3 | AI36: 12 | AP36: 7117033.532 | AQ36: 12
A37: Mutual Materials | B37: =IF($C$4="Rate Year",AH37,IF($C$4="2016",AP37,'Big Schedules'!N113)) -> 1730058.151 | C37: 12 | J37: 1613790 | K37: 12 | R37: 116268.1512 | S37: 0 | Z37: 0.07204664247 | AA37: 0 | AH37: 1730058.151 | AI37: 12 | AP37: 1751816.618 | AQ37: 12
A38: Washington Potato | B38: =IF($C$4="Rate Year",AH38,IF($C$4="2016",AP38,'Big Schedules'!N114)) -> 6121047.949 | C38: =IF($C$4="Rate Year",AI38,IF($C$4="2016",AQ38,12)) -> 12 | J38: 5924708 | K38: 12 | R38: 196339.9489 | S38: 0 | Z38: 0.03313917731 | AA38: 0 | AH38: 6121047.949 | AI38: 12 | AP38: 6198030.691 | AQ38: 12
A39: Total | B39: =SUM(B35:B38) -> 35531528.21 | C39: =SUM(C35:C38) -> 48 | J39: =SUM(J35:J38) -> 35016112 | K39: =SUM(K35:K38) -> 48 | R39: =SUM(R35:R38) -> 515416.2139 | S39: =SUM(S35:S38) -> 0 | Z39: =R39/J39 -> 0.01471940157 | AA39: =S39/K39 -> 0 | AH39: =SUM(AH35:AH38) -> 35531528.21 | AI39: =SUM(AI35:AI38) -> 48 | AP39: =SUM(AP35:AP38) -> 35978398.5 | AQ39: =SUM(AQ35:AQ38) -> 48
A41: Wash. State Univ. | B41: =IF($C$4="Rate Year",AH41,IF($C$4="2016",AP41,MAX(8000000,'Big Schedules'!N115))) -> 9870960.788 | C41: =IF($C$4="Rate Year",AI41,IF($C$4="2016",AQ41,12)) -> 12 | J41: 9679278 | K41: 12 | R41: =B41-J41 -> 191682.7879 | S41: =C41-K41 -> 0 | Z41: =R41/J41 -> 0.01980341797 | AA41: =S41/K41 -> 0 | AH41: 9870960.788 | AI41: 12 | AP41: 9995105.155 | AQ41: 12
A43: (1) shown on workpaper PDE-G-12
A44: (2) shown on workpaper PDE-G-29
A45: (3) shown on workpaper PDE-G-10
A46: (4) shown on workpaper PDE-G-9
A54: USAGE
A55: Revenue Run therms, this sheet | B55: =B7+E16+F25+G29+B32+B39+B41+G21 -> 247662972 | AH55: 247662972 | AP55: 249597456
A57: actual Revenue Run therms | B57: =#REF! ->  | AH57: =#REF! ->  | AP57: =#REF! -> 
A58: less:
A59: Misc adjustment | B59: 0 | AH59: 0 | AP59: 0
A60: Sch 121/122 normalize | B60: =#REF!+#REF!-G21 ->  | AH60: =#REF!+#REF!-AM21 ->  | AP60: =#REF!+#REF!-AU21 -> 
A61: Sch 146 normalize | B61: =#REF!-G29 ->  | AH61: =#REF!-AM29 ->  | AP61: =#REF!-AU29 -> 
A62: Sch 11/12 Shifting | B62: =-E15-E14 -> 0 | AH62: =-AK15-AK14 -> 0 | AP62: =-AS15-AS14 -> 0
B63: =B57-SUM(B58:B62) ->  | AH63: =AH57-SUM(AH58:AH62) ->  | AP63: =AP57-SUM(AP58:AP62) -> 
A64: Diff | B64: =B55-B63 ->  | AH64: =AH55-AH63 ->  | AP64: =AP55-AP63 -> 
A66: from Present Rev tab | B66: =IF($C$4="Rate Year",AH66,IF($C$4="2016",AP66,SUM('Pres & Prop Rev'!D20:J20))) -> 247662972 | AH66: =AH55 -> 247662972 | AP66: =AP55 -> 249597456
A67: this sheet | B67: =B55 -> 247662972 | AH67: =AH55 -> 247662972 | AP67: =AP55 -> 249597456
A68: Diff | B68: =B66-B67 -> 0 | AH68: =AH66-AH67 -> 0 | AP68: =AP66-AP67 -> 0
A71: CUSTOMERS
A72: Customers from this sheet | B72: =C7+F16+G25+H29+C39+C41+H21 -> 1833425 | AH72: 1833435 | AP72: 1850106
A74: Rev. Run customers | B74: =#REF!*12 ->  | AH74: =#REF!*12 ->  | AP74: =#REF!*12 -> 
A75: less:
A76: Sch 111 | B76: =-F14 -> 0 | AH76: =-AL14 -> 0 | AP76: =-AT14 -> 0
A77: Sch 121/122 | B77: =-F15 -> 0 | AH77: =-AL15 -> 0 | AP77: =-AT15 -> 0
A78: Sch 131 normalize | B78: 0 | AH78: 0 | AP78: 0
A79: Stimson switching--reduce Sch 146 | B79: 0 | AH79: 0 | AP79: 0
A80: Sch 146 normalize | B80: =#REF!*12-(H29+B79) ->  | AH80: =#REF!*12-(AN29+AH79) ->  | AP80: =#REF!*12-(AV29+AP79) -> 
A81: Sch 147 customers not billed | B81: =#REF!*12 ->  | AH81: =#REF!*12 ->  | AP81: =#REF!*12 -> 
A82: Sch 148 normalize | B82: 0 | AH82: 0 | AP82: 0
B83: =B74-SUM(B75:B82) ->  | AH83: =AH74-SUM(AH75:AH82) ->  | AP83: =AP74-SUM(AP75:AP82) -> 
A84: Diff | B84: =B72-B83 ->  | AH84: =AH72-AH83 ->  | AP84: =AP72-AP83 -> 
A86: from Present Rev tab | B86: =IF($C$4="Rate Year",AH72,IF($C$4="2016",AP72,SUM('Pres & Prop Rev'!D25:J26))) -> 1833435 | AH86: =SUM('Pres & Prop Rev'!AJ25:AP26) -> 0 | AP86: =SUM('Pres & Prop Rev'!AR25:AX26) -> 0
A87: Diff | B87: =B72-B86 -> -10 | AH87: =AH83-AH86 ->  | AP87: =AP83-AP86 -> 

Sheet Crossover
A1: Line No. | B1: (a) | C1: (b) | D1: (c) | F1: (d) | G1: (e) | I1: (f) | J1: (g) | L1: (h) | M1: (i)
A2: 1 | B2: Bill Comparison
A3: 2 | B3: Schedule 101 - General Service | L3: Compare
A4: 3 | C4: Current | F4: Proposed | I4: Revised | L4: Schedule 111/112 | R4: 3/4-inch | S4: 0.75
A5: 4 | B5: Customer Count | C5: ='Bill Determ'!C7/12 -> 150186.25 | F5: =C5 -> 150186.25 | I5: =F5 -> 150186.25 | L5: ='Bill Determ'!F21 -> 874046.2739 | R5: 1-inch | S5: 1
A6: 5 | B6: Base | C6: ='Rate Design'!D4 -> 8 | F6: 12 | I6: ='Rate Design'!D26 -> 8.92 | L6: ='Rate Design'!E63 -> 78.4984 | R6: 1 1/2-inch | S6: 1.5
A7: 6 | B7: Allowance | C7: 0 | F7: 0 | I7: 0 | L7: 0 | R7: 2-inch | S7: 2
A8: 7 | B8: Rate 1 | C8: ='Rate Design'!D16/100 -> 0.81825 | F8: 0.83728 | I8: ='Rate Design'!D38/100 -> 0.81825 | L8: ='Rate Design'!E28/100 -> 0.49535 | R8: 3-inch | S8: 3
A9: 8 | B9: Rate 2 | C9: =C8 -> 0.81825 | F9: =F8 -> 0.83728 | I9: =I8 -> 0.81825 | L9: ='Rate Design'!E17/100 -> 0.79586 | R9: 4-inch | S9: 4
A10: 9 | B10: Rate 3 | C10: ='Rate Design'!D17/100 -> 0.91933 | F10: 0.94082 | I10: ='Rate Design'!D39/100 -> 0.91933 | L10: ='Rate Design'!E18/100 -> 0.72264 | R10: 6-inch | S10: 6
A11: 10 | B11: Block 1 | C11: ='Rate Design'!L6 -> 70 | F11: =C11 -> 70 | I11: ='Rate Design'!L29 -> 70 | L11: ='Rate Design'!M38 -> 200
A12: 11 | B12: Block 2 | C12: ='Rate Design'!L6 -> 70 | F12: =C12 -> 70 | I12: ='Rate Design'!L29 -> 70 | L12: ='Rate Design'!M39 -> 1000
A13: 12 | B13: Block 3 (Over) | C13: =C12+1 -> 71 | F13: =F12+1 -> 71 | I13: =I12+1 -> 71 | L13: =L12+1 -> 1001
A14: 13 | B14: Usage Per Therms | C14: 1 | F14: 1 | I14: 1 | L14: 1
A15: 14
A16: 15 | B16: =B14 -> Usage Per Therms | C16: Current Monthly Bill | D16: Proposed vs. Current | F16: Proposed Monthly Bill | G16: Revised vs. Proposed | I16: Revised Monthly Bill | J16: Revised vs. Current | L16: Revised Monthly Bill | M16: Sch 111 vs. Revised
A17: 16 | B17: 0 | C17: =(($C$6)+(IF($B17<$C$7,0,((IF(($B17-$C$7)>$C$11,($C$11/$C$14*$C$8),(IF(($B17-$C$7)>$C$11,$C$11,+($B17-$C$7)))/$C$14*$C$8)))+((IF(($B17-$C$7)>$C$12,(((($C$12-$C$11)/$C$14)*$C$9)),((IF(($B17-$C$7)>($C$12),($C$12-$C$11),(+($B17-$C$7)-(IF(($B17-$C$7)>$C$11,$C$11,+($B17-$C$7)))))))/$C$14*$C$9)))+((IF((IF(($B17-$C$7)>($C$13),($B17-$C$7)-($C$12),0))<1,0,(IF(($B17-$C$7)>($C$13),($B17-$C$7)-($C$12),0))/$C$14*$C$10)))))) -> 8 | D17: =(F17-C17)/C17 -> 0.5 | F17: =(($F$6)+(IF($B17<$F$7,0,((IF(($B17-$F$7)>$F$11,($F$11/$F$14*$F$8),(IF(($B17-$F$7)>$F$11,$F$11,+($B17-$F$7)))/$F$14*$F$8)))+((IF(($B17-$F$7)>$F$12,(((($F$12-$F$11)/$F$14)*$F$9)),((IF(($B17-$F$7)>($F$12),($F$12-$F$11),(+($B17-$F$7)-(IF(($B17-$F$7)>$F$11,$F$11,+($B17-$F$7)))))))/$F$14*$F$9)))+((IF((IF(($B17-$F$7)>($F$13),($B17-$F$7)-($F$12),0))<1,0,(IF(($B17-$F$7)>($F$13),($B17-$F$7)-($F$12),0))/$F$14*$F$10)))))) -> 12 | G17: =(I17-F17)/F17 -> -0.2566666667 | I17: =(($I$6)+(IF($B17<$I$7,0,((IF(($B17-$I$7)>$I$11,($I$11/$I$14*$I$8),(IF(($B17-$I$7)>$I$11,$I$11,+($B17-$I$7)))/$I$14*$I$8)))+((IF(($B17-$I$7)>$I$12,(((($I$12-$I$11)/$I$14)*$I$9)),((IF(($B17-$I$7)>($I$12),($I$12-$I$11),(+($B17-$I$7)-(IF(($B17-$I$7)>$I$11,$I$11,+($B17-$I$7)))))))/$I$14*$I$9)))+((IF((IF(($B17-$I$7)>($I$13),($B17-$I$7)-($I$12),0))<1,0,(IF(($B17-$I$7)>($I$13),($B17-$I$7)-($I$12),0))/$I$14*$I$10)))))) -> 8.92 | J17: =(+I17-C17)/C17 -> 0.115 | L17: =(($L$6)+(IF($B17<$L$7,0,((IF(($B17-$L$7)>$L$11,($L$11/$L$14*$L$8),(IF(($B17-$L$7)>$L$11,$L$11,+($B17-$L$7)))/$L$14*$L$8)))+((IF(($B17-$L$7)>$L$12,(((($L$12-$L$11)/$L$14)*$L$9)),((IF(($B17-$L$7)>($L$12),($L$12-$L$11),(+($B17-$L$7)-(IF(($B17-$L$7)>$L$11,$L$11,+($B17-$L$7)))))))/$L$14*$L$9)))+((IF((IF(($B17-$L$6)>($L$13),($B17-$L$7)-($L$12),0))<1,0,(IF(($B17-$L$7)>($L$13),($B17-$L$7)-($L$12),0))/$L$14*$L$10)))))) -> 78.4984 | M17: =(+L17-I17)/I17 -> 7.800269058
A18: 17 | B18: 10 | C18: =(($C$6)+(IF($B18<$C$7,0,((IF(($B18-$C$7)>$C$11,($C$11/$C$14*$C$8),(IF(($B18-$C$7)>$C$11,$C$11,+($B18-$C$7)))/$C$14*$C$8)))+((IF(($B18-$C$7)>$C$12,(((($C$12-$C$11)/$C$14)*$C$9)),((IF(($B18-$C$7)>($C$12),($C$12-$C$11),(+($B18-$C$7)-(IF(($B18-$C$7)>$C$11,$C$11,+($B18-$C$7)))))))/$C$14*$C$9)))+((IF((IF(($B18-$C$7)>($C$13),($B18-$C$7)-($C$12),0))<1,0,(IF(($B18-$C$7)>($C$13),($B18-$C$7)-($C$12),0))/$C$14*$C$10)))))) -> 16.1825 | D18: =(F18-C18)/C18 -> 0.2589402132 | F18: =(($F$6)+(IF($B18<$F$7,0,((IF(($B18-$F$7)>$F$11,($F$11/$F$14*$F$8),(IF(($B18-$F$7)>$F$11,$F$11,+($B18-$F$7)))/$F$14*$F$8)))+((IF(($B18-$F$7)>$F$12,(((($F$12-$F$11)/$F$14)*$F$9)),((IF(($B18-$F$7)>($F$12),($F$12-$F$11),(+($B18-$F$7)-(IF(($B18-$F$7)>$F$11,$F$11,+($B18-$F$7)))))))/$F$14*$F$9)))+((IF((IF(($B18-$F$7)>($F$13),($B18-$F$7)-($F$12),0))<1,0,(IF(($B18-$F$7)>($F$13),($B18-$F$7)-($F$12),0))/$F$14*$F$10)))))) -> 20.3728 | G18: =(I18-F18)/F18 -> -0.160522854 | I18: =(($I$6)+(IF($B18<$I$7,0,((IF(($B18-$I$7)>$I$11,($I$11/$I$14*$I$8),(IF(($B18-$I$7)>$I$11,$I$11,+($B18-$I$7)))/$I$14*$I$8)))+((IF(($B18-$I$7)>$I$12,(((($I$12-$I$11)/$I$14)*$I$9)),((IF(($B18-$I$7)>($I$12),($I$12-$I$11),(+($B18-$I$7)-(IF(($B18-$I$7)>$I$11,$I$11,+($B18-$I$7)))))))/$I$14*$I$9)))+((IF((IF(($B18-$I$7)>($I$13),($B18-$I$7)-($I$12),0))<1,0,(IF(($B18-$I$7)>($I$13),($B18-$I$7)-($I$12),0))/$I$14*$I$10)))))) -> 17.1025 | J18: 0.05685153715 | L18: =(($L$6)+(IF($B18<$L$7,0,((IF(($B18-$L$7)>$L$11,($L$11/$L$14*$L$8),(IF(($B18-$L$7)>$L$11,$L$11,+($B18-$L$7)))/$L$14*$L$8)))+((IF(($B18-$L$7)>$L$12,(((($L$12-$L$11)/$L$14)*$L$9)),((IF(($B18-$L$7)>($L$12),($L$12-$L$11),(+($B18-$L$7)-(IF(($B18-$L$7)>$L$11,$L$11,+($B18-$L$7)))))))/$L$14*$L$9)))+((IF((IF(($B18-$L$6)>($L$13),($B18-$L$7)-($L$12),0))<1,0,(IF(($B18-$L$7)>($L$13),($B18-$L$7)-($L$12),0))/$L$14*$L$10)))))) -> 83.4519 | M18: =(+L18-I18)/I18 -> 3.879514691
A19: 18 | B19: 20 | C19: =(($C$6)+(IF($B19<$C$7,0,((IF(($B19-$C$7)>$C$11,($C$11/$C$14*$C$8),(IF(($B19-$C$7)>$C$11,$C$11,+($B19-$C$7)))/$C$14*$C$8)))+((IF(($B19-$C$7)>$C$12,(((($C$12-$C$11)/$C$14)*$C$9)),((IF(($B19-$C$7)>($C$12),($C$12-$C$11),(+($B19-$C$7)-(IF(($B19-$C$7)>$C$11,$C$11,+($B19-$C$7)))))))/$C$14*$C$9)))+((IF((IF(($B19-$C$7)>($C$13),($B19-$C$7)-($C$12),0))<1,0,(IF(($B19-$C$7)>($C$13),($B19-$C$7)-($C$12),0))/$C$14*$C$10)))))) -> 24.365 | D19: 0.1797906834 | F19: =(($F$6)+(IF($B19<$F$7,0,((IF(($B19-$F$7)>$F$11,($F$11/$F$14*$F$8),(IF(($B19-$F$7)>$F$11,$F$11,+($B19-$F$7)))/$F$14*$F$8)))+((IF(($B19-$F$7)>$F$12,(((($F$12-$F$11)/$F$14)*$F$9)),((IF(($B19-$F$7)>($F$12),($F$12-$F$11),(+($B19-$F$7)-(IF(($B19-$F$7)>$F$11,$F$11,+($B19-$F$7)))))))/$F$14*$F$9)))+((IF((IF(($B19-$F$7)>($F$13),($B19-$F$7)-($F$12),0))<1,0,(IF(($B19-$F$7)>($F$13),($B19-$F$7)-($F$12),0))/$F$14*$F$10)))))) -> 28.7456 | G19: -0.1203871201 | I19: =(($I$6)+(IF($B19<$I$7,0,((IF(($B19-$I$7)>$I$11,($I$11/$I$14*$I$8),(IF(($B19-$I$7)>$I$11,$I$11,+($B19-$I$7)))/$I$14*$I$8)))+((IF(($B19-$I$7)>$I$12,(((($I$12-$I$11)/$I$14)*$I$9)),((IF(($B19-$I$7)>($I$12),($I$12-$I$11),(+($B19-$I$7)-(IF(($B19-$I$7)>$I$11,$I$11,+($B19-$I$7)))))))/$I$14*$I$9)))+((IF((IF(($B19-$I$7)>($I$13),($B19-$I$7)-($I$12),0))<1,0,(IF(($B19-$I$7)>($I$13),($B19-$I$7)-($I$12),0))/$I$14*$I$10)))))) -> 25.285 | J19: 0.03775908065 | L19: 88.4054 | M19: 2.496357524
A20: 19 | B20: 30 | C20: 32.5475 | D20: 0.1404378216 | F20: 37.1184 | G20: -0.09835822665 | I20: 33.4675 | J20: 0.02826637991 | L20: 93.3589 | M20: 1.789539105 | X20: Avg.
A21: 20 | B21: 40 | C21: 40.73 | D21: 0.1168966364 | F21: 45.4912 | G21: -0.08443830895 | I21: 41.65 | J21: 0.02258777314 | L21: 98.3124 | M21: 1.360441777 | X21: 65
A22: 21 | B22: 50 | C22: 48.9125 | D22: 0.1012317915 | F22: 53.864 | G22: -0.07484590821 | I22: 49.8325 | J22: 0.01880909788 | L22: 103.2659 | M22: 1.072260071
A23: 22 | B23: 60 | C23: 57.095 | D23: 0.09005692267 | F23: 62.2368 | G23: -0.0678344645 | I23: 58.015 | J23: 0.01611349505 | L23: 108.2194 | M23: 0.865369301 | X23: =I23-C23 -> 0.92
A24: 23 | B24: 68 | C24: 63.641 | D24: 0.08318599645 | F24: 68.93504 | G24: -0.06345162054 | I24: 64.561 | J24: 0.01445608963 | L24: 112.1822 | M24: 0.7376155884 | X24: =I24-C24 -> 0.92
A25: 24 | B25: 70 | C25: 65.2775 | D25: 0.08168358163 | F25: 70.6096 | G25: -0.06248583762 | I25: 66.1975 | J25: 0.01409367699 | L25: 113.1729 | M25: 0.7096249858
A26: 25 | B26: 80 | C26: 74.4708 | D26: 0.07448557018 | F26: 80.0178 | G26: -0.05782463402 | I26: 75.3908 | J26: 0.01235383533 | L26: 118.1264 | M26: 0.5668543111
A27: 26 | B27: 90 | C27: 83.6641 | D27: 0.06886944341 | F27: 89.426 | G27: -0.05414420862 | I27: 84.5841 | J27: 0.01099635327 | L27: 123.0799 | M27: 0.4551186334
A28: 27 | B28: 100 | C28: 92.8574 | D28: 0.06436536022 | F28: 98.8342 | G28: -0.05116447545 | I28: 93.7774 | J28: 0.009907664871 | L28: 128.0334 | M28: 0.3652905711
A29: 28 | B29: 110 | C29: 102.0507 | D29: 0.06067278323 | F29: 108.2424 | G29: -0.04870272647 | I29: 102.9707 | J29: 0.009015126795 | L29: 132.9869 | M29: 0.29150234
A30: 29 | B30: 120 | C30: 111.244 | D30: 0.05759052174 | F30: 117.6506 | G30: -0.0466346963 | I30: 112.164 | J30: 0.00827010895 | L30: 137.9404 | M30: 0.2298099212
A31: 30 | B31: 130 | C31: 120.4373 | D31: 0.0549788147 | F31: 127.0588 | G31: -0.04487292498 | I31: 121.3573 | J31: 0.007638829499 | L31: 142.8939 | M31: 0.1774643965
A32: 31 | B32: 140 | C32: 129.6306 | D32: 0.05273754808 | F32: 136.467 | G32: -0.04335407095 | I32: 130.5506 | J32: 0.00709708973 | L32: 147.8474 | M32: 0.1324911567
A33: 32 | B33: 150 | C33: 138.8239 | D33: 0.05079312712 | F33: 145.8752 | G33: -0.04203113346 | I33: 139.7439 | J33: 0.006627100953 | L33: 152.8009 | M33: 0.0934352054
A34: 33 | B34: 160 | C34: 148.0172 | D34: 0.04909024086 | F34: 155.2834 | G34: -0.04086850236 | I34: 148.9372 | J34: 0.006215493875 | L34: 157.7544 | M34: 0.05920079067
A35: 34 | B35: 170 | C35: 157.2105 | D35: 0.04758651617 | F35: 164.6916 | G35: -0.03983870458 | I35: 158.1305 | J35: 0.005852026423 | L35: 162.7079 | M35: 0.02894697734
A36: 35 | B36: 180 | C36: 166.4038 | D36: 0.04624894383 | F36: 174.0998 | G36: -0.03892020554 | I36: 167.3238 | J36: 0.005528719897 | L36: 167.6614 | M36: 0.00201764483
A37: 36 | B37: 190 | C37: 175.5971 | D37: 0.04505142739 | F37: 183.508 | G37: -0.03809588683 | I37: 176.5171 | J37: 0.00523926648 | L37: 172.6149 | M37: -0.02210664009
A38: 37 | B38: 200 | C38: 184.7904 | D38: 0.04397306354 | F38: 192.9162 | G38: -0.0373519694 | I38: =(($I$6)+(IF($B38<$I$7,0,((IF(($B38-$I$7)>$I$11,($I$11/$I$14*$I$8),(IF(($B38-$I$7)>$I$11,$I$11,+($B38-$I$7)))/$I$14*$I$8)))+((IF(($B38-$I$7)>$I$12,(((($I$12-$I$11)/$I$14)*$I$9)),((IF(($B38-$I$7)>($I$12),($I$12-$I$11),(+($B38-$I$7)-(IF(($B38-$I$7)>$I$11,$I$11,+($B38-$I$7)))))))/$I$14*$I$9)))+((IF((IF(($B38-$I$7)>($I$13),($B38-$I$7)-($I$12),0))<1,0,(IF(($B38-$I$7)>($I$13),($B38-$I$7)-($I$12),0))/$I$14*$I$10)))))) -> 185.7104 | J38: 0.004978613608 | L38: 177.5684 | M38: =(+L38-I38)/I38 -> -0.04384245578
A39: 38 | B39: 210 | C39: 193.9837 | D39: 0.0429969116 | F39: 202.3244 | G39: -0.03667723715 | I39: 194.9037 | J39: 0.004742666523 | L39: 185.527 | M39: -0.04810939967
A40: 39 | B40: 220 | C40: 203.177 | D40: 0.04210909699 | F40: 211.7326 | G40: -0.03606246747 | I40: 204.097 | J40: 0.004528071583 | L40: 193.4856 | M40: -0.05199194501
A41: 40 | B41: 230 | C41: 212.3703 | D41: 0.04129814762 | F41: 221.1408 | G41: -0.03550000724 | I41: 213.2903 | J41: 0.004332055848 | L41: 201.4442 | M41: -0.05553979717
A42: 41 | B42: 240 | C42: 221.5636 | D42: 0.04055449541 | F42: 230.549 | G42: -0.03498345254 | I42: 222.4836 | J42: 0.004152306606 | L42: 209.4028 | M42: -0.05879444597
A43: 42 | B43: 250 | C43: 230.7569 | D43: 0.03987009706 | F43: 239.9572 | G43: -0.03450740382 | I43: 231.6769 | J43: 0.003986879699 | L43: 217.3614 | M43: -0.06179079572
A44: 43 | B44: 260 | C44: 239.9502 | D44: 0.03923814191 | F44: 249.3654 | G44: -0.03406727637 | I44: 240.8702 | J44: 0.003834128915 | L44: 225.32 | M44: -0.06455842192
A45: 44 | B45: 270 | C45: 249.1435 | D45: 0.03865282458 | F45: 258.7736 | G45: -0.03365915225 | I45: 250.0635 | J45: 0.003692651022 | L45: 233.2786 | M45: -0.06712255087
A46: 45 | B46: 280 | C46: 258.3368 | D46: 0.03810916602 | F46: 268.1818 | G46: -0.03327966327 | I46: 259.2568 | J46: 0.003561242533 | L46: 241.2372 | M46: -0.06950483073
A47: 46 | B47: 290 | C47: 267.5301 | D47: 0.0376028716 | F47: 277.59 | G47: -0.03292589791 | I47: 268.4501 | J47: 0.003438865384 | L47: 249.1958 | M47: -0.07172394423
A48: 47 | B48: 300 | C48: 276.7234 | D48: 0.03713021739 | F48: 286.9982 | G48: -0.03259532638 | I48: 277.6434 | J48: 0.003324619458 | L48: 257.1544 | M48: -0.0737960996
A49: 48 | B49: 310 | C49: 285.9167 | D49: 0.03668795842 | F49: 296.4064 | G49: -0.03228574012 | I49: 286.8367 | J49: 0.003217720406 | L49: 265.113 | M49: -0.07573542716
A50: 49 | B50: 320 | C50: 295.11 | D50: 0.03627325404 | F50: 305.8146 | G50: -0.03199520232 | I50: 296.03 | J50: 0.003117481617 | L50: 273.0716 | M50: -0.07755430193
A51: 50 | B51: 330 | C51: 304.3033 | D51: 0.03588360691 | F51: 315.2228 | G51: -0.03172200742 | I51: 305.2233 | J51: 0.003023299452 | L51: 281.0302 | M51: -0.07926360799
A52: 51 | B52: 340 | C52: 313.4966 | D52: 0.03551681262 | F52: 324.631 | G52: -0.03146464755 | I52: 314.4166 | J52: 0.002934641077 | L52: 288.9888 | M52: -0.08087295645
A53: 52 | B53: 350 | C53: 322.6899 | D53: 0.03517091796 | F53: 334.0392 | G53: -0.03122178475 | I53: 323.6099 | J53: 0.002851034383 | L53: 296.9474 | M53: -0.08239086629
A54: 53 | B54: 360 | C54: 331.8832 | D54: 0.03484418615 | F54: 343.4474 | G54: -0.03099222763 | I54: 332.8032 | J54: 0.002772059568 | L54: 304.906 | M54: -0.08382491515
A55: 54 | B55: 370 | C55: 341.0765 | D55: 0.03453506765 | F55: 352.8556 | G55: -0.03077491189 | I55: 341.9965 | J55: 0.002697342092 | L55: 312.8646 | M55: -0.0851818659
A56: 55 | B56: 380 | C56: 350.2698 | D56: 0.0342421756 | F56: 362.2638 | G56: -0.03056888378 | I56: 351.1898 | J56: 0.002626546736 | L56: 320.8232 | M56: -0.08646777327
A57: 56 | B57: 390 | C57: 359.4631 | D57: 0.03396426504 | F57: 371.672 | G57: -0.03037328612 | I57: 360.3831 | J57: 0.002559372575 | L57: 328.7818 | M57: -0.08768807416
A58: 57 | B58: 400 | C58: 368.6564 | D58: 0.03370021516 | F58: 381.0802 | G58: -0.03018734639 | I58: 369.5764 | J58: 0.002495548701 | L58: 336.7404 | M58: -0.08884766452
A59: 58 | B59: 410 | C59: 377.8497 | D59: 0.03344901425 | F59: 390.4884 | G59: -0.03001036651 | I59: 378.7697 | J59: 0.002434830569 | L59: 344.699 | M59: -0.08995096493
A60: 59 | B60: 420 | C60: 387.043 | D60: 0.03320974672 | F60: 399.8966 | G60: -0.02984171408 | I60: 387.963 | J60: 0.002376996871 | L60: 352.6576 | M60: -0.09100197699
A61: 60 | B61: 430 | C61: 396.2363 | D61: 0.03298158195 | F61: 409.3048 | G61: -0.02968081488 | I61: 397.1563 | J61: 0.002321846837 | L61: 360.6162 | M61: -0.0920043318
A62: 61 | B62: 440 | C62: 405.4296 | D62: 0.03276376466 | F62: 418.713 | G62: -0.02952714628 | I62: 406.3496 | J62: 0.002269197908 | L62: 368.5748 | M62: -0.09296133182
A63: 62 | B63: 450 | C63: 414.6229 | D63: 0.03255560655 | F63: 428.1212 | G63: -0.02938023158 | I63: 415.5429 | J63: 0.002218883713 | L63: 376.5334 | M63: -0.09387598729
A64: 63 | B64: 460 | C64: 423.8162 | D64: 0.03235647906 | F64: 437.5294 | G64: -0.0292396351 | I64: 424.7362 | J64: 0.002170752321 | L64: 384.492 | M64: -0.09475104783
A65: 64 | B65: 470 | C65: 433.0095 | D65: 0.03216580699 | F65: 446.9376 | G65: -0.02910495783 | I65: 433.9295 | J65: 0.002124664701 | L65: 392.4506 | M65: -0.09558903002
A66: 65 | B66: 480 | C66: 442.2028 | D66: 0.03198306297 | F66: 456.3458 | G66: -0.02897583368 | I66: 443.1228 | J66: 0.002080493384 | L66: 400.4092 | M66: -0.09639224161
A67: 66 | B67: 490 | C67: 451.3961 | D67: 0.03180776263 | F67: 465.754 | G67: -0.02885192612 | I67: 452.3161 | J67: 0.002038121286 | L67: 408.3678 | M67: -0.09716280274
A68: 67 | B68: 500 | C68: 460.5894 | D68: 0.03163946022 | F68: 475.1622 | G68: -0.0287329253 | I68: 461.5094 | J68: 0.001997440671 | L68: 416.3264 | M68: -0.0979026646
A69: 68 | B69: =B68+100 -> 600 | C69: 552.5224 | D69: 0.03026447435 | F69: 569.2442 | G69: -0.02775926395 | I69: 553.4424 | J69: 0.001665090863 | L69: 495.9124 | M69: -0.1039493902
A70: 69 | B70: 700 | C70: 644.4554 | D70: 0.02928177807 | F70: 663.3262 | G70: -0.02706179855 | I70: 645.3754 | J70: 0.001427561938 | L70: 575.4984 | M70: -0.1082734173
A71: 70 | B71: 800 | C71: 736.3884 | D71: 0.02854444747 | F71: 757.4082 | G71: -0.02653760548 | I71: 737.3084 | J71: 0.001249340701 | L71: 655.0844 | M71: -0.1115191418
A72: 71 | B72: 900 | C72: 828.3214 | D72: 0.02797078525 | F72: 851.4902 | G72: -0.02612924964 | I72: 829.2414 | J72: 0.001110679985 | L72: 734.6704 | M72: -0.1140451984
A73: 72 | B73: 1000 | C73: 920.2544 | D73: 0.02751174023 | F73: 945.5722 | G73: -0.0258021545 | I73: 921.1744 | J73: 0.0009997235547 | L73: 814.2564 | M73: -0.1160670553
A74: 73 | B74: =B73+100 -> 1100 | C74: 1012.1874 | D74: 0.02713608172 | F74: 1039.6542 | G74: -0.02553425937 | I74: 1013.1074 | J74: 0.0009089225967 | L74: 886.5204 | M74: -0.1249492403
A75: 74 | B75: 1200 | C75: 1104.1204 | D75: 0.02682298054 | F75: 1133.7362 | G75: -0.02531082628 | I75: 1105.0404 | J75: 0.0008332424616 | L75: 958.7844 | M75: -0.1323535321
A76: 75 | B76: 1300 | C76: 1196.0534 | D76: 0.02655801154 | F76: 1227.8182 | G76: -0.02512163446 | I76: 1196.9734 | J76: 0.0007691964255 | L76: 1031.0484 | M76: -0.1386204572
A77: 76 | B77: 1400 | C77: 1287.9864 | D77: 0.02633086809 | F77: 1321.9002 | G77: -0.02495937288 | I77: 1288.9064 | J77: 0.0007142932565 | L77: 1103.3124 | M77: -0.1439933885
A78: 77 | B78: 1500 | C78: 1379.9194 | D78: 0.02613399014 | F78: 1415.9822 | G78: -0.02481867357 | I78: 1380.8394 | J78: 0.0006667056061 | L78: 1175.5764 | M78: -0.1486508858
A79: 78 | B79: 1600 | C79: 1471.8524 | D79: 0.02596170649 | F79: 1510.0642 | G79: -0.02469550632 | I79: 1472.7724 | J79: 0.0006250626761 | L79: 1247.8404 | M79: -0.1527269251
A80: 79 | B80: =B79+100 -> 1700 | C80: 1563.7854 | D80: 0.02580967951 | F80: 1604.1462 | G80: -0.02458678642 | I80: 1564.7054 | J80: 0.0005883160183 | L80: 1320.1044 | M80: -0.1563239956
A81: 80 | B81: 1800 | C81: 1655.7184 | D81: 0.02567453499 | F81: 1698.2282 | G81: -0.0244901127 | I81: 1656.6384 | J81: =(+I81-C81)/C81 -> 0.0005556500429 | L81: 1392.3684 | M81: -0.1595218365
A82: 81 | B82: 1900 | C82: 1747.6514 | D82: =(F82-C82)/C82 -> 0.02555360869 | F82: 1792.3102 | G82: =(I82-F82)/F82 -> -0.02440358817 | I82: 1748.5714 | J82: 0.0005264207725 | L82: =(($L$6)+(IF($B82<$L$7,0,((IF(($B82-$L$7)>$L$11,($L$11/$L$14*$L$8),(IF(($B82-$L$7)>$L$11,$L$11,+($B82-$L$7)))/$L$14*$L$8)))+((IF(($B82-$L$7)>$L$12,(((($L$12-$L$11)/$L$14)*$L$9)),((IF(($B82-$L$7)>($L$12),($L$12-$L$11),(+($B82-$L$7)-(IF(($B82-$L$7)>$L$11,$L$11,+($B82-$L$7)))))))/$L$14*$L$9)))+((IF((IF(($B82-$L$6)>($L$13),($B82-$L$7)-($L$12),0))<1,0,(IF(($B82-$L$7)>($L$13),($B82-$L$7)-($L$12),0))/$L$14*$L$10)))))) -> 1464.6324 | M82: =(+L82-I82)/I82 -> -0.1623834177
A83: 82 | B83: 2000 | C83: =(($C$6)+(IF($B83<$C$7,0,((IF(($B83-$C$7)>$C$11,($C$11/$C$14*$C$8),(IF(($B83-$C$7)>$C$11,$C$11,+($B83-$C$7)))/$C$14*$C$8)))+((IF(($B83-$C$7)>$C$12,(((($C$12-$C$11)/$C$14)*$C$9)),((IF(($B83-$C$7)>($C$12),($C$12-$C$11),(+($B83-$C$7)-(IF(($B83-$C$7)>$C$11,$C$11,+($B83-$C$7)))))))/$C$14*$C$9)))+((IF((IF(($B83-$C$7)>($C$13),($B83-$C$7)-($C$12),0))<1,0,(IF(($B83-$C$7)>($C$13),($B83-$C$7)-($C$12),0))/$C$14*$C$10)))))) -> 1839.5844 | D83: 0.02544476894 | F83: =(($F$6)+(IF($B83<$F$7,0,((IF(($B83-$F$7)>$F$11,($F$11/$F$14*$F$8),(IF(($B83-$F$7)>$F$11,$F$11,+($B83-$F$7)))/$F$14*$F$8)))+((IF(($B83-$F$7)>$F$12,(((($F$12-$F$11)/$F$14)*$F$9)),((IF(($B83-$F$7)>($F$12),($F$12-$F$11),(+($B83-$F$7)-(IF(($B83-$F$7)>$F$11,$F$11,+($B83-$F$7)))))))/$F$14*$F$9)))+((IF((IF(($B83-$F$7)>($F$13),($B83-$F$7)-($F$12),0))<1,0,(IF(($B83-$F$7)>($F$13),($B83-$F$7)-($F$12),0))/$F$14*$F$10)))))) -> 1886.3922 | G83: -0.02432569431 | I83: =(($I$6)+(IF($B83<$I$7,0,((IF(($B83-$I$7)>$I$11,($I$11/$I$14*$I$8),(IF(($B83-$I$7)>$I$11,$I$11,+($B83-$I$7)))/$I$14*$I$8)))+((IF(($B83-$I$7)>$I$12,(((($I$12-$I$11)/$I$14)*$I$9)),((IF(($B83-$I$7)>($I$12),($I$12-$I$11),(+($B83-$I$7)-(IF(($B83-$I$7)>$I$11,$I$11,+($B83-$I$7)))))))/$I$14*$I$9)))+((IF((IF(($B83-$I$7)>($I$13),($B83-$I$7)-($I$12),0))<1,0,(IF(($B83-$I$7)>($I$13),($B83-$I$7)-($I$12),0))/$I$14*$I$10)))))) -> 1840.5044 | J83: 0.0005001129603 | L83: 1536.8964 | M83: -0.1649591275
A84: 83 | B84: 2100 | C84: 1931.5174 | D84: 0.02534628992 | F84: 1980.4742 | G84: -0.0242552011 | I84: 1932.4374 | J84: 0.0004763094549 | L84: 1609.1604 | M84: -0.1672897658
A85: 84 | B85: 2200 | C85: 2023.4504 | D85: 0.02525675944 | F85: 2074.5562 | G85: -0.02419110169 | I85: 2024.3704 | J85: 0.000454668916 | L85: 1681.4244 | M85: -0.1694087209
A86: 85 | B86: =B85+100 -> 2300 | C86: 2115.3834 | D86: 0.02517501083 | F86: 2168.6382 | G86: -0.02413256393 | I86: 2116.3034 | J86: 0.0004349093408 | L86: 1753.6884 | M86: -0.1713435796
A87: 86 | B87: 2400 | C87: 2207.3164 | D87: 0.02510007174 | F87: 2262.7202 | G87: -0.02407889407 | I87: 2208.2364 | J87: 0.0004167957072 | L87: 1825.9524 | M87: -0.1731173347
A88: 87 | B88: 2500 | C88: 2299.2494 | D88: 0.02503112538 | F88: 2356.8022 | G88: -0.02402950914 | I88: 2300.1694 | J88: 0.0004001305817 | L88: 1898.2164 | M88: -0.1747493032
A89: 88 | B89: =B88+500 -> 3000 | C89: 2758.9144 | D89: 0.0247553168 | F89: 2827.2122 | G89: -0.02383188641 | I89: 2759.8344 | J89: 0.000333464496 | L89: 2259.5364 | M89: -0.181278268
A90: 89 | B90: 3500 | C90: 3218.5794 | D90: 0.02455828804 | F90: 3297.6222 | G90: -0.02369064594 | I90: 3219.4994 | J90: 0.0002858403928 | L90: 2620.8564 | M90: -0.1859428829
A91: 90 | B91: 4000 | C91: 3678.2444 | D91: 0.0244105041 | F91: 3768.0322 | G91: -0.02358467107 | I91: 3679.1644 | J91: 0.0002501193232 | L91: 2982.1764 | M91: -0.1894419287
A92: 91 | B92: 4500 | C92: 4137.9094 | D92: 0.02429555369 | F92: 4238.4422 | G92: -0.02350221975 | I92: 4138.8294 | J92: 0.0002223344958 | L92: 3343.4964 | M92: -0.1921637553
A93: 92 | B93: 5000 | C93: 4597.5744 | D93: 0.02420358874 | F93: 4708.8522 | G93: -0.02343624206 | I93: 4598.4944 | J93: 0.0002001055165 | L93: 3704.8164 | M93: -0.1943414349
A94: 93 | B94: 5500 | C94: 5057.2394 | D94: 0.02412834164 | F94: 5179.2622 | G94: -0.02338224931 | I94: 5058.1594 | J94: 0.0001819174311 | L94: 4066.1364 | M94: -0.1961233171
A95: 94 | B95: 6000 | C95: 5516.9044 | D95: 0.02406563362 | F95: 5649.6722 | G95: -0.02333724778 | I95: 5517.8244 | J95: 0.0001667601853 | L95: 4427.4564 | M95: -0.1976083182
A96: 95 | B96: 6500 | C96: 5976.5694 | D96: 0.02401257149 | F96: 6120.0822 | G96: -0.02329916418 | I96: 5977.4894 | J96: 0.0001539344628 | L96: 4788.7764 | M96: -0.1988649281
A97: 96 | B97: 7000 | C97: 6436.2344 | D97: 0.02396708858 | F97: 6590.4922 | G97: -0.02326651718 | I97: 6437.1544 | J97: 0.0001429407232 | L97: 5150.0964 | M97: -0.1999420738
A98: 97 | B98: 7500 | C98: 6895.8994 | D98: 0.02392766925 | F98: 7060.9022 | G98: -0.02323822018 | I98: 6896.8194 | J98: 0.0001334126191 | L98: 5511.4164 | M98: -0.2008756384
A99: 98 | B99: 8000 | C99: 7355.5644 | D99: 0.02389317671 | F99: 7531.3122 | G99: -0.02321345807 | I99: 7356.4844 | J99: 0.0001250753783 | L99: 5872.7364 | M99: -0.2016925367
A100: 99 | B100: 8500 | C100: 7815.2294 | D100: 0.02386274164 | F100: 8001.7222 | G100: -0.02319160743 | I100: 7816.1494 | J100: 0.0001177188734 | L100: 6234.0564 | M100: -0.202413352
A101: 100 | B101: 9000 | C101: 8274.8944 | D101: 0.02383568786 | F101: 8472.1322 | G101: -0.02317218327 | I101: 8275.8144 | J101: 0.0001111796665 | L101: 6595.3764 | M101: -0.2030540946
A102: 101 | B102: 9500 | C102: 8734.5594 | D102: 0.02381148155 | F102: 8942.5422 | G102: -0.02315480267 | I102: 8735.4794 | J102: 0.0001053287244 | L102: 6956.6964 | M102: -0.2036274048
A103: 102 | B103: 10000 | C103: 9194.2244 | D103: 0.02378969563 | F103: 9412.9522 | G103: -0.02313915925 | I103: 9195.1444 | J103: 0.0001000628177 | L103: 7318.0164 | M103: -0.2041433955
A104: 103 | B104: 10500 | C104: 9653.8894 | D104: 0.02376998435 | F104: 9883.3622 | G104: -0.02312500497 | I104: 9654.8094 | J104: 9.529837787e-05 | L104: 7679.3364 | M104: -0.2046102536
A105: 104 | B105: =B104+500 -> 11000 | C105: 10113.5544 | D105: 0.02375206485 | F105: 10353.7722 | G105: -0.02311213685 | I105: 10114.4744 | J105: 9.096702936e-05 | L105: 8040.6564 | M105: -0.2050346778
A106: 105 | B106: 11500 | C106: 10573.2194 | D106: 0.02373570343 | F106: 10824.1822 | G106: -0.02310038721 | I106: 10574.1394 | J106: 8.701228691e-05 | L106: 8401.9764 | M106: -0.205422202
A107: 106 | B107: 12000 | C107: 11032.8844 | D107: 0.02372070535 | F107: 11294.5922 | G107: -0.02308961629 | I107: 11033.8044 | J107: 8.338707872e-05 | L107: 8763.2964 | M107: -0.2057774379
A108: 107 | B108: 12500 | C108: 11492.5494 | D108: 0.02370690702 | F108: 11765.0022 | G108: -0.02307970669 | I108: 11493.4694 | J108: 8.005186386e-05 | L108: 9124.6164 | M108: -0.2061042595
A109: 108 | B109: 13000 | C109: 11952.2144 | D109: 0.02369417001 | F109: 12235.4122 | G109: -0.02307055908 | I109: 11953.1344 | J109: 7.697318415e-05 | L109: 9485.9364 | M109: -0.2064059449
A110: 109 | B110: 13500 | C110: 12411.8794 | D110: 0.02368237642 | F110: 12705.8222 | G110: -0.02306208881 | I110: 12412.7994 | J110: 7.41225378e-05 | L110: 9847.2564 | M110: -0.2066852865
A111: 110 | B111: 14000 | C111: 12871.5444 | D111: 0.02367142516 | F111: 13176.2322 | G111: -0.02305422335 | I111: 12872.4644 | J111: 7.147549442e-05 | L111: 10208.5764 | M111: -0.206944678
A112: 111 | B112: 14500 | C112: 13331.2094 | D112: 0.02366122912 | F112: 13646.6422 | G112: -0.02304690014 | I112: 13332.1294 | J112: 6.901099311e-05 | L112: 10569.8964 | M112: -0.2071861829
A113: 112 | B113: 15000 | C113: 13790.8744 | D113: 0.02365171276 | F113: 14117.0522 | G113: -0.02304006498 | I113: 13791.7944 | J113: 6.671078086e-05 | L113: 10931.2164 | M113: -0.2074115896
A114: 113 | B114: 15500 | C114: 14250.5394 | D114: 0.02364281032 | F114: 14587.4622 | G114: -0.02303367065 | I114: 14251.4594 | J114: 6.455895978e-05 | L114: 11292.5364 | M114: -0.2076224558
A115: 114 | B115: 16000 | C115: 14710.2044 | D115: 0.02363446425 | F115: 15057.8722 | G115: -0.02302767585 | I115: 14711.1244 | J115: 6.254161907e-05 | L115: 11653.8564 | M115: -0.2078201446
A116: 115 | B116: 16500 | C116: 15169.8694 | D116: 0.02362662397 | F116: 15528.2822 | G116: -0.02302204425 | I116: 15170.7894 | J116: 6.064653398e-05 | L116: 12015.1764 | M116: -0.2080058537
A117: 116 | B117: 17000 | C117: 15629.5344 | D117: 0.02361924486 | F117: 15998.6922 | G117: -0.02301674383 | I117: 15630.4544 | J117: 5.886291789e-05 | L117: 12376.4964 | M117: -0.20818064
A118: 117 | B118: 17500 | C118: 16089.1994 | D118: 0.02361228738 | F118: 16469.1022 | G118: -0.0230117462 | I118: 16090.1194 | J118: 5.718121686e-05 | L118: 12737.8164 | M118: -0.2083454396
A119: 118 | B119: 18000 | C119: 16548.8644 | D119: 0.02360571641 | F119: 16939.5122 | G119: -0.02300702614 | I119: 16549.7844 | J119: 5.559293845e-05 | L119: 13099.1364 | M119: -0.2085010848
A120: 119 | B120: 18500 | C120: 17008.5294 | D120: 0.02359950061 | F120: 17409.9222 | G120: -0.02300256115 | I120: 17009.4494 | J120: 5.409050826e-05 | L120: 13460.4564 | M120: -0.2086483176
A121: 120 | B121: 19000 | C121: 17468.1944 | D121: 0.02359361194 | F121: 17880.3322 | G121: -0.02299833109 | I121: 17469.1144 | J121: 5.266714916e-05 | L121: 13821.7764 | M121: -0.2087878021
A122: 121 | B122: =B121+500 -> 19500 | C122: 17927.8594 | D122: 0.02358802524 | F122: 18350.7422 | G122: -0.02299431791 | I122: 17928.7794 | J122: 5.131677907e-05 | L122: 14183.0964 | M122: -0.2089201343
A123: 122 | B123: =B122+5000 -> 24500 | C123: 22524.5094 | D123: 0.02354469927 | F123: 23054.8422 | G123: -0.02296319339 | I123: 22525.4294 | J123: 4.084439682e-05 | L123: 17796.2964 | M123: -0.2099464084
A124: 123 | B124: =B123+5000 -> 29500 | C124: 27121.1594 | D124: 0.02351605957 | F124: 27758.9422 | G124: -0.02294261775 | I124: 27122.0794 | J124: 3.392185365e-05 | L124: 21409.4964 | M124: -0.2106248166
A125: 124 | B125: 34500 | C125: 31717.8094 | D125: 0.02349572099 | F125: 32463.0422 | G125: -0.02292800519 | I125: 31718.7294 | J125: 2.900578626e-05 | L125: 25022.6964 | M125: -0.2111065962
A126: 125 | B126: 39500 | C126: 36314.4594 | D126: 0.02348053128 | F126: 37167.1422 | G126: -0.02291709154 | I126: 36315.3794 | J126: 2.533426121e-05 | L126: 28635.8964 | M126: -0.2114664125
A127: 126 | B127: 44500 | C127: 40911.1094 | D127: 0.02346875492 | F127: 41871.2422 | G127: -0.02290863011 | I127: 40912.0294 | J127: 2.248777932e-05 | L127: 32249.0964 | M127: -0.2117453748
A128: 127 | B128: 49500 | C128: 45507.7594 | D128: 0.02345935757 | F128: 46575.3422 | G128: -0.0229018779 | I128: 45508.6794 | J128: 2.02163326e-05 | L128: 35862.2964 | M128: -0.2119679834
A129: 128 | B129: 54500 | C129: 50104.4094 | D129: 0.02345168447 | F129: 51279.4422 | G129: -0.0228963645 | I129: 50105.3294 | J129: 1.836165741e-05 | L129: 39475.4964 | M129: -0.2121497479
A130: 129 | B130: 59500 | C130: 54701.0594 | D130: 0.02344530095 | F130: 55983.5422 | G130: -0.02289177765 | I130: 54701.9794 | J130: 1.681868706e-05 | L130: 43088.6964 | M130: -0.2123009647
A131: 130 | B131: 64500 | C131: 59297.7094 | D131: 0.02343990711 | F131: 60687.6422 | G131: -0.02288790188 | I131: 59298.6294 | J131: 1.55149332e-05 | L131: 46701.8964 | M131: -0.2124287379
A132: 131 | B132: 69500 | C132: 63894.3594 | D132: 0.02343528934 | F132: 65391.7422 | G132: -0.02288458374 | I132: 63895.2794 | J132: 1.43987671e-05 | L132: 50315.0964 | M132: -0.2125381269
A133: 132 | B133: 74500 | C133: 68491.0094 | D133: 0.02343129141 | F133: 70095.8422 | G133: -0.02288171095 | I133: 68491.9294 | J133: 1.343241993e-05 | L133: 53928.2964 | M133: -0.2126328332
A134: 133 | B134: =B133+500 -> 75000 | C134: 68950.6744 | D134: 0.02343092093 | F134: 70566.2522 | G134: -0.02288144474 | I134: 68951.5944 | J134: 1.334287167e-05 | L134: 54289.6164 | M134: -0.2126416093

Sheet Bill Impact (hidden)
A2: Schedule 101 Bill Impact
A6: Schedule 101 Present | G6: Schedule 101 Proposed
B7: Basic Charge | C7: Block 1 | D7: Block 2 | E7: Total Bill | G7: Basic Charge | H7: Block 1 | I7: Block 2 | J7: Total Bill | L7: Bill Impact | M7: % Change
B8: ='Rate Design'!D4 -> 8 | C8: ='Rate Design'!D16/100 -> 0.81825 | D8: ='Rate Design'!D17/100 -> 0.91933 | G8: ='Rate Design'!D26 -> 8.92 | H8: ='Rate Design'!D38/100 -> 0.81825 | I8: ='Rate Design'!D39/100 -> 0.91933
A9: 10 | B9: =$B$8 -> 8 | C9: =A9*$C$8 -> 8.1825 | E9: =SUM(B9:D9) -> 16.1825 | G9: =$G$8 -> 8.92 | H9: =A9*$H$8 -> 8.1825 | J9: =SUM(G9:I9) -> 17.1025 | L9: =J9-E9 -> 0.92 | M9: =L9/E9 -> 0.05685153715
A10: =A9+10 -> 20 | B10: =$B$8 -> 8 | C10: 16.365 | E10: =SUM(B10:D10) -> 24.365 | G10: =$G$8 -> 8.92 | H10: =A10*$H$8 -> 16.365 | J10: 25.285 | L10: 0.92 | M10: 0.03775908065
A11: =A10+10 -> 30 | B11: 8 | C11: 24.5475 | E11: 32.5475 | G11: 8.92 | H11: 24.5475 | J11: 33.4675 | L11: 0.92 | M11: 0.02826637991
A12: 40 | B12: 8 | C12: 32.73 | E12: 40.73 | G12: 8.92 | H12: 32.73 | J12: 41.65 | L12: 0.92 | M12: 0.02258777314
A13: 50 | B13: 8 | C13: 40.9125 | E13: 48.9125 | G13: 8.92 | H13: 40.9125 | J13: 49.8325 | L13: 0.92 | M13: 0.01880909788
A14: 60 | B14: 8 | C14: 49.095 | E14: 57.095 | G14: 8.92 | H14: 49.095 | J14: 58.015 | L14: 0.92 | M14: 0.01611349505
A15: 65 | B15: 8 | C15: =ROUND(A15*$C$8,2) -> 53.19 | E15: =SUM(B15:D15) -> 61.19 | G15: 8.92 | H15: =ROUND(A15*$H$8,2) -> 53.19 | J15: =SUM(G15:I15) -> 62.11 | L15: 0.92 | M15: 0.01503513646
A16: =A14+10 -> 70 | B16: 8 | C16: =ROUND(A16*$C$8,2) -> 57.28 | E16: 65.28 | G16: 8.92 | H16: =ROUND(A16*$H$8,2) -> 57.28 | J16: 66.2 | L16: =J16-E16 -> 0.92 | M16: 0.01409313725
A17: 80 | B17: 8 | C17: =70*$C$8 -> 57.2775 | D17: =(A17-70)*$D$8 -> 9.1933 | E17: =SUM(B17:D17) -> 74.4708 | G17: 8.92 | H17: =70*$H$8 -> 57.2775 | I17: =(A17-70)*$I$8 -> 9.1933 | J17: 75.3908 | L17: 0.92 | M17: 0.01235383533
A18: 90 | B18: 8 | C18: =70*$C$8 -> 57.2775 | D18: =(A18-70)*$D$8 -> 18.3866 | E18: 83.6641 | G18: 8.92 | H18: =70*$H$8 -> 57.2775 | I18: =(A18-70)*$I$8 -> 18.3866 | J18: 84.5841 | L18: 0.92 | M18: 0.01099635327
A19: 100 | B19: 8 | C19: 57.2775 | D19: =(A19-70)*$D$8 -> 27.5799 | E19: 92.8574 | G19: 8.92 | H19: 57.2775 | I19: 27.5799 | J19: 93.7774 | L19: 0.92 | M19: 0.009907664871
A20: 110 | B20: 8 | C20: 57.2775 | D20: 36.7732 | E20: 102.0507 | G20: 8.92 | H20: 57.2775 | I20: 36.7732 | J20: 102.9707 | L20: 0.92 | M20: 0.009015126795
A21: 120 | B21: 8 | C21: 57.2775 | D21: 45.9665 | E21: 111.244 | G21: 8.92 | H21: 57.2775 | I21: 45.9665 | J21: 112.164 | L21: 0.92 | M21: 0.00827010895
A22: 130 | B22: 8 | C22: 57.2775 | D22: 55.1598 | E22: 120.4373 | G22: 8.92 | H22: 57.2775 | I22: 55.1598 | J22: 121.3573 | L22: 0.92 | M22: 0.007638829499
A23: 140 | B23: 8 | C23: 57.2775 | D23: 64.3531 | E23: 129.6306 | G23: 8.92 | H23: 57.2775 | I23: 64.3531 | J23: 130.5506 | L23: 0.92 | M23: 0.00709708973
A24: 150 | B24: 8 | C24: 57.2775 | D24: 73.5464 | E24: 138.8239 | G24: 8.92 | H24: 57.2775 | I24: 73.5464 | J24: 139.7439 | L24: 0.92 | M24: 0.006627100953
A25: 160 | B25: 8 | C25: 57.2775 | D25: 82.7397 | E25: 148.0172 | G25: 8.92 | H25: 57.2775 | I25: 82.7397 | J25: 148.9372 | L25: 0.92 | M25: 0.006215493875
A26: 170 | B26: 8 | C26: 57.2775 | D26: 91.933 | E26: 157.2105 | G26: 8.92 | H26: 57.2775 | I26: 91.933 | J26: 158.1305 | L26: 0.92 | M26: 0.005852026423
A27: 180 | B27: 8 | C27: 57.2775 | D27: 101.1263 | E27: 166.4038 | G27: 8.92 | H27: 57.2775 | I27: 101.1263 | J27: 167.3238 | L27: 0.92 | M27: 0.005528719897
A28: 190 | B28: 8 | C28: 57.2775 | D28: 110.3196 | E28: 175.5971 | G28: 8.92 | H28: 57.2775 | I28: 110.3196 | J28: 176.5171 | L28: 0.92 | M28: 0.00523926648
A29: 200 | B29: 8 | C29: 57.2775 | D29: 119.5129 | E29: 184.7904 | G29: 8.92 | H29: 57.2775 | I29: 119.5129 | J29: 185.7104 | L29: 0.92 | M29: 0.004978613608
A30: 210 | B30: 8 | C30: 57.2775 | D30: 128.7062 | E30: 193.9837 | G30: 8.92 | H30: 57.2775 | I30: 128.7062 | J30: 194.9037 | L30: 0.92 | M30: 0.004742666523
A31: 220 | B31: 8 | C31: 57.2775 | D31: 137.8995 | E31: 203.177 | G31: 8.92 | H31: 57.2775 | I31: 137.8995 | J31: 204.097 | L31: 0.92 | M31: 0.004528071583
A32: 230 | B32: 8 | C32: 57.2775 | D32: 147.0928 | E32: 212.3703 | G32: 8.92 | H32: 57.2775 | I32: 147.0928 | J32: 213.2903 | L32: 0.92 | M32: 0.004332055848
A33: 240 | B33: 8 | C33: 57.2775 | D33: 156.2861 | E33: 221.5636 | G33: 8.92 | H33: 57.2775 | I33: 156.2861 | J33: 222.4836 | L33: 0.92 | M33: 0.004152306606
A34: 250 | B34: 8 | C34: 57.2775 | D34: 165.4794 | E34: 230.7569 | G34: 8.92 | H34: 57.2775 | I34: 165.4794 | J34: 231.6769 | L34: 0.92 | M34: 0.003986879699
A35: 260 | B35: 8 | C35: 57.2775 | D35: 174.6727 | E35: 239.9502 | G35: 8.92 | H35: 57.2775 | I35: 174.6727 | J35: 240.8702 | L35: 0.92 | M35: 0.003834128915
A36: 270 | B36: 8 | C36: 57.2775 | D36: 183.866 | E36: 249.1435 | G36: 8.92 | H36: 57.2775 | I36: 183.866 | J36: 250.0635 | L36: 0.92 | M36: 0.003692651022
A37: 280 | B37: 8 | C37: 57.2775 | D37: 193.0593 | E37: 258.3368 | G37: 8.92 | H37: 57.2775 | I37: 193.0593 | J37: 259.2568 | L37: 0.92 | M37: 0.003561242533
A38: 290 | B38: 8 | C38: 57.2775 | D38: 202.2526 | E38: =SUM(B38:D38) -> 267.5301 | G38: 8.92 | H38: 57.2775 | I38: 202.2526 | J38: 268.4501 | L38: 0.92 | M38: 0.003438865384
A39: 300 | B39: 8 | C39: 57.2775 | D39: 211.4459 | E39: 276.7234 | G39: 8.92 | H39: 57.2775 | I39: 211.4459 | J39: 277.6434 | L39: 0.92 | M39: 0.003324619458
A40: 310 | B40: 8 | C40: 57.2775 | D40: =(A40-70)*$D$8 -> 220.6392 | E40: =SUM(B40:D40) -> 285.9167 | G40: 8.92 | H40: 57.2775 | I40: =(A40-70)*$I$8 -> 220.6392 | J40: =SUM(G40:I40) -> 286.8367 | L40: 0.92 | M40: 0.003217720406
A41: 320 | B41: 8 | C41: 57.2775 | D41: 229.8325 | E41: 295.11 | G41: 8.92 | H41: 57.2775 | I41: 229.8325 | J41: 296.03 | L41: 0.92 | M41: 0.003117481617
A42: 330 | B42: 8 | C42: 57.2775 | D42: 239.0258 | E42: 304.3033 | G42: 8.92 | H42: 57.2775 | I42: 239.0258 | J42: 305.2233 | L42: 0.92 | M42: 0.003023299452
A43: 340 | B43: 8 | C43: 57.2775 | D43: 248.2191 | E43: 313.4966 | G43: 8.92 | H43: 57.2775 | I43: 248.2191 | J43: 314.4166 | L43: 0.92 | M43: 0.002934641077
A44: 350 | B44: 8 | C44: 57.2775 | D44: 257.4124 | E44: 322.6899 | G44: 8.92 | H44: 57.2775 | I44: 257.4124 | J44: 323.6099 | L44: 0.92 | M44: 0.002851034383
A45: 360 | B45: 8 | C45: 57.2775 | D45: 266.6057 | E45: 331.8832 | G45: 8.92 | H45: 57.2775 | I45: 266.6057 | J45: 332.8032 | L45: 0.92 | M45: 0.002772059568
A46: 370 | B46: 8 | C46: 57.2775 | D46: 275.799 | E46: 341.0765 | G46: 8.92 | H46: 57.2775 | I46: 275.799 | J46: 341.9965 | L46: 0.92 | M46: 0.002697342092
A47: 380 | B47: 8 | C47: 57.2775 | D47: =(A47-70)*$D$8 -> 284.9923 | E47: =SUM(B47:D47) -> 350.2698 | G47: 8.92 | H47: 57.2775 | I47: 284.9923 | J47: 351.1898 | L47: 0.92 | M47: 0.002626546736
A48: 390 | B48: 8 | C48: 57.2775 | D48: 294.1856 | E48: 359.4631 | G48: 8.92 | H48: 57.2775 | I48: 294.1856 | J48: 360.3831 | L48: 0.92 | M48: 0.002559372575
A49: 400 | B49: 8 | C49: 57.2775 | D49: 303.3789 | E49: 368.6564 | G49: 8.92 | H49: 57.2775 | I49: 303.3789 | J49: 369.5764 | L49: 0.92 | M49: 0.002495548701
A53: Breakeven Analysis (Base Rates - Includes Cost of Gas)
A55: Schedule 101 | G55: Schedule 111
B56: Basic Charge | C56: Block 1 | D56: Block 2 | E56: Total Bill | G56: Minimum Charge | H56: Block 1 | I56: Block 2 | J56: Block 3 | K56: Total Bill | M56: Bill Differential
B57: ='Exh3'!I11 -> 8.92 | C57: ='Rate Design'!D28/100 -> 0.78022 | D57: ='Rate Design'!D29/100 -> 0.8813 | G57: ='Rate Design'!E27 -> 78.5 | H57: ='Rate Design'!E28/100 -> 0.49535 | I57: ='Rate Design'!E29/100 -> 0.72669 | J57: ='Rate Design'!E30/100 -> 0.65685
A58: 10 | B58: =$B$57 -> 8.92 | C58: =A58*$C$57 -> 7.8022 | E58: =SUM(B58:D58) -> 16.7222 | G58: =$G$57 -> 78.5 | H58: =A58*$H$57 -> 4.9535 | K58: =SUM(G58:J58) -> 83.4535 | M58: =K58-E58 -> 66.7313
A59: =A58+10 -> 20 | B59: 8.92 | C59: =A59*$C$57 -> 15.6044 | E59: =SUM(B59:D59) -> 24.5244 | G59: =$G$57 -> 78.5 | H59: =A59*$H$57 -> 9.907 | K59: =SUM(G59:J59) -> 88.407 | M59: 63.8826
A60: =A59+10 -> 30 | B60: 8.92 | C60: 23.4066 | E60: 32.3266 | G60: 78.5 | H60: 14.8605 | K60: 93.3605 | M60: 61.0339
A61: 40 | B61: 8.92 | C61: 31.2088 | E61: 40.1288 | G61: 78.5 | H61: 19.814 | K61: 98.314 | M61: 58.1852
A62: 50 | B62: 8.92 | C62: 39.011 | E62: 47.931 | G62: 78.5 | H62: 24.7675 | K62: 103.2675 | M62: 55.3365
A63: 60 | B63: 8.92 | C63: 46.8132 | E63: 55.7332 | G63: 78.5 | H63: 29.721 | K63: 108.221 | M63: 52.4878
A64: 70 | B64: 8.92 | C64: =A64*$C$57 -> 54.6154 | E64: 63.5354 | G64: 78.5 | H64: 34.6745 | K64: 113.1745 | M64: 49.6391
A65: 80 | B65: 8.92 | C65: =70*$C$57 -> 54.6154 | D65: =(A65-70)*$D$57 -> 8.813 | E65: 72.3484 | G65: 78.5 | H65: 39.628 | K65: 118.128 | M65: 45.7796
A66: 90 | B66: 8.92 | C66: =70*$C$57 -> 54.6154 | D66: =(A66-70)*$D$57 -> 17.626 | E66: 81.1614 | G66: 78.5 | H66: 44.5815 | K66: 123.0815 | M66: 41.9201
A67: 100 | B67: 8.92 | C67: 54.6154 | D67: 26.439 | E67: 89.9744 | G67: 78.5 | H67: 49.535 | K67: 128.035 | M67: 38.0606
A68: 110 | B68: 8.92 | C68: 54.6154 | D68: 35.252 | E68: 98.7874 | G68: 78.5 | H68: 54.4885 | K68: 132.9885 | M68: 34.2011
A69: 120 | B69: 8.92 | C69: 54.6154 | D69: 44.065 | E69: 107.6004 | G69: 78.5 | H69: 59.442 | K69: 137.942 | M69: 30.3416
A70: 130 | B70: 8.92 | C70: 54.6154 | D70: 52.878 | E70: 116.4134 | G70: 78.5 | H70: 64.3955 | K70: 142.8955 | M70: 26.4821
A71: 140 | B71: 8.92 | C71: 54.6154 | D71: 61.691 | E71: 125.2264 | G71: 78.5 | H71: 69.349 | K71: 147.849 | M71: 22.6226
A72: 150 | B72: 8.92 | C72: 54.6154 | D72: 70.504 | E72: 134.0394 | G72: 78.5 | H72: 74.3025 | K72: 152.8025 | M72: 18.7631
A73: 160 | B73: 8.92 | C73: 54.6154 | D73: 79.317 | E73: 142.8524 | G73: 78.5 | H73: 79.256 | K73: 157.756 | M73: 14.9036
A74: 170 | B74: 8.92 | C74: 54.6154 | D74: 88.13 | E74: 151.6654 | G74: 78.5 | H74: 84.2095 | K74: 162.7095 | M74: 11.0441
A75: 180 | B75: 8.92 | C75: 54.6154 | D75: 96.943 | E75: 160.4784 | G75: 78.5 | H75: 89.163 | K75: 167.663 | M75: 7.1846
A76: 190 | B76: 8.92 | C76: 54.6154 | D76: 105.756 | E76: 169.2914 | G76: 78.5 | H76: 94.1165 | K76: 172.6165 | M76: 3.3251
A77: 200 | B77: 8.92 | C77: 54.6154 | D77: 114.569 | E77: 178.1044 | G77: 78.5 | H77: 99.07 | K77: 177.57 | M77: -0.5344 | O77: Differential sb cost of gas between 101 & 111
A78: 210 | B78: 8.92 | C78: 54.6154 | D78: 123.382 | E78: 186.9174 | G78: 78.5 | H78: =200*$H$57 -> 99.07 | I78: =(A78-200)*$I$57 -> 7.2669 | K78: 184.8369 | M78: -2.0805
A79: 220 | B79: 8.92 | C79: 54.6154 | D79: 132.195 | E79: 195.7304 | G79: 78.5 | H79: 99.07 | I79: =(A79-200)*$I$57 -> 14.5338 | K79: 192.1038 | M79: -3.6266
A80: 230 | B80: 8.92 | C80: 54.6154 | D80: 141.008 | E80: 204.5434 | G80: 78.5 | H80: 99.07 | I80: 21.8007 | K80: 199.3707 | M80: -5.1727
A81: 240 | B81: 8.92 | C81: 54.6154 | D81: 149.821 | E81: 213.3564 | G81: 78.5 | H81: 99.07 | I81: 29.0676 | K81: 206.6376 | M81: -6.7188
A82: 250 | B82: 8.92 | C82: 54.6154 | D82: 158.634 | E82: 222.1694 | G82: 78.5 | H82: 99.07 | I82: 36.3345 | K82: 213.9045 | M82: -8.2649
A83: 260 | B83: 8.92 | C83: 54.6154 | D83: 167.447 | E83: 230.9824 | G83: 78.5 | H83: 99.07 | I83: 43.6014 | K83: 221.1714 | M83: -9.811
A84: 270 | B84: 8.92 | C84: 54.6154 | D84: 176.26 | E84: 239.7954 | G84: 78.5 | H84: 99.07 | I84: 50.8683 | K84: 228.4383 | M84: -11.3571
A85: 280 | B85: 8.92 | C85: 54.6154 | D85: 185.073 | E85: 248.6084 | G85: 78.5 | H85: 99.07 | I85: 58.1352 | K85: 235.7052 | M85: -12.9032
A86: 290 | B86: 8.92 | C86: 54.6154 | D86: 193.886 | E86: 257.4214 | G86: 78.5 | H86: 99.07 | I86: 65.4021 | K86: 242.9721 | M86: -14.4493
A87: 300 | B87: 8.92 | C87: 54.6154 | D87: 202.699 | E87: 266.2344 | G87: 78.5 | H87: 99.07 | I87: 72.669 | K87: 250.239 | M87: -15.9954
A88: 310 | B88: 8.92 | C88: 54.6154 | D88: 211.512 | E88: 275.0474 | G88: 78.5 | H88: 99.07 | I88: 79.9359 | K88: 257.5059 | M88: -17.5415
A89: 320 | B89: 8.92 | C89: 54.6154 | D89: 220.325 | E89: 283.8604 | G89: 78.5 | H89: 99.07 | I89: 87.2028 | K89: 264.7728 | M89: -19.0876
A90: 330 | B90: 8.92 | C90: 54.6154 | D90: 229.138 | E90: 292.6734 | G90: 78.5 | H90: 99.07 | I90: 94.4697 | K90: 272.0397 | M90: -20.6337
A91: 340 | B91: 8.92 | C91: 54.6154 | D91: 237.951 | E91: 301.4864 | G91: 78.5 | H91: 99.07 | I91: 101.7366 | K91: 279.3066 | M91: -22.1798
A92: 350 | B92: 8.92 | C92: 54.6154 | D92: 246.764 | E92: 310.2994 | G92: 78.5 | H92: 99.07 | I92: 109.0035 | K92: 286.5735 | M92: -23.7259
A93: 500 | B93: 8.92 | C93: 54.6154 | D93: =(A93-70)*$D$57 -> 378.959 | E93: =SUM(B93:D93) -> 442.4944 | G93: 78.5 | H93: 99.07 | I93: =(A93-200)*$I$57 -> 218.007 | K93: =SUM(G93:J93) -> 395.577 | M93: -46.9174
A96: Breakeven Analysis (Base Rates)
A98: Schedule 111 | H98: Schedule 121
B99: Basic Charge | C99: Block 1 | D99: Block 2 | E99: Block 3 | F99: Total Bill | H99: Minimum Charge | I99: Block 1 | J99: Block 2 | K99: Block 3 | L99: Block 4 | M99: Total Bill | O99: Bill Differential
B100: ='Rate Design'!E37 -> 78.5 | C100: ='Rate Design'!E28/100 -> 0.49535 | D100: ='Rate Design'!E29/100 -> 0.72669 | E100: ='Rate Design'!E40/100 -> 0.69092 | H100: ='Rate Design'!F27 -> 193.48 | I100: ='Rate Design'!F28/100 -> 0.47449 | J100: ='Rate Design'!F29/100 -> 0.71115 | K100: ='Rate Design'!F30/100 -> 0.6408 | L100: ='Rate Design'!F31/100 -> 0.59663
A101: 200 | B101: =$B$100 -> 78.5 | C101: =A101*$C$100 -> 99.07 | F101: =SUM(B101:E101) -> 177.57 | H101: =$H$100 -> 193.48 | I101: =A101*$I$100 -> 94.898 | M101: =SUM(H101:L101) -> 288.378 | O101: =M101-F101 -> 110.808
A102: 500 | B102: =$B$100 -> 78.5 | C102: =$C$101 -> 99.07 | D102: =(A102-200)*$D$100 -> 218.007 | F102: =SUM(B102:E102) -> 395.577 | H102: =$H$100 -> 193.48 | I102: =A102*$I$100 -> 237.245 | M102: =SUM(H102:L102) -> 430.725 | O102: 35.148
A103: 1000 | B103: 78.5 | C103: =$C$101 -> 99.07 | D103: =(A103-200)*$D$100 -> 581.352 | F103: 758.922 | H103: 193.48 | I103: =$I$102 -> 237.245 | J103: =(A103-500)*J100 -> 355.575 | M103: 786.3 | O103: 27.378
A104: 5000 | B104: 78.5 | C104: 99.07 | D104: =$D$103 -> 581.352 | E104: =(A104-1000)*$E$100 -> 2763.68 | F104: 3522.602 | H104: 193.48 | I104: =$I$102 -> 237.245 | J104: =$J$103 -> 355.575 | K104: =(A104-1000)*$K$100 -> 2563.2 | M104: 3349.5 | O104: -173.102
A105: 10000 | B105: 78.5 | C105: 99.07 | D105: =$D$103 -> 581.352 | E105: =(A105-1000)*$E$100 -> 6218.28 | F105: 6977.202 | H105: 193.48 | I105: 237.245 | J105: =$J$103 -> 355.575 | K105: =(A105-1000)*$K$100 -> 5767.2 | M105: 6553.5 | O105: -423.702
A106: 15000 | B106: 78.5 | C106: 99.07 | D106: 581.352 | E106: 9672.88 | F106: 10431.802 | H106: 193.48 | I106: 237.245 | J106: 355.575 | K106: =$K$105 -> 5767.2 | L106: =(A106-10000)*$L$100 -> 2983.15 | M106: 9536.65 | O106: -895.152
A107: 20000 | B107: 78.5 | C107: 99.07 | D107: 581.352 | E107: =(A107-1000)*$E$100 -> 13127.48 | F107: 13886.402 | H107: 193.48 | I107: 237.245 | J107: 355.575 | K107: =$K$105 -> 5767.2 | L107: =(A107-10000)*$L$100 -> 5966.3 | M107: 12519.8 | O107: -1366.602

Sheet Block Usage (hidden)
A1: WASHINGTON NATURAL GAS SYSTEM
C2: July | D2: August | E2: September | F2: October | G2: November | H2: December | I2: January | J2: February | K2: March | L2: April | M2: May | N2: June | O2: Annual Total
A3: Rate Design Program Monthly Results
A4: Block ID 994 | B4: Schedule 101
B5: Block 1 | C5: =2289856+338058 -> 2627914 | D5: =1685830+153167 -> 1838997 | E5: =1748325+172886 -> 1921211 | F5: =2425764+440062 -> 2865826 | G5: =3838030+2758236 -> 6596266 | H5: =4148979+4700019 -> 8848998 | I5: =4227979+5233524 -> 9461503 | J5: =4250537+5275282 -> 9525819 | K5: =4209112+4882989 -> 9092101 | L5: =4123889+4015673 -> 8139562 | M5: 6221393 | N5: =2904457+709593 -> 3614050 | O5: =SUM(C5:N5) -> 70753640
B6: Block 2 | C6: 286903 | D6: 144006 | E6: 224810 | F6: 278742 | G6: 1447215 | H6: 5714564 | I6: 10740840 | J6: 10755014 | K6: 6221729 | L6: 3048323 | M6: 1011294 | N6: 374714 | O6: =SUM(C6:N6) -> 40248154
A7: Therms | B7: Total | C7: =SUM(C5:C6) -> 2914817 | D7: 1983003 | E7: 2146021 | F7: 3144568 | G7: 8043481 | H7: 14563562 | I7: 20202343 | J7: 20280833 | K7: 15313830 | L7: 11187885 | M7: 7232687 | N7: 3988764 | O7: 111001794
B8: Billed Customers | C8: 146524 | D8: 146433 | E8: 147360 | F8: 146875 | G8: 147245 | H8: 147536 | I8: 147902 | J8: 147934 | K8: 147801 | L8: 147781 | M8: 147555 | N8: 147321 | O8: =SUM(C8:N8) -> 1768267
B9: Block 1 Limit | C9: =C8*70 -> 10256680 | D9: =D8*70 -> 10250310 | E9: 10315200 | F9: 10281250 | G9: 10307150 | H9: 10327520 | I9: 10353140 | J9: 10355380 | K9: 10346070 | L9: 10344670 | M9: 10328850 | N9: 10312470 | O9: =SUM(C9:N9) -> 123778690
B10: Revenue Run Total | C10: 2891517 | D10: 1968467 | E10: 2118366 | F10: 3134468 | G10: 8101674 | H10: 14671902 | I10: 20307726 | J10: 20355015 | K10: 15326447 | L10: 11144122 | M10: 7232104 | N10: 3936374 | O10: =SUM(C10:N10) -> 111188182
B11: Difference | C11: =C10-C7 -> -23300 | D11: -14536 | E11: -27655 | F11: -10100 | G11: 58193 | H11: 108340 | I11: 105383 | J11: 74182 | K11: 12617 | L11: -43763 | M11: -583 | N11: -52390 | O11: =SUM(C11:N11) -> 186388 | P11: =O11/O10 -> 0.001676329234
B13: Block 1 | C13: =(C5/C$7)*C$11 -> -21006.60048 | D13: =(D5/D$7)*D$11 -> -13480.39332 | E13: -24757.95447 | F13: -9204.711935 | G13: 47722.68466 | H13: 65828.70614 | I13: 49354.74913 | J13: 34842.96257 | K13: 7490.943697 | L13: -31839.05196 | M13: -501.4833518 | N13: -47468.35849 | O13: =SUM(C13:N13) -> 56981.4922
B14: Block 2 | C14: =(C6/C$7)*C$11 -> -2293.399517 | D14: =(D6/D$7)*D$11 -> -1055.606681 | E14: -2897.045532 | F14: -895.288065 | G14: 10470.31534 | H14: 42511.29386 | I14: 56028.25087 | J14: 39339.03743 | K14: 5126.056303 | L14: -11923.94804 | M14: -81.51664824 | N14: -4921.641506 | O14: =SUM(C14:N14) -> 129406.5078
C15: =SUM(C13:C14) -> -23300 | D15: -14536 | E15: -27655 | F15: -10100 | G15: 58193 | H15: 108340 | I15: 105383 | J15: 74182 | K15: 12617 | L15: -43763 | M15: -583 | N15: -52390 | O15: 186388
B17: Block 1 | C17: =C5+C13 -> 2606907.4 | D17: 1825516.607 | E17: 1896453.046 | F17: 2856621.288 | G17: 6643988.685 | H17: 8914826.706 | I17: 9510857.749 | J17: 9560661.963 | K17: 9099591.944 | L17: 8107722.948 | M17: 6220891.517 | N17: 3566581.642 | O17: =SUM(C17:N17) -> 70810621.49
B18: Block 2 | C18: =C6+C14 -> 284609.6005 | D18: 142950.3933 | E18: 221912.9545 | F18: 277846.7119 | G18: 1457685.315 | H18: 5757075.294 | I18: 10796868.25 | J18: 10794353.04 | K18: 6226855.056 | L18: 3036399.052 | M18: 1011212.483 | N18: 369792.3585 | O18: =SUM(C18:N18) -> 40377560.51
C19: =SUM(C17:C18) -> 2891517 | D19: 1968467 | E19: 2118366 | F19: 3134468 | G19: 8101674 | H19: 14671902 | I19: 20307726 | J19: 20355015 | K19: 15326447 | L19: 11144122 | M19: 7232104 | N19: 3936374 | O19: 111188182
C20: =C19-C10 -> 0 | D20: 0 | E20: 0 | F20: 0 | G20: 0 | H20: 0 | I20: 0 | J20: 0 | K20: 0 | L20: 0 | M20: 0 | N20: 0 | O20: 0
A22: Block ID 112 | B22: Schedule 111/112
B23: Block 1 | C23: 385837 | D23: 328604 | E23: 344979 | F23: 414826 | G23: 484771 | H23: 491754 | I23: 499898 | J23: 497370 | K23: 497803 | L23: 494976 | M23: 484842 | N23: 439745 | O23: =SUM(C23:N23) -> 5365405
B24: Block 2 | C24: 630575 | D24: 484518 | E24: 524497 | F24: 733663 | G24: 1281404 | H24: 1657418 | I24: 1780879 | J24: 1771850 | K24: 1684564 | L24: 1519740 | M24: 1206001 | N24: 813773 | O24: =SUM(C24:N24) -> 14088882
B25: Block 3 | C25: 544238 | D25: 418051 | E25: 432733 | F25: 667237 | G25: 1696849 | H25: 3254601 | I25: 4865771 | J25: 4776248 | K25: 3393296 | L25: 2368373 | M25: 1405487 | N25: 736422 | O25: =SUM(C25:N25) -> 24559306
A26: Therms | B26: Total | C26: =SUM(C23:C25) -> 1560650 | D26: =SUM(D23:D25) -> 1231173 | E26: 1302209 | F26: 1815726 | G26: 3463024 | H26: 5403773 | I26: =SUM(I23:I25) -> 7146548 | J26: =SUM(J23:J25) -> 7045468 | K26: 5575663 | L26: 4383089 | M26: 3096330 | N26: 1989940 | O26: 44013593
B27: Revenue Run Total | C27: 1554169 | D27: 1217415 | E27: 1298886 | F27: 1814340 | G27: 3475374 | H27: 5430995 | I27: 7129379 | J27: 7046659 | K27: 5587113 | L27: 4364404 | M27: 3039370 | N27: 1984763 | O27: =SUM(C27:N27) -> 43942867
C28: =C27-C26 -> -6481 | D28: -13758 | E28: -3323 | F28: -1386 | G28: 12350 | H28: 27222 | I28: -17169 | J28: 1191 | K28: 11450 | L28: -18685 | M28: -56960 | N28: -5177 | O28: =SUM(C28:N28) -> -70726 | P28: =O28/O27 -> -0.001609498989
B30: Block 1 | C30: =(C23/C$26)*C$28 -> -1602.28725 | D30: =(D23/D$26)*D$28 -> -3672.054075 | E30: -880.3235249 | F30: -316.6495584 | G30: 1728.813271 | H30: 2477.255686 | I30: -1200.964264 | J30: 84.07783131 | K30: 1022.272033 | L30: -2110.070446 | M30: -8919.139859 | N30: -1144.034426 | O30: =SUM(C30:N30) -> -14533.10458
B31: Block 2 | C31: =(C24/C$26)*C$28 -> -2618.62466 | D31: =(D24/D$26)*D$28 -> -5414.347654 | E31: -1338.420738 | F31: -560.0277344 | G31: 4569.803559 | H31: 8349.394543 | I31: -4278.416874 | J31: 299.522097 | K31: 3459.365783 | L31: -6478.614032 | M31: -22185.56063 | N31: -2117.100426 | O31: =SUM(C31:N31) -> -28313.02677
B32: Block 3 | C32: =(C25/C$26)*C$28 -> -2260.08809 | D32: =(D25/D$26)*D$28 -> -4671.598271 | E32: -1104.255737 | F32: -509.3227073 | G32: 6051.38317 | H32: 16395.34977 | I32: -11689.61886 | J32: 807.4000716 | K32: 6968.362184 | L32: -10096.31552 | M32: -25855.29951 | N32: -1915.865149 | O32: =SUM(C32:N32) -> -27879.86865
C33: =SUM(C30:C32) -> -6481 | D33: =SUM(D30:D32) -> -13758 | E33: -3323 | F33: -1386 | G33: 12350 | H33: 27222 | I33: -17169 | J33: 1191 | K33: 11450 | L33: -18685 | M33: -56960 | N33: -5177 | O33: =SUM(O30:O32) -> -70726
B35: Block 1 | C35: =C23+C30 -> 384234.7127 | D35: =D23+D30 -> 324931.9459 | E35: 344098.6765 | F35: 414509.3504 | G35: 486499.8133 | H35: 494231.2557 | I35: 498697.0357 | J35: 497454.0778 | K35: 498825.272 | L35: 492865.9296 | M35: 475922.8601 | N35: 438600.9656 | O35: =SUM(C35:N35) -> 5350871.895
B36: Block 2 | C36: =C24+C31 -> 627956.3753 | D36: 479103.6523 | E36: 523158.5793 | F36: 733102.9723 | G36: 1285973.804 | H36: 1665767.395 | I36: 1776600.583 | J36: 1772149.522 | K36: 1688023.366 | L36: 1513261.386 | M36: 1183815.439 | N36: 811655.8996 | O36: =SUM(C36:N36) -> 14060568.97
B37: Block 3 | C37: 541977.9119 | D37: 413379.4017 | E37: 431628.7443 | F37: 666727.6773 | G37: 1702900.383 | H37: 3270996.35 | I37: 4854081.381 | J37: 4777055.4 | K37: 3400264.362 | L37: 2358276.684 | M37: 1379631.7 | N37: 734506.1349 | O37: =SUM(C37:N37) -> 24531426.13
C38: =SUM(C35:C37) -> 1554169 | D38: 1217415 | E38: 1298886 | F38: 1814340 | G38: 3475374 | H38: 5430995 | I38: 7129379 | J38: 7046659 | K38: 5587113 | L38: 4364404 | M38: 3039370 | N38: 1984763 | O38: 43942867
C39: =C38-C27 -> 0 | D39: 0 | E39: 0 | F39: 0 | G39: 0 | H39: 0 | I39: 0 | J39: 0 | K39: 0 | L39: 0 | M39: 0 | N39: 0 | O39: 0

Sheet Big Schedules (hidden)
A1: Washington Gas Billing Determinants by Customer
P2: 1st | Q2: =P3 -> 20000 | R2: =Q3 -> 50000 | S2: =R3 -> 300000 | T2: =S3 -> 500000
A3: ANNUAL USAGE, Sch 146 | N3: 12-mo ended | P3: 20000 | Q3: 50000 | R3: 300000 | S3: 500000 | T3: 99999999
A4: Washington | B4: 2012-07-01 | C4: 2012-08-01 | D4: 2012-09-01 | E4: 2012-10-01 | F4: 2012-11-01 | G4: 2012-12-01 | H4: 2013-01-01 | I4: 2013-02-01 | J4: 2013-03-01 | K4: 2013-04-01 | L4: 2013-05-01 | M4: 2013-06-01 | N4: Total | P4: thms/mo | Q4: thms/mo | R4: thms/mo | S4: thms/mo | T4: thms/mo
B5: 20564 | C5: 573 | D5: 6848 | E5: 22580 | F5: 188950 | G5: 347042 | H5: 470645 | I5: 527900 | J5: 351026 | K5: 272295 | L5: 183435 | M5: 23446 | N5: =SUM(B5:M5) -> 2415304 | P5: =P$3*12-SUMPRODUCT(--($B5:$M5<=P$3),P$3-$B5:$M5) -> 207421 | Q5: =Q$3*12-SUM($P5:P5)-SUMPRODUCT(--($B5:$M5<=Q$3),Q$3-$B5:$M5) -> 216590 | R5: =R$3*12-SUM($P5:Q5)-SUMPRODUCT(--($B5:$M5<=R$3),R$3-$B5:$M5) -> 1494680 | S5: =S$3*12-SUM($P5:R5)-SUMPRODUCT(--($B5:$M5<=S$3),S$3-$B5:$M5) -> 468713 | T5: =T$3*12-SUM($P5:S5)-SUMPRODUCT(--($B5:$M5<=T$3),T$3-$B5:$M5) -> 27900
B6: 25131 | C6: 24359 | D6: 26353 | E6: 23294 | F6: 29175 | G6: 26926 | H6: 26435 | I6: 29483 | J6: 25565 | K6: 25713 | L6: 26414 | M6: 26613 | N6: =SUM(B6:M6) -> 315461 | P6: 240000 | Q6: =Q$3*12-SUM($P6:P6)-SUMPRODUCT(--($B6:$M6<=Q$3),Q$3-$B6:$M6) -> 75461 | R6: =R$3*12-SUM($P6:Q6)-SUMPRODUCT(--($B6:$M6<=R$3),R$3-$B6:$M6) -> 0 | S6: =S$3*12-SUM($P6:R6)-SUMPRODUCT(--($B6:$M6<=S$3),S$3-$B6:$M6) -> 0 | T6: =T$3*12-SUM($P6:S6)-SUMPRODUCT(--($B6:$M6<=T$3),T$3-$B6:$M6) -> 0
B7: 28687 | C7: 32273 | D7: 45398 | E7: 27675 | F7: 42624 | G7: 48836 | H7: 33733 | I7: 50735 | J7: 39818 | K7: 45937 | L7: 33067 | M7: 42330 | N7: 471113 | P7: 240000 | Q7: =Q$3*12-SUM($P7:P7)-SUMPRODUCT(--($B7:$M7<=Q$3),Q$3-$B7:$M7) -> 230378 | R7: =R$3*12-SUM($P7:Q7)-SUMPRODUCT(--($B7:$M7<=R$3),R$3-$B7:$M7) -> 735 | S7: =S$3*12-SUM($P7:R7)-SUMPRODUCT(--($B7:$M7<=S$3),S$3-$B7:$M7) -> 0 | T7: =T$3*12-SUM($P7:S7)-SUMPRODUCT(--($B7:$M7<=T$3),T$3-$B7:$M7) -> 0
B8: 34079 | C8: 57633 | D8: 35917 | E8: 29740 | F8: 35920 | G8: 31209 | H8: 24090 | I8: 39532 | J8: 32771 | K8: 33116 | L8: 34667 | M8: 31156 | N8: 419830 | P8: 240000 | Q8: =Q$3*12-SUM($P8:P8)-SUMPRODUCT(--($B8:$M8<=Q$3),Q$3-$B8:$M8) -> 172197 | R8: =R$3*12-SUM($P8:Q8)-SUMPRODUCT(--($B8:$M8<=R$3),R$3-$B8:$M8) -> 7633 | S8: =S$3*12-SUM($P8:R8)-SUMPRODUCT(--($B8:$M8<=S$3),S$3-$B8:$M8) -> 0 | T8: =T$3*12-SUM($P8:S8)-SUMPRODUCT(--($B8:$M8<=T$3),T$3-$B8:$M8) -> 0
B9: 108951 | C9: 0 | D9: 0 | F9: 6717 | G9: 20259 | H9: 17788 | I9: 30614 | J9: 36063 | K9: 32644 | L9: 74305 | M9: 16747 | N9: 344088 | P9: 161252 | Q9: =Q$3*12-SUM($P9:P9)-SUMPRODUCT(--($B9:$M9<=Q$3),Q$3-$B9:$M9) -> 99580 | R9: =R$3*12-SUM($P9:Q9)-SUMPRODUCT(--($B9:$M9<=R$3),R$3-$B9:$M9) -> 83256 | S9: =S$3*12-SUM($P9:R9)-SUMPRODUCT(--($B9:$M9<=S$3),S$3-$B9:$M9) -> 0 | T9: =T$3*12-SUM($P9:S9)-SUMPRODUCT(--($B9:$M9<=T$3),T$3-$B9:$M9) -> 0
B10: 22163 | C10: 13832 | D10: 15498 | E10: 21585 | F10: 25609 | G10: 20647 | H10: 11565 | I10: 31991 | J10: 29346 | K10: 28397 | L10: 22651 | M10: 22785 | N10: 266069 | P10: 220895 | Q10: =Q$3*12-SUM($P10:P10)-SUMPRODUCT(--($B10:$M10<=Q$3),Q$3-$B10:$M10) -> 45174 | R10: =R$3*12-SUM($P10:Q10)-SUMPRODUCT(--($B10:$M10<=R$3),R$3-$B10:$M10) -> 0 | S10: =S$3*12-SUM($P10:R10)-SUMPRODUCT(--($B10:$M10<=S$3),S$3-$B10:$M10) -> 0 | T10: =T$3*12-SUM($P10:S10)-SUMPRODUCT(--($B10:$M10<=T$3),T$3-$B10:$M10) -> 0
B11: 17185 | C11: 6084 | D11: 5232 | E11: 11128 | F11: 37892 | G11: 54229 | H11: 71400 | I11: 86076 | J11: 61617 | K11: 52938 | L11: 39222 | M11: 20035 | N11: 463038 | P11: 199629 | Q11: =Q$3*12-SUM($P11:P11)-SUMPRODUCT(--($B11:$M11<=Q$3),Q$3-$B11:$M11) -> 187149 | R11: =R$3*12-SUM($P11:Q11)-SUMPRODUCT(--($B11:$M11<=R$3),R$3-$B11:$M11) -> 76260 | S11: =S$3*12-SUM($P11:R11)-SUMPRODUCT(--($B11:$M11<=S$3),S$3-$B11:$M11) -> 0 | T11: =T$3*12-SUM($P11:S11)-SUMPRODUCT(--($B11:$M11<=T$3),T$3-$B11:$M11) -> 0
B12: 10968 | C12: 3275 | D12: 4464 | E12: 9372 | F12: 23630 | G12: 36192 | H12: 48104 | I12: 63853 | J12: 45043 | K12: 37101 | L12: 25694 | M12: 13420 | N12: 321116 | P12: 181499 | Q12: =Q$3*12-SUM($P12:P12)-SUMPRODUCT(--($B12:$M12<=Q$3),Q$3-$B12:$M12) -> 125764 | R12: =R$3*12-SUM($P12:Q12)-SUMPRODUCT(--($B12:$M12<=R$3),R$3-$B12:$M12) -> 13853 | S12: =S$3*12-SUM($P12:R12)-SUMPRODUCT(--($B12:$M12<=S$3),S$3-$B12:$M12) -> 0 | T12: =T$3*12-SUM($P12:S12)-SUMPRODUCT(--($B12:$M12<=T$3),T$3-$B12:$M12) -> 0
B13: 8108 | C13: 2887 | D13: 4065 | E13: 8055 | F13: 20990 | G13: 28692 | H13: 35444 | I13: 38943 | J13: 44017 | K13: 41053 | L13: 32972 | M13: 11554 | N13: 276780 | P13: 174669 | Q13: =Q$3*12-SUM($P13:P13)-SUMPRODUCT(--($B13:$M13<=Q$3),Q$3-$B13:$M13) -> 102111 | R13: =R$3*12-SUM($P13:Q13)-SUMPRODUCT(--($B13:$M13<=R$3),R$3-$B13:$M13) -> 0 | S13: =S$3*12-SUM($P13:R13)-SUMPRODUCT(--($B13:$M13<=S$3),S$3-$B13:$M13) -> 0 | T13: =T$3*12-SUM($P13:S13)-SUMPRODUCT(--($B13:$M13<=T$3),T$3-$B13:$M13) -> 0
B14: 71210 | C14: 62731 | D14: 67381 | E14: 72357 | F14: 88319 | G14: 99425 | H14: 123643 | I14: 145667 | J14: 106276 | K14: 101556 | L14: 90062 | M14: 75455 | N14: 1104082 | P14: 240000 | Q14: =Q$3*12-SUM($P14:P14)-SUMPRODUCT(--($B14:$M14<=Q$3),Q$3-$B14:$M14) -> 360000 | R14: =R$3*12-SUM($P14:Q14)-SUMPRODUCT(--($B14:$M14<=R$3),R$3-$B14:$M14) -> 504082 | S14: =S$3*12-SUM($P14:R14)-SUMPRODUCT(--($B14:$M14<=S$3),S$3-$B14:$M14) -> 0 | T14: =T$3*12-SUM($P14:S14)-SUMPRODUCT(--($B14:$M14<=T$3),T$3-$B14:$M14) -> 0
B15: 21801 | C15: 14051 | D15: 13402 | E15: 18124 | F15: 37130 | G15: 52076 | H15: 60581 | I15: 64620 | J15: 50666 | K15: 46763 | L15: 36371 | M15: 27261 | N15: 442846 | P15: 225577 | Q15: =Q$3*12-SUM($P15:P15)-SUMPRODUCT(--($B15:$M15<=Q$3),Q$3-$B15:$M15) -> 189326 | R15: =R$3*12-SUM($P15:Q15)-SUMPRODUCT(--($B15:$M15<=R$3),R$3-$B15:$M15) -> 27943 | S15: =S$3*12-SUM($P15:R15)-SUMPRODUCT(--($B15:$M15<=S$3),S$3-$B15:$M15) -> 0 | T15: =T$3*12-SUM($P15:S15)-SUMPRODUCT(--($B15:$M15<=T$3),T$3-$B15:$M15) -> 0
B16: 125830 | C16: 91471 | D16: 93395 | E16: 109341 | F16: 185750 | G16: 252094 | H16: 326069 | I16: 387174 | J16: 302341 | K16: 253075 | L16: 194397 | M16: 144586 | N16: 2465523 | P16: 240000 | Q16: =Q$3*12-SUM($P16:P16)-SUMPRODUCT(--($B16:$M16<=Q$3),Q$3-$B16:$M16) -> 360000 | R16: =R$3*12-SUM($P16:Q16)-SUMPRODUCT(--($B16:$M16<=R$3),R$3-$B16:$M16) -> 1749939 | S16: =S$3*12-SUM($P16:R16)-SUMPRODUCT(--($B16:$M16<=S$3),S$3-$B16:$M16) -> 115584 | T16: =T$3*12-SUM($P16:S16)-SUMPRODUCT(--($B16:$M16<=T$3),T$3-$B16:$M16) -> 0
B17: 30967 | C17: 28721 | D17: 31071 | E17: 29171 | F17: 36477 | G17: 38445 | H17: 41951 | I17: 47338 | J17: 35165 | K17: 36112 | L17: 34083 | M17: 36645 | N17: 426146 | P17: 240000 | Q17: =Q$3*12-SUM($P17:P17)-SUMPRODUCT(--($B17:$M17<=Q$3),Q$3-$B17:$M17) -> 186146 | R17: =R$3*12-SUM($P17:Q17)-SUMPRODUCT(--($B17:$M17<=R$3),R$3-$B17:$M17) -> 0 | S17: =S$3*12-SUM($P17:R17)-SUMPRODUCT(--($B17:$M17<=S$3),S$3-$B17:$M17) -> 0 | T17: =T$3*12-SUM($P17:S17)-SUMPRODUCT(--($B17:$M17<=T$3),T$3-$B17:$M17) -> 0
B18: 12775 | C18: 5639 | D18: 6079 | E18: 12533 | F18: 52178 | G18: 74320 | H18: 87455 | I18: 106097 | J18: 80047 | K18: 66150 | L18: 51690 | M18: 15885 | N18: 570848 | P18: 192911 | Q18: =Q$3*12-SUM($P18:P18)-SUMPRODUCT(--($B18:$M18<=Q$3),Q$3-$B18:$M18) -> 210000 | R18: =R$3*12-SUM($P18:Q18)-SUMPRODUCT(--($B18:$M18<=R$3),R$3-$B18:$M18) -> 167937 | S18: =S$3*12-SUM($P18:R18)-SUMPRODUCT(--($B18:$M18<=S$3),S$3-$B18:$M18) -> 0 | T18: =T$3*12-SUM($P18:S18)-SUMPRODUCT(--($B18:$M18<=T$3),T$3-$B18:$M18) -> 0
B19: 417973 | C19: 409302 | D19: 491644 | E19: 461423 | F19: 427804 | G19: 485819 | H19: 604869 | I19: 573657 | J19: 526557 | K19: 589583 | L19: 534731 | M19: 453856 | N19: 5977218 | P19: 240000 | Q19: =Q$3*12-SUM($P19:P19)-SUMPRODUCT(--($B19:$M19<=Q$3),Q$3-$B19:$M19) -> 360000 | R19: =R$3*12-SUM($P19:Q19)-SUMPRODUCT(--($B19:$M19<=R$3),R$3-$B19:$M19) -> 3000000 | S19: =S$3*12-SUM($P19:R19)-SUMPRODUCT(--($B19:$M19<=S$3),S$3-$B19:$M19) -> 2047821 | T19: =T$3*12-SUM($P19:S19)-SUMPRODUCT(--($B19:$M19<=T$3),T$3-$B19:$M19) -> 329397
B20: 34826 | C20: 29632 | D20: 31495 | E20: 31756 | F20: 42622 | G20: 52523 | H20: 63823 | I20: 74075 | J20: 53814 | K20: 51441 | L20: 43919 | M20: 36823 | N20: 546749 | P20: 240000 | Q20: =Q$3*12-SUM($P20:P20)-SUMPRODUCT(--($B20:$M20<=Q$3),Q$3-$B20:$M20) -> 261073 | R20: =R$3*12-SUM($P20:Q20)-SUMPRODUCT(--($B20:$M20<=R$3),R$3-$B20:$M20) -> 45676 | S20: =S$3*12-SUM($P20:R20)-SUMPRODUCT(--($B20:$M20<=S$3),S$3-$B20:$M20) -> 0 | T20: =T$3*12-SUM($P20:S20)-SUMPRODUCT(--($B20:$M20<=T$3),T$3-$B20:$M20) -> 0
B21: 38158 | C21: 35365 | D21: 39841 | E21: 34953 | F21: 44669 | G21: 43663 | H21: 44691 | I21: 59777 | J21: 53496 | K21: 56275 | L21: 49469 | M21: 44676 | N21: 545033 | P21: 240000 | Q21: =Q$3*12-SUM($P21:P21)-SUMPRODUCT(--($B21:$M21<=Q$3),Q$3-$B21:$M21) -> 285485 | R21: =R$3*12-SUM($P21:Q21)-SUMPRODUCT(--($B21:$M21<=R$3),R$3-$B21:$M21) -> 19548 | S21: =S$3*12-SUM($P21:R21)-SUMPRODUCT(--($B21:$M21<=S$3),S$3-$B21:$M21) -> 0 | T21: =T$3*12-SUM($P21:S21)-SUMPRODUCT(--($B21:$M21<=T$3),T$3-$B21:$M21) -> 0
B22: 35091 | C22: 48269 | D22: 72496 | E22: 39615 | F22: 63807 | G22: 21884 | H22: 5 | I22: 6 | J22: 4 | K22: 4 | L22: 10812 | M22: 18945 | N22: 310938 | P22: 149776 | Q22: =Q$3*12-SUM($P22:P22)-SUMPRODUCT(--($B22:$M22<=Q$3),Q$3-$B22:$M22) -> 124859 | R22: =R$3*12-SUM($P22:Q22)-SUMPRODUCT(--($B22:$M22<=R$3),R$3-$B22:$M22) -> 36303 | S22: =S$3*12-SUM($P22:R22)-SUMPRODUCT(--($B22:$M22<=S$3),S$3-$B22:$M22) -> 0 | T22: =T$3*12-SUM($P22:S22)-SUMPRODUCT(--($B22:$M22<=T$3),T$3-$B22:$M22) -> 0
B23: 10779 | C23: 7941 | D23: 44779 | L23: 9194 | M23: 17262 | N23: 89955 | P23: 65176 | Q23: =Q$3*12-SUM($P23:P23)-SUMPRODUCT(--($B23:$M23<=Q$3),Q$3-$B23:$M23) -> 24779 | R23: =R$3*12-SUM($P23:Q23)-SUMPRODUCT(--($B23:$M23<=R$3),R$3-$B23:$M23) -> 0 | S23: =S$3*12-SUM($P23:R23)-SUMPRODUCT(--($B23:$M23<=S$3),S$3-$B23:$M23) -> 0 | T23: =T$3*12-SUM($P23:S23)-SUMPRODUCT(--($B23:$M23<=T$3),T$3-$B23:$M23) -> 0
B24: 2076 | C24: 0 | D24: 0 | E24: 0 | I24: 181443 | K24: 0 | L24: 0 | M24: 0 | N24: 183519 | P24: 22076 | Q24: =Q$3*12-SUM($P24:P24)-SUMPRODUCT(--($B24:$M24<=Q$3),Q$3-$B24:$M24) -> 30000 | R24: =R$3*12-SUM($P24:Q24)-SUMPRODUCT(--($B24:$M24<=R$3),R$3-$B24:$M24) -> 131443 | S24: =S$3*12-SUM($P24:R24)-SUMPRODUCT(--($B24:$M24<=S$3),S$3-$B24:$M24) -> 0 | T24: =T$3*12-SUM($P24:S24)-SUMPRODUCT(--($B24:$M24<=T$3),T$3-$B24:$M24) -> 0
B25: 21273 | C25: 21843 | D25: 21522 | E25: 23661 | F25: 28774 | G25: 31447 | H25: 33921 | I25: 35394 | J25: 29151 | K25: 28797 | L25: 26813 | M25: 24223 | N25: 326819 | P25: 240000 | Q25: =Q$3*12-SUM($P25:P25)-SUMPRODUCT(--($B25:$M25<=Q$3),Q$3-$B25:$M25) -> 86819 | R25: =R$3*12-SUM($P25:Q25)-SUMPRODUCT(--($B25:$M25<=R$3),R$3-$B25:$M25) -> 0 | S25: =S$3*12-SUM($P25:R25)-SUMPRODUCT(--($B25:$M25<=S$3),S$3-$B25:$M25) -> 0 | T25: =T$3*12-SUM($P25:S25)-SUMPRODUCT(--($B25:$M25<=T$3),T$3-$B25:$M25) -> 0
B26: 35633 | C26: 30829 | D26: 31363 | E26: 30686 | F26: 45522 | G26: 52951 | H26: 60058 | I26: 70821 | J26: 56001 | K26: 54430 | L26: 42262 | M26: 33088 | N26: 543644 | P26: 240000 | Q26: =Q$3*12-SUM($P26:P26)-SUMPRODUCT(--($B26:$M26<=Q$3),Q$3-$B26:$M26) -> 259383 | R26: =R$3*12-SUM($P26:Q26)-SUMPRODUCT(--($B26:$M26<=R$3),R$3-$B26:$M26) -> 44261 | S26: =S$3*12-SUM($P26:R26)-SUMPRODUCT(--($B26:$M26<=S$3),S$3-$B26:$M26) -> 0 | T26: =T$3*12-SUM($P26:S26)-SUMPRODUCT(--($B26:$M26<=T$3),T$3-$B26:$M26) -> 0
B27: 1688 | C27: 184 | D27: 31 | E27: 52 | F27: 10893 | G27: 52142 | H27: 73664 | I27: 91846 | J27: 74028 | K27: 59366 | L27: 33883 | M27: 8682 | N27: 406459 | P27: 141530 | Q27: =Q$3*12-SUM($P27:P27)-SUMPRODUCT(--($B27:$M27<=Q$3),Q$3-$B27:$M27) -> 163883 | R27: =R$3*12-SUM($P27:Q27)-SUMPRODUCT(--($B27:$M27<=R$3),R$3-$B27:$M27) -> 101046 | S27: =S$3*12-SUM($P27:R27)-SUMPRODUCT(--($B27:$M27<=S$3),S$3-$B27:$M27) -> 0 | T27: =T$3*12-SUM($P27:S27)-SUMPRODUCT(--($B27:$M27<=T$3),T$3-$B27:$M27) -> 0
B28: 95230 | C28: 87260 | D28: 90819 | E28: 72792 | F28: 90495 | G28: 98362 | H28: 90157 | I28: 97566 | J28: 98632 | K28: 115738 | L28: 107912 | M28: 108985 | N28: 1153948 | P28: 240000 | Q28: =Q$3*12-SUM($P28:P28)-SUMPRODUCT(--($B28:$M28<=Q$3),Q$3-$B28:$M28) -> 360000 | R28: =R$3*12-SUM($P28:Q28)-SUMPRODUCT(--($B28:$M28<=R$3),R$3-$B28:$M28) -> 553948 | S28: =S$3*12-SUM($P28:R28)-SUMPRODUCT(--($B28:$M28<=S$3),S$3-$B28:$M28) -> 0 | T28: =T$3*12-SUM($P28:S28)-SUMPRODUCT(--($B28:$M28<=T$3),T$3-$B28:$M28) -> 0
B29: 10167 | C29: 9347 | D29: 9692 | E29: 8818 | F29: 13094 | G29: 13573 | H29: 16206 | I29: 20205 | J29: 16776 | K29: 17893 | L29: 17486 | M29: 14384 | N29: 167641 | P29: 167436 | Q29: =Q$3*12-SUM($P29:P29)-SUMPRODUCT(--($B29:$M29<=Q$3),Q$3-$B29:$M29) -> 205 | R29: =R$3*12-SUM($P29:Q29)-SUMPRODUCT(--($B29:$M29<=R$3),R$3-$B29:$M29) -> 0 | S29: =S$3*12-SUM($P29:R29)-SUMPRODUCT(--($B29:$M29<=S$3),S$3-$B29:$M29) -> 0 | T29: =T$3*12-SUM($P29:S29)-SUMPRODUCT(--($B29:$M29<=T$3),T$3-$B29:$M29) -> 0
B30: 34539 | C30: 33981 | D30: 34347 | E30: 34625 | F30: 36132 | G30: 32007 | H30: 33509 | I30: 43006 | J30: 38134 | K30: 37423 | L30: 40467 | M30: 37147 | N30: 435317 | P30: 240000 | Q30: =Q$3*12-SUM($P30:P30)-SUMPRODUCT(--($B30:$M30<=Q$3),Q$3-$B30:$M30) -> 195317 | R30: =R$3*12-SUM($P30:Q30)-SUMPRODUCT(--($B30:$M30<=R$3),R$3-$B30:$M30) -> 0 | S30: =S$3*12-SUM($P30:R30)-SUMPRODUCT(--($B30:$M30<=S$3),S$3-$B30:$M30) -> 0 | T30: =T$3*12-SUM($P30:S30)-SUMPRODUCT(--($B30:$M30<=T$3),T$3-$B30:$M30) -> 0
B31: 130572 | C31: 120061 | D31: 126767 | E31: 133034 | F31: 164375 | G31: 189639 | H31: 234794 | I31: 266292 | J31: 199742 | K31: 185120 | L31: 156823 | M31: 136535 | N31: 2043754 | P31: 240000 | Q31: =Q$3*12-SUM($P31:P31)-SUMPRODUCT(--($B31:$M31<=Q$3),Q$3-$B31:$M31) -> 360000 | R31: =R$3*12-SUM($P31:Q31)-SUMPRODUCT(--($B31:$M31<=R$3),R$3-$B31:$M31) -> 1443754 | S31: =S$3*12-SUM($P31:R31)-SUMPRODUCT(--($B31:$M31<=S$3),S$3-$B31:$M31) -> 0 | T31: =T$3*12-SUM($P31:S31)-SUMPRODUCT(--($B31:$M31<=T$3),T$3-$B31:$M31) -> 0
B32: 39869 | C32: 43062 | D32: 70487 | E32: 38548 | F32: 28606 | G32: 6883 | K32: 42 | L32: 8873 | M32: 23006 | N32: 259376 | P32: 135798 | Q32: =Q$3*12-SUM($P32:P32)-SUMPRODUCT(--($B32:$M32<=Q$3),Q$3-$B32:$M32) -> 103091 | R32: =R$3*12-SUM($P32:Q32)-SUMPRODUCT(--($B32:$M32<=R$3),R$3-$B32:$M32) -> 20487 | S32: =S$3*12-SUM($P32:R32)-SUMPRODUCT(--($B32:$M32<=S$3),S$3-$B32:$M32) -> 0 | T32: =T$3*12-SUM($P32:S32)-SUMPRODUCT(--($B32:$M32<=T$3),T$3-$B32:$M32) -> 0
B33: 15480 | C33: 28188 | D33: 42660 | E33: 37602 | F33: 59029 | G33: 30180 | H33: 688 | K33: 0 | L33: 7122 | M33: 14264 | N33: 235213 | P33: 137554 | Q33: =Q$3*12-SUM($P33:P33)-SUMPRODUCT(--($B33:$M33<=Q$3),Q$3-$B33:$M33) -> 88630 | R33: =R$3*12-SUM($P33:Q33)-SUMPRODUCT(--($B33:$M33<=R$3),R$3-$B33:$M33) -> 9029 | S33: =S$3*12-SUM($P33:R33)-SUMPRODUCT(--($B33:$M33<=S$3),S$3-$B33:$M33) -> 0 | T33: =T$3*12-SUM($P33:S33)-SUMPRODUCT(--($B33:$M33<=T$3),T$3-$B33:$M33) -> 0
B34: 49827 | C34: 44726 | D34: 45659 | E34: 39489 | F34: 45464 | G34: 40206 | H34: 40543 | I34: 48108 | J34: 46349 | K34: 49683 | L34: 51394 | M34: 36280 | N34: 537728 | P34: 240000 | Q34: =Q$3*12-SUM($P34:P34)-SUMPRODUCT(--($B34:$M34<=Q$3),Q$3-$B34:$M34) -> 296334 | R34: =R$3*12-SUM($P34:Q34)-SUMPRODUCT(--($B34:$M34<=R$3),R$3-$B34:$M34) -> 1394 | S34: =S$3*12-SUM($P34:R34)-SUMPRODUCT(--($B34:$M34<=S$3),S$3-$B34:$M34) -> 0 | T34: =T$3*12-SUM($P34:S34)-SUMPRODUCT(--($B34:$M34<=T$3),T$3-$B34:$M34) -> 0
B35: 120815 | C35: 116597 | D35: 137370 | E35: 130006 | F35: 157401 | G35: 153991 | H35: 137003 | I35: 180991 | J35: 157689 | K35: 165616 | L35: 163910 | M35: 164627 | N35: 1786016 | P35: 240000 | Q35: =Q$3*12-SUM($P35:P35)-SUMPRODUCT(--($B35:$M35<=Q$3),Q$3-$B35:$M35) -> 360000 | R35: =R$3*12-SUM($P35:Q35)-SUMPRODUCT(--($B35:$M35<=R$3),R$3-$B35:$M35) -> 1186016 | S35: =S$3*12-SUM($P35:R35)-SUMPRODUCT(--($B35:$M35<=S$3),S$3-$B35:$M35) -> 0 | T35: =T$3*12-SUM($P35:S35)-SUMPRODUCT(--($B35:$M35<=T$3),T$3-$B35:$M35) -> 0
B36: 28467 | C36: 21208 | D36: 25402 | E36: 23017 | F36: 48448 | G36: 65802 | H36: 74106 | I36: 95099 | J36: 71335 | K36: 63844 | L36: 51070 | M36: 32642 | N36: 600440 | P36: 240000 | Q36: =Q$3*12-SUM($P36:P36)-SUMPRODUCT(--($B36:$M36<=Q$3),Q$3-$B36:$M36) -> 239184 | R36: =R$3*12-SUM($P36:Q36)-SUMPRODUCT(--($B36:$M36<=R$3),R$3-$B36:$M36) -> 121256 | S36: =S$3*12-SUM($P36:R36)-SUMPRODUCT(--($B36:$M36<=S$3),S$3-$B36:$M36) -> 0 | T36: =T$3*12-SUM($P36:S36)-SUMPRODUCT(--($B36:$M36<=T$3),T$3-$B36:$M36) -> 0
B37: 19740 | C37: 16324 | D37: 16410 | E37: 17441 | F37: 23248 | G37: 28731 | H37: 36509 | I37: 41075 | J37: 32849 | K37: 31760 | L37: 27806 | M37: 20530 | N37: 312423 | P37: 229915 | Q37: =Q$3*12-SUM($P37:P37)-SUMPRODUCT(--($B37:$M37<=Q$3),Q$3-$B37:$M37) -> 82508 | R37: =R$3*12-SUM($P37:Q37)-SUMPRODUCT(--($B37:$M37<=R$3),R$3-$B37:$M37) -> 0 | S37: =S$3*12-SUM($P37:R37)-SUMPRODUCT(--($B37:$M37<=S$3),S$3-$B37:$M37) -> 0 | T37: =T$3*12-SUM($P37:S37)-SUMPRODUCT(--($B37:$M37<=T$3),T$3-$B37:$M37) -> 0
B38: 34307 | C38: 30006 | D38: 29916 | E38: 34064 | F38: 49166 | G38: 56031 | H38: 63016 | I38: 69939 | J38: 51776 | K38: 49584 | L38: 44534 | M38: 37851 | N38: 550190 | P38: 240000 | Q38: =Q$3*12-SUM($P38:P38)-SUMPRODUCT(--($B38:$M38<=Q$3),Q$3-$B38:$M38) -> 269428 | R38: =R$3*12-SUM($P38:Q38)-SUMPRODUCT(--($B38:$M38<=R$3),R$3-$B38:$M38) -> 40762 | S38: =S$3*12-SUM($P38:R38)-SUMPRODUCT(--($B38:$M38<=S$3),S$3-$B38:$M38) -> 0 | T38: =T$3*12-SUM($P38:S38)-SUMPRODUCT(--($B38:$M38<=T$3),T$3-$B38:$M38) -> 0
B39: 18464 | C39: 21067 | D39: 18741 | E39: 18157 | F39: =AVERAGE(G39:M39,B39:E39) -> 15844.54545 | G39: 13982 | H39: 9312 | I39: 10540 | J39: 9968 | K39: 16229 | L39: 17040 | M39: 20790 | N39: 190134.5455 | P39: 188277.5455 | Q39: =Q$3*12-SUM($P39:P39)-SUMPRODUCT(--($B39:$M39<=Q$3),Q$3-$B39:$M39) -> 1857 | R39: =R$3*12-SUM($P39:Q39)-SUMPRODUCT(--($B39:$M39<=R$3),R$3-$B39:$M39) -> 0 | S39: =S$3*12-SUM($P39:R39)-SUMPRODUCT(--($B39:$M39<=S$3),S$3-$B39:$M39) -> 0 | T39: =T$3*12-SUM($P39:S39)-SUMPRODUCT(--($B39:$M39<=T$3),T$3-$B39:$M39) -> 0
B40: 74328 | C40: 72271 | D40: 65547 | E40: 55587 | F40: 62794 | G40: 50397 | H40: 12560 | I40: 29961 | J40: 60817 | K40: 72783 | L40: 65252 | M40: 68985 | N40: 691282 | P40: 232560 | Q40: =Q$3*12-SUM($P40:P40)-SUMPRODUCT(--($B40:$M40<=Q$3),Q$3-$B40:$M40) -> 309961 | R40: =R$3*12-SUM($P40:Q40)-SUMPRODUCT(--($B40:$M40<=R$3),R$3-$B40:$M40) -> 148761 | S40: =S$3*12-SUM($P40:R40)-SUMPRODUCT(--($B40:$M40<=S$3),S$3-$B40:$M40) -> 0 | T40: =T$3*12-SUM($P40:S40)-SUMPRODUCT(--($B40:$M40<=T$3),T$3-$B40:$M40) -> 0
B41: 18613 | C41: 18863 | D41: 17516 | E41: 12329 | F41: 12153 | G41: 8414 | H41: 266 | I41: 771 | J41: 527 | K41: 480 | L41: 11914 | M41: 21812 | N41: 123658 | P41: 121846 | Q41: =Q$3*12-SUM($P41:P41)-SUMPRODUCT(--($B41:$M41<=Q$3),Q$3-$B41:$M41) -> 1812 | R41: =R$3*12-SUM($P41:Q41)-SUMPRODUCT(--($B41:$M41<=R$3),R$3-$B41:$M41) -> 0 | S41: =S$3*12-SUM($P41:R41)-SUMPRODUCT(--($B41:$M41<=S$3),S$3-$B41:$M41) -> 0 | T41: =T$3*12-SUM($P41:S41)-SUMPRODUCT(--($B41:$M41<=T$3),T$3-$B41:$M41) -> 0
B42: 17540 | C42: 14928 | D42: 13541 | E42: 21106 | F42: 36522 | G42: 47262 | H42: 54764 | I42: 68248 | J42: 52042 | K42: 48059 | L42: 38558 | M42: 23839 | N42: 436409 | P42: 226009 | Q42: =Q$3*12-SUM($P42:P42)-SUMPRODUCT(--($B42:$M42<=Q$3),Q$3-$B42:$M42) -> 185346 | R42: =R$3*12-SUM($P42:Q42)-SUMPRODUCT(--($B42:$M42<=R$3),R$3-$B42:$M42) -> 25054 | S42: =S$3*12-SUM($P42:R42)-SUMPRODUCT(--($B42:$M42<=S$3),S$3-$B42:$M42) -> 0 | T42: =T$3*12-SUM($P42:S42)-SUMPRODUCT(--($B42:$M42<=T$3),T$3-$B42:$M42) -> 0
A44: Total WA Sch 146 | B44: =SUM(B5:B43) -> 1843874 | C44: 1604783 | D44: 1833148 | E44: 1693716 | F44: 2318223.545 | G44: 2706281 | H44: 3063367 | I44: 3708843 | J44: 2869448 | K44: 2767000 | L44: 2440274 | M44: 1907150 | N44: =IF(ROUND(SUM(N5:N43),3)<>ROUND(SUM(B44:M44),3),#VALUE!,SUM(B44:M44)) -> 28756107.55 | P44: =SUM(P5:P43) -> 7701806.545 | Q44: =SUM(Q5:Q43) -> 7009830 | R44: =SUM(R5:R43) -> 11055056 | S44: =SUM(S5:S43) -> 2632118 | T44: =SUM(T5:T43) -> 357297
T45: =SUM(P44:T44) -> 28756107.55
A46: Revenue Runs | B46: 1825410 | C46: 1583716 | D46: 1814407 | E46: 1675559 | F46: 2302379 | G46: 2706281 | H46: 3063367 | I46: 3708843 | J46: 2869448 | K46: 2767000 | L46: 2440274 | M46: 1907150 | N46: =SUM(B46:M46) -> 28663834 | P46: 500 | Q46: 1000 | R46: 10000 | S46: 25000 | T46: 99999999 | U46: Schedule 121/122
N47: 0 | P47: 200 | Q47: 1000 | R47: 99999999 | S47: =S$58*12-SUM($P47:R47)-SUMPRODUCT(--($B47:$M47<=S$58),S$58-$B47:$M47) -> -100001199 | T47: =T$58*12-SUM($P47:S47)-SUMPRODUCT(--($B47:$M47<=T$58),T$58-$B47:$M47) -> 0 | U47: Schedule 111/112
B48: 18464 | C48: 21067 | D48: 18741 | E48: 18157 | F48: 15845 | N48: 92274 | P48: =P$58*12-SUMPRODUCT(--($B48:$M48<=P$58),P$58-$B48:$M48) -> 2500 | Q48: =Q$58*12-SUM($P48:P48)-SUMPRODUCT(--($B48:$M48<=Q$58),Q$58-$B48:$M48) -> 2500 | R48: =R$58*12-SUM($P48:Q48)-SUMPRODUCT(--($B48:$M48<=R$58),R$58-$B48:$M48) -> 45000 | S48: =S$58*12-SUM($P48:R48)-SUMPRODUCT(--($B48:$M48<=S$58),S$58-$B48:$M48) -> 42274 | T48: =T$58*12-SUM($P48:S48)-SUMPRODUCT(--($B48:$M48<=T$58),T$58-$B48:$M48) -> 0
N49: 0 | P49: =P$58*12-SUMPRODUCT(--($B49:$M49<=P$58),P$58-$B49:$M49) -> 0 | Q49: =Q$58*12-SUM($P49:P49)-SUMPRODUCT(--($B49:$M49<=Q$58),Q$58-$B49:$M49) -> 0 | R49: =R$58*12-SUM($P49:Q49)-SUMPRODUCT(--($B49:$M49<=R$58),R$58-$B49:$M49) -> 0 | S49: =S$58*12-SUM($P49:R49)-SUMPRODUCT(--($B49:$M49<=S$58),S$58-$B49:$M49) -> 0 | T49: =T$58*12-SUM($P49:S49)-SUMPRODUCT(--($B49:$M49<=T$58),T$58-$B49:$M49) -> 0
N50: 0
N51: 0 | P51: =P$58*12-SUMPRODUCT(--($B51:$M51<=P$58),P$58-$B51:$M51) -> 0 | Q51: =Q$58*12-SUM($P51:P51)-SUMPRODUCT(--($B51:$M51<=Q$58),Q$58-$B51:$M51) -> 0 | R51: =R$58*12-SUM($P51:Q51)-SUMPRODUCT(--($B51:$M51<=R$58),R$58-$B51:$M51) -> 0
N52: =SUM(B52:M52) -> 0 | P52: =P$47*12-SUMPRODUCT(--($B52:$M52<=P$47),P$47-$B52:$M52) -> 0 | Q52: =Q$47*12-SUM($P52:P52)-SUMPRODUCT(--($B52:$M52<=Q$47),Q$47-$B52:$M52) -> 0 | R52: =R$47*12-SUM($P52:Q52)-SUMPRODUCT(--($B52:$M52<=R$47),R$47-$B52:$M52) -> 0
N53: =SUM(B53:M53) -> 0 | P53: =P$47*12-SUMPRODUCT(--($B53:$M53<=P$47),P$47-$B53:$M53) -> 0 | Q53: =Q$47*12-SUM($P53:P53)-SUMPRODUCT(--($B53:$M53<=Q$47),Q$47-$B53:$M53) -> 0 | R53: =R$47*12-SUM($P53:Q53)-SUMPRODUCT(--($B53:$M53<=R$47),R$47-$B53:$M53) -> 0
N54: 0
A55: Total Sch 146 | B55: =SUM(B46:B54) -> 1843874 | C55: =SUM(C46:C54) -> 1604783 | D55: =SUM(D46:D54) -> 1833148 | E55: 1693716 | F55: 2318224 | G55: 2706281 | H55: 3063367 | I55: 3708843 | J55: 2869448 | K55: 2767000 | L55: 2440274 | M55: 1907150 | N55: =SUM(N46:N54) -> 28756108 | P55: =SUM(P48:P51) -> 2500 | Q55: =SUM(Q48:Q51) -> 2500 | R55: =SUM(R48:R51) -> 45000 | S55: 42274 | T55: 0 | U55: =SUM(P55:T55) -> 92274
B56: =B44-B55 -> 0 | C56: 0 | D56: =D44-D55 -> 0 | E56: 0 | F56: -0.4545454546 | G56: 0 | H56: 0 | I56: 0 | J56: 0 | K56: 0 | L56: 0 | M56: 0 | N56: -0.4545454532 | P56: =SUM(P52:P53) -> 0 | Q56: =SUM(Q52:Q53) -> 0 | R56: =SUM(R52:R53) -> 0
P57: 1st | Q57: =P58 -> 500 | R57: =Q58 -> 1000 | S57: =R58 -> 10000 | T57: =S58 -> 25000
A58: ANNUAL USAGE, Sch 121/122 | P58: 500 | Q58: 1000 | R58: 10000 | S58: 25000 | T58: 99999999
A59: Washington | B59: =B4 -> 2012-07-01 | C59: =C4 -> 2012-08-01 | D59: 2012-09-01 | E59: 2012-10-01 | F59: 2012-11-01 | G59: 2012-12-01 | H59: 2013-01-01 | I59: 2013-02-01 | J59: 2013-03-01 | K59: 2013-04-01 | L59: 2013-05-01 | M59: 2013-06-01 | N59: Total | P59: thms/mo | Q59: thms/mo | R59: thms/mo | S59: thms/mo | T59: thms/mo
B60: 22105 | C60: 17214 | D60: 14943 | E60: 21450 | F60: 30474 | G60: 52239 | H60: 52448 | I60: 70474 | J60: 51019 | K60: 45672 | L60: 40536 | M60: 25146 | N60: =SUM(B60:M60) -> 443720 | P60: =P$58*12-SUMPRODUCT(--($B60:$M60<=P$58),P$58-$B60:$M60) -> 6000 | Q60: =Q$58*12-SUM($P60:P60)-SUMPRODUCT(--($B60:$M60<=Q$58),Q$58-$B60:$M60) -> 6000 | R60: =R$58*12-SUM($P60:Q60)-SUMPRODUCT(--($B60:$M60<=R$58),R$58-$B60:$M60) -> 108000 | S60: =S$58*12-SUM($P60:R60)-SUMPRODUCT(--($B60:$M60<=S$58),S$58-$B60:$M60) -> 155712 | T60: =T$58*12-SUM($P60:S60)-SUMPRODUCT(--($B60:$M60<=T$58),T$58-$B60:$M60) -> 168008
B61: 6365 | C61: 5465 | D61: 5084 | E61: 5960 | F61: 6806 | G61: 8457 | H61: 9392 | I61: 6285 | J61: 12033 | K61: 7587 | L61: 6786 | M61: 6773 | N61: 86993 | P61: 6000 | Q61: =Q$58*12-SUM($P61:P61)-SUMPRODUCT(--($B61:$M61<=Q$58),Q$58-$B61:$M61) -> 6000 | R61: =R$58*12-SUM($P61:Q61)-SUMPRODUCT(--($B61:$M61<=R$58),R$58-$B61:$M61) -> 72960 | S61: =S$58*12-SUM($P61:R61)-SUMPRODUCT(--($B61:$M61<=S$58),S$58-$B61:$M61) -> 2033 | T61: =T$58*12-SUM($P61:S61)-SUMPRODUCT(--($B61:$M61<=T$58),T$58-$B61:$M61) -> 0
B62: 27305 | C62: 31744 | D62: 26920 | E62: 31126 | F62: 56275 | G62: 68637 | H62: 99436 | I62: 70585 | J62: 58894 | K62: 51079 | L62: 33574 | M62: 29017 | N62: 584592 | P62: 6000 | Q62: =Q$58*12-SUM($P62:P62)-SUMPRODUCT(--($B62:$M62<=Q$58),Q$58-$B62:$M62) -> 6000 | R62: =R$58*12-SUM($P62:Q62)-SUMPRODUCT(--($B62:$M62<=R$58),R$58-$B62:$M62) -> 108000 | S62: =S$58*12-SUM($P62:R62)-SUMPRODUCT(--($B62:$M62<=S$58),S$58-$B62:$M62) -> 180000 | T62: =T$58*12-SUM($P62:S62)-SUMPRODUCT(--($B62:$M62<=T$58),T$58-$B62:$M62) -> 284592
B63: 12063 | C63: 11164 | D63: 12467 | E63: 15247 | F63: 14361 | G63: 18108 | H63: 23617 | I63: 18377 | J63: 17475 | K63: 13745 | L63: 13416 | M63: 13578 | N63: 183618 | P63: 6000 | Q63: =Q$58*12-SUM($P63:P63)-SUMPRODUCT(--($B63:$M63<=Q$58),Q$58-$B63:$M63) -> 6000 | R63: =R$58*12-SUM($P63:Q63)-SUMPRODUCT(--($B63:$M63<=R$58),R$58-$B63:$M63) -> 108000 | S63: =S$58*12-SUM($P63:R63)-SUMPRODUCT(--($B63:$M63<=S$58),S$58-$B63:$M63) -> 63618 | T63: =T$58*12-SUM($P63:S63)-SUMPRODUCT(--($B63:$M63<=T$58),T$58-$B63:$M63) -> 0
B64: 10835 | C64: 9403 | D64: 9955 | E64: 11383 | F64: 15450 | G64: 20350 | H64: 23635 | I64: 20824 | J64: 18722 | K64: 15935 | L64: 14593 | M64: 12073 | N64: 183158 | P64: 6000 | Q64: =Q$58*12-SUM($P64:P64)-SUMPRODUCT(--($B64:$M64<=Q$58),Q$58-$B64:$M64) -> 6000 | R64: =R$58*12-SUM($P64:Q64)-SUMPRODUCT(--($B64:$M64<=R$58),R$58-$B64:$M64) -> 107358 | S64: =S$58*12-SUM($P64:R64)-SUMPRODUCT(--($B64:$M64<=S$58),S$58-$B64:$M64) -> 63800 | T64: =T$58*12-SUM($P64:S64)-SUMPRODUCT(--($B64:$M64<=T$58),T$58-$B64:$M64) -> 0
B65: 10650 | C65: 11100 | D65: 12605 | E65: 10723 | F65: 8615 | G65: 9750 | H65: 11829 | I65: 12474 | J65: 11542 | K65: 10643 | L65: 9198 | M65: 11005 | N65: 130134 | P65: 6000 | Q65: =Q$58*12-SUM($P65:P65)-SUMPRODUCT(--($B65:$M65<=Q$58),Q$58-$B65:$M65) -> 6000 | R65: =R$58*12-SUM($P65:Q65)-SUMPRODUCT(--($B65:$M65<=R$58),R$58-$B65:$M65) -> 105563 | S65: =S$58*12-SUM($P65:R65)-SUMPRODUCT(--($B65:$M65<=S$58),S$58-$B65:$M65) -> 12571 | T65: =T$58*12-SUM($P65:S65)-SUMPRODUCT(--($B65:$M65<=T$58),T$58-$B65:$M65) -> 0
B66: 4174 | C66: 3128 | D66: 3674 | E66: 5066 | F66: 6596 | G66: 10261 | H66: 10432 | I66: 12081 | J66: 8912 | K66: 7812 | L66: 6794 | M66: 5323 | N66: 84253 | P66: 6000 | Q66: =Q$58*12-SUM($P66:P66)-SUMPRODUCT(--($B66:$M66<=Q$58),Q$58-$B66:$M66) -> 6000 | R66: =R$58*12-SUM($P66:Q66)-SUMPRODUCT(--($B66:$M66<=R$58),R$58-$B66:$M66) -> 69479 | S66: =S$58*12-SUM($P66:R66)-SUMPRODUCT(--($B66:$M66<=S$58),S$58-$B66:$M66) -> 2774 | T66: =T$58*12-SUM($P66:S66)-SUMPRODUCT(--($B66:$M66<=T$58),T$58-$B66:$M66) -> 0
B67: 11611 | C67: 10872 | D67: 12464 | E67: 11326 | F67: 17384 | G67: 11162 | H67: 11215 | I67: 18537 | J67: 24634 | K67: 20246 | L67: 19098 | M67: 12343 | N67: 180892 | P67: 6000 | Q67: =Q$58*12-SUM($P67:P67)-SUMPRODUCT(--($B67:$M67<=Q$58),Q$58-$B67:$M67) -> 6000 | R67: =R$58*12-SUM($P67:Q67)-SUMPRODUCT(--($B67:$M67<=R$58),R$58-$B67:$M67) -> 108000 | S67: =S$58*12-SUM($P67:R67)-SUMPRODUCT(--($B67:$M67<=S$58),S$58-$B67:$M67) -> 60892 | T67: =T$58*12-SUM($P67:S67)-SUMPRODUCT(--($B67:$M67<=T$58),T$58-$B67:$M67) -> 0
B68: 35375 | C68: 37878 | D68: 35918 | E68: 39878 | F68: 38181 | G68: 52091 | H68: 45011 | I68: 56936 | J68: 47276 | K68: 43337 | L68: 43798 | M68: 41864 | N68: 517543 | P68: 6000 | Q68: =Q$58*12-SUM($P68:P68)-SUMPRODUCT(--($B68:$M68<=Q$58),Q$58-$B68:$M68) -> 6000 | R68: =R$58*12-SUM($P68:Q68)-SUMPRODUCT(--($B68:$M68<=R$58),R$58-$B68:$M68) -> 108000 | S68: =S$58*12-SUM($P68:R68)-SUMPRODUCT(--($B68:$M68<=S$58),S$58-$B68:$M68) -> 180000 | T68: =T$58*12-SUM($P68:S68)-SUMPRODUCT(--($B68:$M68<=T$58),T$58-$B68:$M68) -> 217543
B69: 10316 | C69: 8787 | D69: 9178 | E69: 11661 | F69: 15664 | G69: 9007 | H69: 32863 | I69: 24745 | J69: 23814 | K69: 27386 | L69: 29696 | M69: 25233 | N69: 228350 | P69: 6000 | Q69: =Q$58*12-SUM($P69:P69)-SUMPRODUCT(--($B69:$M69<=Q$58),Q$58-$B69:$M69) -> 6000 | R69: =R$58*12-SUM($P69:Q69)-SUMPRODUCT(--($B69:$M69<=R$58),R$58-$B69:$M69) -> 104972 | S69: =S$58*12-SUM($P69:R69)-SUMPRODUCT(--($B69:$M69<=S$58),S$58-$B69:$M69) -> 96200 | T69: =T$58*12-SUM($P69:S69)-SUMPRODUCT(--($B69:$M69<=T$58),T$58-$B69:$M69) -> 15178
B70: 9076 | C70: 4151 | D70: 4692 | E70: 306 | F70: 4062 | G70: 5381 | H70: 7420 | I70: 9291 | J70: 7741 | K70: 7930 | L70: 7884 | M70: 8054 | N70: 75988 | P70: 5806 | Q70: =Q$58*12-SUM($P70:P70)-SUMPRODUCT(--($B70:$M70<=Q$58),Q$58-$B70:$M70) -> 5500 | R70: =R$58*12-SUM($P70:Q70)-SUMPRODUCT(--($B70:$M70<=R$58),R$58-$B70:$M70) -> 64682 | S70: =S$58*12-SUM($P70:R70)-SUMPRODUCT(--($B70:$M70<=S$58),S$58-$B70:$M70) -> 0 | T70: =T$58*12-SUM($P70:S70)-SUMPRODUCT(--($B70:$M70<=T$58),T$58-$B70:$M70) -> 0
B71: 8416 | C71: 6964 | D71: 7422 | E71: 8159 | F71: 9653 | G71: 15021 | H71: 17077 | I71: 15107 | J71: 12886 | K71: 12492 | L71: 12013 | M71: 8087 | N71: 133297 | P71: 6000 | Q71: =Q$58*12-SUM($P71:P71)-SUMPRODUCT(--($B71:$M71<=Q$58),Q$58-$B71:$M71) -> 6000 | R71: =R$58*12-SUM($P71:Q71)-SUMPRODUCT(--($B71:$M71<=R$58),R$58-$B71:$M71) -> 96701 | S71: =S$58*12-SUM($P71:R71)-SUMPRODUCT(--($B71:$M71<=S$58),S$58-$B71:$M71) -> 24596 | T71: =T$58*12-SUM($P71:S71)-SUMPRODUCT(--($B71:$M71<=T$58),T$58-$B71:$M71) -> 0
B72: 9093 | C72: 6464 | D72: 8453 | E72: 8709 | F72: 11672 | G72: 14493 | H72: 17663 | I72: 20386 | J72: 16514 | K72: 14906 | L72: 13157 | M72: 9552 | N72: 151062 | P72: 6000 | Q72: =Q$58*12-SUM($P72:P72)-SUMPRODUCT(--($B72:$M72<=Q$58),Q$58-$B72:$M72) -> 6000 | R72: =R$58*12-SUM($P72:Q72)-SUMPRODUCT(--($B72:$M72<=R$58),R$58-$B72:$M72) -> 100271 | S72: =S$58*12-SUM($P72:R72)-SUMPRODUCT(--($B72:$M72<=S$58),S$58-$B72:$M72) -> 38791 | T72: =T$58*12-SUM($P72:S72)-SUMPRODUCT(--($B72:$M72<=T$58),T$58-$B72:$M72) -> 0
B73: 9896 | C73: 10211 | D73: 8902 | E73: 13275 | F73: 11031 | G73: 17940 | H73: 20852 | I73: 25998 | J73: 19214 | K73: 16126 | L73: 14914 | M73: 10451 | N73: 178810 | P73: 6000 | Q73: =Q$58*12-SUM($P73:P73)-SUMPRODUCT(--($B73:$M73<=Q$58),Q$58-$B73:$M73) -> 6000 | R73: =R$58*12-SUM($P73:Q73)-SUMPRODUCT(--($B73:$M73<=R$58),R$58-$B73:$M73) -> 106798 | S73: =S$58*12-SUM($P73:R73)-SUMPRODUCT(--($B73:$M73<=S$58),S$58-$B73:$M73) -> 59014 | T73: =T$58*12-SUM($P73:S73)-SUMPRODUCT(--($B73:$M73<=T$58),T$58-$B73:$M73) -> 998
B74: 13932 | C74: 10229 | D74: 10665 | E74: 8157 | F74: 22406 | G74: 43430 | H74: 47347 | I74: 67662 | J74: 48192 | K74: 37560 | L74: 29189 | M74: 17448 | N74: 356217 | P74: 6000 | Q74: =Q$58*12-SUM($P74:P74)-SUMPRODUCT(--($B74:$M74<=Q$58),Q$58-$B74:$M74) -> 6000 | R74: =R$58*12-SUM($P74:Q74)-SUMPRODUCT(--($B74:$M74<=R$58),R$58-$B74:$M74) -> 106157 | S74: =S$58*12-SUM($P74:R74)-SUMPRODUCT(--($B74:$M74<=S$58),S$58-$B74:$M74) -> 114680 | T74: =T$58*12-SUM($P74:S74)-SUMPRODUCT(--($B74:$M74<=T$58),T$58-$B74:$M74) -> 123380
B75: 7060 | C75: 6632 | D75: 9966 | E75: 12734 | F75: 17565 | G75: 14776 | H75: 18363 | I75: 13965 | J75: 12728 | K75: 6870 | L75: 10443 | M75: 9773 | N75: 140875 | P75: 6000 | Q75: =Q$58*12-SUM($P75:P75)-SUMPRODUCT(--($B75:$M75<=Q$58),Q$58-$B75:$M75) -> 6000 | R75: =R$58*12-SUM($P75:Q75)-SUMPRODUCT(--($B75:$M75<=R$58),R$58-$B75:$M75) -> 98301 | S75: =S$58*12-SUM($P75:R75)-SUMPRODUCT(--($B75:$M75<=S$58),S$58-$B75:$M75) -> 30574 | T75: =T$58*12-SUM($P75:S75)-SUMPRODUCT(--($B75:$M75<=T$58),T$58-$B75:$M75) -> 0
B76: 5176 | C76: 7040 | D76: 8814 | E76: 10103 | F76: 8620 | G76: 8498 | H76: 7059 | I76: 9541 | J76: 8443 | K76: 7662 | L76: 6127 | M76: 3597 | N76: 90680 | P76: 6000 | Q76: =Q$58*12-SUM($P76:P76)-SUMPRODUCT(--($B76:$M76<=Q$58),Q$58-$B76:$M76) -> 6000 | R76: =R$58*12-SUM($P76:Q76)-SUMPRODUCT(--($B76:$M76<=R$58),R$58-$B76:$M76) -> 78577 | S76: =S$58*12-SUM($P76:R76)-SUMPRODUCT(--($B76:$M76<=S$58),S$58-$B76:$M76) -> 103 | T76: =T$58*12-SUM($P76:S76)-SUMPRODUCT(--($B76:$M76<=T$58),T$58-$B76:$M76) -> 0
B77: 6378 | C77: 5222 | D77: 6692 | E77: 7361 | F77: 9984 | G77: 14754 | H77: 15778 | I77: 14502 | J77: 13383 | K77: 10377 | L77: 9934 | M77: 8185 | N77: 122550 | P77: 6000 | Q77: =Q$58*12-SUM($P77:P77)-SUMPRODUCT(--($B77:$M77<=Q$58),Q$58-$B77:$M77) -> 6000 | R77: =R$58*12-SUM($P77:Q77)-SUMPRODUCT(--($B77:$M77<=R$58),R$58-$B77:$M77) -> 91756 | S77: =S$58*12-SUM($P77:R77)-SUMPRODUCT(--($B77:$M77<=S$58),S$58-$B77:$M77) -> 18794 | T77: =T$58*12-SUM($P77:S77)-SUMPRODUCT(--($B77:$M77<=T$58),T$58-$B77:$M77) -> 0
B78: 11082 | C78: 12206 | D78: 11165 | E78: 11361 | F78: 12607 | G78: 18163 | H78: 19065 | I78: 15741 | J78: 13293 | K78: 11375 | L78: 11041 | M78: 11889 | N78: 158988 | P78: 6000 | Q78: =Q$58*12-SUM($P78:P78)-SUMPRODUCT(--($B78:$M78<=Q$58),Q$58-$B78:$M78) -> 6000 | R78: =R$58*12-SUM($P78:Q78)-SUMPRODUCT(--($B78:$M78<=R$58),R$58-$B78:$M78) -> 108000 | S78: =S$58*12-SUM($P78:R78)-SUMPRODUCT(--($B78:$M78<=S$58),S$58-$B78:$M78) -> 38988 | T78: =T$58*12-SUM($P78:S78)-SUMPRODUCT(--($B78:$M78<=T$58),T$58-$B78:$M78) -> 0
B79: 22655 | C79: 19862 | D79: 20212 | E79: 21517 | F79: 21485 | G79: 24031 | H79: 24517 | I79: 22410 | J79: 20405 | K79: 18712 | L79: 21343 | M79: 19849 | N79: 256998 | P79: 6000 | Q79: =Q$58*12-SUM($P79:P79)-SUMPRODUCT(--($B79:$M79<=Q$58),Q$58-$B79:$M79) -> 6000 | R79: =R$58*12-SUM($P79:Q79)-SUMPRODUCT(--($B79:$M79<=R$58),R$58-$B79:$M79) -> 108000 | S79: =S$58*12-SUM($P79:R79)-SUMPRODUCT(--($B79:$M79<=S$58),S$58-$B79:$M79) -> 136998 | T79: =T$58*12-SUM($P79:S79)-SUMPRODUCT(--($B79:$M79<=T$58),T$58-$B79:$M79) -> 0
B80: 13136 | C80: 10836 | D80: 14373 | E80: 17431 | F80: 21207 | G80: 24010 | H80: 33300 | I80: 24094 | J80: 20748 | K80: 21382 | L80: 16711 | M80: 17745 | N80: 234973 | P80: 6000 | Q80: =Q$58*12-SUM($P80:P80)-SUMPRODUCT(--($B80:$M80<=Q$58),Q$58-$B80:$M80) -> 6000 | R80: =R$58*12-SUM($P80:Q80)-SUMPRODUCT(--($B80:$M80<=R$58),R$58-$B80:$M80) -> 108000 | S80: =S$58*12-SUM($P80:R80)-SUMPRODUCT(--($B80:$M80<=S$58),S$58-$B80:$M80) -> 106673 | T80: =T$58*12-SUM($P80:S80)-SUMPRODUCT(--($B80:$M80<=T$58),T$58-$B80:$M80) -> 8300
B81: 11501 | C81: 9469 | D81: 8819 | E81: 12602 | F81: 13664 | G81: 16318 | H81: 16921 | I81: 18362 | J81: 16022 | K81: 14830 | L81: 14622 | M81: 12644 | N81: 165774 | P81: 6000 | Q81: =Q$58*12-SUM($P81:P81)-SUMPRODUCT(--($B81:$M81<=Q$58),Q$58-$B81:$M81) -> 6000 | R81: =R$58*12-SUM($P81:Q81)-SUMPRODUCT(--($B81:$M81<=R$58),R$58-$B81:$M81) -> 106288 | S81: =S$58*12-SUM($P81:R81)-SUMPRODUCT(--($B81:$M81<=S$58),S$58-$B81:$M81) -> 47486 | T81: =T$58*12-SUM($P81:S81)-SUMPRODUCT(--($B81:$M81<=T$58),T$58-$B81:$M81) -> 0
B82: 14454 | C82: 10492 | D82: 12177 | E82: 13676 | F82: 12024 | G82: 15874 | H82: 16627 | I82: 14779 | J82: 15573 | K82: 13922 | L82: 13941 | M82: 13055 | N82: 166594 | P82: 6000 | Q82: =Q$58*12-SUM($P82:P82)-SUMPRODUCT(--($B82:$M82<=Q$58),Q$58-$B82:$M82) -> 6000 | R82: =R$58*12-SUM($P82:Q82)-SUMPRODUCT(--($B82:$M82<=R$58),R$58-$B82:$M82) -> 108000 | S82: =S$58*12-SUM($P82:R82)-SUMPRODUCT(--($B82:$M82<=S$58),S$58-$B82:$M82) -> 46594 | T82: =T$58*12-SUM($P82:S82)-SUMPRODUCT(--($B82:$M82<=T$58),T$58-$B82:$M82) -> 0
B83: 10636 | C83: 9364 | D83: 10164 | E83: 11411 | F83: 14424 | G83: 15403 | H83: 19425 | I83: 16193 | J83: 16127 | K83: 13125 | L83: 13020 | M83: 13400 | N83: 162692 | P83: 6000 | Q83: =Q$58*12-SUM($P83:P83)-SUMPRODUCT(--($B83:$M83<=Q$58),Q$58-$B83:$M83) -> 6000 | R83: =R$58*12-SUM($P83:Q83)-SUMPRODUCT(--($B83:$M83<=R$58),R$58-$B83:$M83) -> 107364 | S83: =S$58*12-SUM($P83:R83)-SUMPRODUCT(--($B83:$M83<=S$58),S$58-$B83:$M83) -> 43328 | T83: =T$58*12-SUM($P83:S83)-SUMPRODUCT(--($B83:$M83<=T$58),T$58-$B83:$M83) -> 0
B84: 7197 | C84: 6684 | D84: 5531 | E84: 6420 | F84: 8419 | G84: 10406 | H84: 11661 | I84: 14427 | J84: 13549 | K84: 12484 | L84: 9289 | M84: 8639 | N84: 114706 | P84: 6000 | Q84: =Q$58*12-SUM($P84:P84)-SUMPRODUCT(--($B84:$M84<=Q$58),Q$58-$B84:$M84) -> 6000 | R84: =R$58*12-SUM($P84:Q84)-SUMPRODUCT(--($B84:$M84<=R$58),R$58-$B84:$M84) -> 90179 | S84: =S$58*12-SUM($P84:R84)-SUMPRODUCT(--($B84:$M84<=S$58),S$58-$B84:$M84) -> 12527 | T84: =T$58*12-SUM($P84:S84)-SUMPRODUCT(--($B84:$M84<=T$58),T$58-$B84:$M84) -> 0
B85: 7513 | C85: 5791 | D85: 7941 | E85: 8503 | F85: 10214 | G85: 15229 | H85: 15972 | I85: 13055 | J85: 11607 | K85: 9964 | L85: 8783 | M85: 8921 | N85: 123493 | P85: 6000 | Q85: =Q$58*12-SUM($P85:P85)-SUMPRODUCT(--($B85:$M85<=Q$58),Q$58-$B85:$M85) -> 6000 | R85: =R$58*12-SUM($P85:Q85)-SUMPRODUCT(--($B85:$M85<=R$58),R$58-$B85:$M85) -> 95416 | S85: =S$58*12-SUM($P85:R85)-SUMPRODUCT(--($B85:$M85<=S$58),S$58-$B85:$M85) -> 16077 | T85: =T$58*12-SUM($P85:S85)-SUMPRODUCT(--($B85:$M85<=T$58),T$58-$B85:$M85) -> 0
B86: 14005 | C86: 9353 | D86: 8247 | E86: 15346 | F86: 16053 | G86: 13059 | H86: 15505 | I86: 15396 | J86: 18850 | K86: 18426 | L86: 7825 | M86: 4476 | N86: 156541 | P86: 6000 | Q86: =Q$58*12-SUM($P86:P86)-SUMPRODUCT(--($B86:$M86<=Q$58),Q$58-$B86:$M86) -> 6000 | R86: =R$58*12-SUM($P86:Q86)-SUMPRODUCT(--($B86:$M86<=R$58),R$58-$B86:$M86) -> 97901 | S86: =S$58*12-SUM($P86:R86)-SUMPRODUCT(--($B86:$M86<=S$58),S$58-$B86:$M86) -> 46640 | T86: =T$58*12-SUM($P86:S86)-SUMPRODUCT(--($B86:$M86<=T$58),T$58-$B86:$M86) -> 0
B87: 11733 | C87: 6640 | D87: 6736 | E87: 9222 | F87: 14883 | G87: 24061 | H87: 26667 | I87: 33036 | J87: 25623 | K87: 23549 | L87: 19801 | M87: 14366 | N87: 216317 | P87: 6000 | Q87: =Q$58*12-SUM($P87:P87)-SUMPRODUCT(--($B87:$M87<=Q$58),Q$58-$B87:$M87) -> 6000 | R87: =R$58*12-SUM($P87:Q87)-SUMPRODUCT(--($B87:$M87<=R$58),R$58-$B87:$M87) -> 100598 | S87: =S$58*12-SUM($P87:R87)-SUMPRODUCT(--($B87:$M87<=S$58),S$58-$B87:$M87) -> 93393 | T87: =T$58*12-SUM($P87:S87)-SUMPRODUCT(--($B87:$M87<=T$58),T$58-$B87:$M87) -> 10326
N88: =SUM(B88:M88) -> 0 | P88: 0 | Q88: =Q$58*12-SUM($P88:P88)-SUMPRODUCT(--($B88:$M88<=Q$58),Q$58-$B88:$M88) -> 0 | R88: =R$58*12-SUM($P88:Q88)-SUMPRODUCT(--($B88:$M88<=R$58),R$58-$B88:$M88) -> 0 | S88: =S$58*12-SUM($P88:R88)-SUMPRODUCT(--($B88:$M88<=S$58),S$58-$B88:$M88) -> 0 | T88: =T$58*12-SUM($P88:S88)-SUMPRODUCT(--($B88:$M88<=T$58),T$58-$B88:$M88) -> 0
A89: Total WA Sch 121/122 | B89: =SUM(B60:B87) -> 343738 | C89: =SUM(C60:C88) -> 304365 | D89: =SUM(D60:D88) -> 314179 | E89: =SUM(E60:E88) -> 360113 | F89: =SUM(F60:F88) -> 449779 | G89: =SUM(G60:G88) -> 570909 | H89: =SUM(H60:H88) -> 671097 | I89: 675263 | J89: 585219 | K89: 515134 | L89: 457526 | M89: 382486 | N89: =IF(ROUND(SUM(N60:N88),3)<>ROUND(SUM(B89:M89),3),#VALUE!,SUM(B89:M89)) -> 5629808 | P89: =SUM(P60:P88) -> 167806 | Q89: =SUM(Q60:Q88) -> 167500 | R89: =SUM(R60:R88) -> 2773321 | S89: =SUM(S60:S88) -> 1692856 | T89: =SUM(T60:T88) -> 828325
T90: =SUM(P89:T89) -> 5629808
A91: Revenue Runs | B91: 363466 | C91: 347598 | D91: 338923 | E91: 384095 | F91: 490002 | G91: 549654 | H91: 679551 | I91: 647435 | J91: 625848 | K91: 494888 | L91: 477772 | M91: 382486 | N91: =SUM(B91:M91) -> 5781718
B92: 11611 | C92: -11611 | G92: 15874 | H92: -15874 | I92: 18537 | J92: -18537 | K92: 20246 | L92: -20246 | N92: =SUM(B92:M92) -> 0
B93: -40415 | C93: -35773 | D93: -29436 | E93: -24288 | F93: -44285 | G93: 0 | N93: =SUM(B93:M93) -> -174197
B94: 9076 | C94: 4151 | D94: 4692 | E94: 306 | F94: 4062 | G94: 5381 | H94: 7420 | I94: 9291 | J94: -22092 | N94: 22287
A95: Total WA Sch 121/122 | B95: =SUM(B91:B94) -> 343738 | C95: 304365 | D95: 314179 | E95: 360113 | F95: 449779 | G95: 570909 | H95: 671097 | I95: 675263 | J95: 585219 | K95: 515134 | L95: 457526 | M95: 382486 | N95: =IF(ROUND(SUM(N91:N94),3)<>ROUND(SUM(B95:M95),3),#VALUE!,SUM(B95:M95)) -> 5629808
B96: =B89-B95 -> 0 | C96: 0 | D96: 0 | E96: 0 | F96: 0 | G96: 0 | H96: 0 | I96: 0 | J96: 0 | K96: 0 | L96: 0 | M96: 0 | N96: 0
P97: 1st | Q97: =P98 -> 10000 | R97: =Q98 -> 25000 | S97: =R98 -> 50000
A98: ANNUAL USAGE, Sch 131/132 | B98: =B96-B97 -> 0 | N98: 12-mo ended | P98: 10000 | Q98: 25000 | R98: 50000 | S98: 99999999
A99: Washington | B99: =B4 -> 2012-07-01 | C99: =C4 -> 2012-08-01 | D99: 2012-09-01 | E99: 2012-10-01 | F99: 2012-11-01 | G99: 2012-12-01 | H99: 2013-01-01 | I99: 2013-02-01 | J99: 2013-03-01 | K99: 2013-04-01 | L99: 2013-05-01 | M99: 2013-06-01 | N99: Total | P99: thms/mo | Q99: thms/mo | R99: thms/mo | S99: thms/mo
B100: 34430 | C100: 25552 | D100: 21285 | E100: 30272 | F100: 42234 | G100: 71957 | H100: 73310 | I100: 95998 | J100: 69787 | K100: 63637 | L100: 55507 | M100: 36012 | N100: =SUM(B100:M100) -> 619981 | P100: =P$98*12-SUMPRODUCT(--($B100:$M100<=P$98),P$98-$B100:$M100) -> 120000 | Q100: =Q$98*12-SUM($P100:P100)-SUMPRODUCT(--($B100:$M100<=Q$98),Q$98-$B100:$M100) -> 176285 | R100: =R$98*12-SUM($P100:Q100)-SUMPRODUCT(--($B100:$M100<=R$98),R$98-$B100:$M100) -> 193500 | S100: =S$98*12-SUM($P100:R100)-SUMPRODUCT(--($B100:$M100<=S$98),S$98-$B100:$M100) -> 130196
B101: 40415 | C101: 35773 | D101: 29436 | E101: 24288 | F101: 44285 | G101: 53427 | H101: 77926 | I101: 76053 | J101: 65467 | K101: 62779 | L101: 52085 | M101: 41523 | N101: =SUM(B101:M101) -> 603457 | P101: =P$98*12-SUMPRODUCT(--($B101:$M101<=P$98),P$98-$B101:$M101) -> 120000 | Q101: =Q$98*12-SUM($P101:P101)-SUMPRODUCT(--($B101:$M101<=Q$98),Q$98-$B101:$M101) -> 179288 | R101: =R$98*12-SUM($P101:Q101)-SUMPRODUCT(--($B101:$M101<=R$98),R$98-$B101:$M101) -> 216432 | S101: =S$98*12-SUM($P101:R101)-SUMPRODUCT(--($B101:$M101<=S$98),S$98-$B101:$M101) -> 87737
B103: =SUM(B100:B102) -> 74845 | C103: =SUM(C100:C102) -> 61325 | D103: 50721 | E103: 54560 | F103: 86519 | G103: 125384 | H103: 151236 | I103: 172051 | J103: 135254 | K103: 126416 | L103: 107592 | M103: 77535 | N103: =IF(ROUND(SUM(N100:N102),3)<>ROUND(SUM(B103:M103),3),#VALUE!,SUM(B103:M103)) -> 1223438 | P103: =SUM(P100:P102) -> 240000 | Q103: =SUM(Q100:Q102) -> 355573 | R103: =SUM(R100:R102) -> 409932 | S103: =SUM(S100:S102) -> 217933
A105: Revenue Runs | B105: 34430 | C105: 25552 | D105: 21285 | E105: 30272 | F105: 42234 | G105: 125384 | H105: 151236 | I105: 172051 | J105: 135254 | K105: 126416 | L105: 107592 | M105: 77535 | N105: =SUM(B105:M105) -> 1049241
B106: 40415 | C106: 35773 | D106: 29436 | E106: 24288 | F106: 44285 | N106: =SUM(B106:M106) -> 174197
A107: Total WA Sch 132 | B107: =SUM(B105:B106) -> 74845 | C107: =SUM(C105:C106) -> 61325 | D107: 50721 | E107: 54560 | F107: 86519 | G107: 125384 | H107: 151236 | I107: 172051 | J107: 135254 | K107: 126416 | L107: 107592 | M107: 77535 | N107: 1223438 | S107: =SUM(P103:S103) -> 1223438
B108: =B103-B107 -> 0 | C108: =C103-C107 -> 0 | D108: 0 | E108: 0 | F108: 0 | G108: 0 | H108: 0 | I108: 0 | J108: 0 | K108: 0 | L108: 0 | M108: 0 | N108: 0
A109: ANNUAL USAGE, Sch 148 | N109: 12-mo ended
A110: Washington | B110: =B4 -> 2012-07-01 | C110: =C4 -> 2012-08-01 | D110: 2012-09-01 | E110: 2012-10-01 | F110: 2012-11-01 | G110: 2012-12-01 | H110: 2013-01-01 | I110: 2013-02-01 | J110: 2013-03-01 | K110: 2013-04-01 | L110: 2013-05-01 | M110: 2013-06-01 | N110: Total
B111: 1578439 | C111: 1552719 | D111: 1484085 | E111: 1582704 | F111: 1718926 | G111: 1873129 | H111: 1961506 | I111: 2055851 | J111: 1813271 | K111: 1848292 | L111: 1623567 | M111: 1587550 | N111: =SUM(B111:M111) -> 20680039
B112: 604820 | C112: 552599 | D112: 603110 | E112: 582204 | F112: 670047 | G112: 612293 | H112: 511946 | I112: 658325 | J112: 593217 | K112: 637147 | L112: 613161 | M112: 399383 | N112: =SUM(B112:M112) -> 7038252
B113: 135821 | C113: 138840 | D113: 143493 | E113: 134321 | F113: 148692 | G113: 155207 | H113: 138546 | I113: 144620 | J113: 135284 | K113: 147220 | L113: 151860 | M113: 158521 | N113: =SUM(B113:M113) -> 1732425
B114: 500194 | C114: 498752 | D114: 472809 | E114: 505564 | F114: 550743 | G114: 549394 | H114: 524689 | I114: 542847 | J114: 483906 | K114: 519170 | L114: 488011 | M114: 493343 | N114: =SUM(B114:M114) -> 6129422
B115: 509391 | C115: 383455 | D115: 384902 | E115: 484937 | F115: 785472 | G115: 975436 | H115: 1305323 | I115: 1433339 | J115: 1092394 | K115: 1024001 | L115: 883189 | M115: 622626 | N115: =SUM(B115:M115) -> 9884465
A117: Total WA Sch 148 | B117: =SUM(B111:B116) -> 3328665 | C117: 3126365 | D117: 3088399 | E117: 3289730 | F117: 3873880 | G117: 4165459 | H117: 4442010 | I117: 4834982 | J117: 4118072 | K117: 4175830 | L117: 3759788 | M117: 3261423 | N117: =IF(ROUND(SUM(N111:N116),3)<>ROUND(SUM(B117:M117),3),#VALUE!,SUM(B117:M117)) -> 45464603
A119: Revenue Runs | B119: 3328665 | C119: 3126365 | D119: 3088399 | E119: 3289730 | F119: 3873880 | G119: 4165459 | H119: 4442010 | I119: 4834982 | J119: 4118072 | K119: 4175830 | L119: 3759788 | M119: 3261423 | N119: =SUM(B119:M119) -> 45464603
B120: =B117-B119 -> 0 | C120: =C117-C119 -> 0 | D120: 0 | E120: 0 | F120: 0 | G120: 0 | H120: 0 | I120: 0 | J120: 0 | K120: 0 | L120: 0 | M120: 0 | N120: 0
A122: ANNUAL USAGE, Sch 147 | N122: 12-mo ended
A123: Washington | B123: =B4 -> 2012-07-01 | C123: =C4 -> 2012-08-01 | D123: 2012-09-01 | E123: 2012-10-01 | F123: 2012-11-01 | G123: 2012-12-01 | H123: 2013-01-01 | I123: 2013-02-01 | J123: 2013-03-01 | K123: 2013-04-01 | L123: 2013-05-01 | M123: 2013-06-01 | N123: Total
B124: 40614 | C124: 182 | D124: 66591 | E124: 36258 | F124: 66637 | G124: 5706 | H124: 23665 | I124: 131647 | J124: 117 | K124: 110341 | L124: 31625 | M124: 79801 | N124: =SUM(B124:M124) -> 593184
B125: 0 | C125: 9007 | D125: 15793 | E125: 6822 | F125: 22976 | G125: 8929 | H125: 545 | I125: 37560 | J125: 5889 | K125: 20006 | L125: 15601 | M125: 4427 | N125: =SUM(B125:M125) -> 147555
A127: Total WA Sch 147 | B127: =SUM(B124:B126) -> 40614 | C127: 9189 | D127: =SUM(D124:D126) -> 82384 | E127: 43080 | F127: 89613 | G127: 14635 | H127: 24210 | I127: 169207 | J127: 6006 | K127: 130347 | L127: 47226 | M127: 84228 | N127: =IF(ROUND(SUM(N124:N126),3)<>ROUND(SUM(B127:M127),3),#VALUE!,SUM(B127:M127)) -> 740739
A129: Revenue Runs | B129: 40614 | C129: 9189 | D129: 82384 | E129: 43080 | F129: 89613 | G129: 14635 | H129: 24210 | I129: 169207 | J129: 6006 | K129: 130347 | L129: 47226 | M129: 84228 | N129: =SUM(B129:M129) -> 740739
B130: =B127-B129 -> 0 | C130: 0 | D130: 0 | E130: 0 | F130: 0 | G130: 0 | H130: 0 | I130: 0 | J130: 0 | K130: 0 | L130: 0 | M130: 0 | N130: 0
A132: Sch 147 Revenue from Rev. Runs | B132: 849 | C132: 192 | D132: 1723 | E132: 901 | F132: 1874 | G132: 306 | H132: 506 | I132: 3538 | J132: 126 | K132: 2726 | L132: 988 | M132: 1761 | N132: =SUM(B132:M132) -> 15490
A133: check | B133: =B127*0.02091 -> 849.23874 | C133: =C127*0.02091 -> 192.14199 | D133: 1722.64944 | E133: 900.8028 | F133: 1873.80783 | G133: 306.01785 | H133: 506.2311 | I133: 3538.11837 | J133: 125.58546 | K133: 2725.55577 | L133: =L127*0.02091 -> 987.49566 | M133: 1761.20748 | N133: =SUM(B133:M133) -> 15488.85249

Sheet Rev Runs CY (hidden)
A5: Gas Revenue Meters Report by Location Twelve Months Ended for Report Date : '06/30/2013'
A7: State Cde:WA
C9: Meters
B10: Period | C10: 201207 | D10: 201208 | E10: 201209 | F10: 201210 | G10: 201211 | H10: 201212 | I10: 201301 | J10: 201302 | K10: 201303 | L10: 201304 | M10: 201305 | N10: 201306 | O10: 12 Month Average
A11: Rate Schedule Num
A12: 101 | C12: 146524 | D12: 146433 | E12: 147360 | F12: 146875 | G12: 147245 | H12: 147536 | I12: 147902 | J12: 147934 | K12: 147801 | L12: 147781 | M12: 147555 | N12: 147321 | O12: 147355.5833
A13: 111 | C13: 2471 | D13: 2452 | E13: 2460 | F13: 2476 | G13: 2479 | H13: 2486 | I13: 2493 | J13: 2504 | K13: 2511 | L13: 2498 | M13: 2491 | N13: 2476 | O13: 2483.083333
A14: 112 | C14: 0 | D14: 0 | E14: 0 | F14: 0 | G14: 0 | H14: 0 | O14: 0
A15: 121 | C15: 24 | D15: 26 | E15: 25 | F15: 25 | G15: 25 | H15: 24 | I15: 27 | J15: 24 | K15: 27 | L15: 25 | M15: 27 | N15: 26 | O15: 25.41666667
A16: 122 | C16: 3 | D16: 3 | E16: 3 | F16: 3 | G16: 3 | H16: 2 | I16: 2 | J16: 2 | K16: 2 | L16: 2 | M16: 2 | N16: 2 | O16: 2.416666667
A17: 132 | C17: 1 | D17: 1 | E17: 1 | F17: 1 | G17: 1 | H17: 2 | I17: 2 | J17: 2 | K17: 2 | L17: 2 | M17: 2 | N17: 2 | O17: 1.583333333
A18: 146 | C18: 40 | D18: 40 | E18: 43 | F18: 40 | G18: 42 | H18: 52 | I18: 47 | J18: 40 | K18: 44 | L18: 39 | M18: 42 | N18: 45 | O18: 42.83333333
A19: 146I | C19: 0 | D19: 0 | E19: 0 | F19: 0 | G19: 0 | H19: 0 | O19: 0
A20: 147 | C20: 1 | D20: 2 | E20: 6 | F20: 4 | G20: 3 | H20: 3 | I20: 3 | J20: 3 | K20: 3 | L20: 3 | M20: 3 | N20: 3 | O20: 3.083333333
A21: 148 | C21: 5 | D21: 7 | E21: 5 | F21: 6 | G21: 5 | H21: 8 | I21: 5 | J21: 6 | K21: 5 | L21: 6 | M21: 5 | N21: 5 | O21: 5.666666667
A22: 158 | C22: 0 | D22: 0 | E22: 0 | F22: 0 | G22: 0 | H22: 0 | I22: 0 | J22: 0 | K22: 0 | L22: 0 | M22: 0 | N22: 0 | O22: 0
A23: 158A | C23: 0 | D23: 0 | E23: 0 | F23: 0 | G23: 0 | H23: 0 | I23: 0 | J23: 0 | K23: 0 | L23: 0 | M23: 0 | N23: 0 | O23: 0
A24: 199 | C24: 0 | D24: 0 | E24: 0 | F24: 0 | G24: 0 | H24: 0 | I24: 0 | J24: 0 | K24: 0 | L24: 0 | M24: 0 | N24: 0 | O24: 0
A25: 410 | G25: 0 | H25: 0 | O25: 0
A26: 460 | G26: 0 | H26: 0 | O26: 0
A27: Total for WA | C27: 149069 | D27: 148964 | E27: 149903 | F27: 149430 | G27: 149803 | H27: 150113 | I27: 150481 | J27: 150515 | K27: 150395 | L27: 150356 | M27: 150127 | N27: 149880
A28: Total | C28: 149069 | D28: 148964 | E28: 149903 | F28: 149430 | G28: 149803 | H28: 150113 | I28: 150481 | J28: 150515 | K28: 150395 | L28: 150356 | M28: 150127 | N28: 149880
A33: State Code:WA
C35: Usage
B36: Period | C36: 201207 | D36: 201208 | E36: 201209 | F36: 201210 | G36: 201211 | H36: 201212 | I36: 201301 | J36: 201302 | K36: 201303 | L36: 201304 | M36: 201305 | N36: 201306 | O36: 12 Month Total
A37: Rate Schedule Num
A38: 101 | C38: 2891517 | D38: 1968467 | E38: 2118366 | F38: 3134468 | G38: 8101674 | H38: 14671902 | I38: 20307726 | J38: 20355015 | K38: 15326447 | L38: 11144122 | M38: 7232104 | N38: 3936374 | O38: 111188182
A39: 111 | C39: 1554169 | D39: 1217415 | E39: 1298886 | F39: 1814340 | G39: 3475374 | H39: 5430995 | I39: 7129379 | J39: 7046659 | K39: 5587113 | L39: 4364404 | M39: 3039370 | N39: 1984763 | O39: 43942867
A40: 112 | C40: 0 | D40: 0 | E40: 0 | F40: 0 | G40: 0 | H40: 0 | O40: 0
A41: 121 | C41: 287810 | D41: 283775 | E41: 280171 | F41: 320926 | G41: 394036 | H41: 473405 | I41: 593803 | J41: 552867 | K41: 554081 | L41: 427834 | M41: 420525 | N41: 339595 | O41: 4928828
A42: 122 | C42: 75656 | D42: 63823 | E42: 58752 | F42: 63169 | G42: 95966 | H42: 76249 | I42: 85748 | J42: 94568 | K42: 71767 | L42: 67054 | M42: 57247 | N42: 42891 | O42: 852890
A43: 132 | C43: 34430 | D43: 25552 | E43: 21285 | F43: 30272 | G43: 42234 | H43: 125384 | I43: 151236 | J43: 172051 | K43: 135254 | L43: 126416 | M43: 107592 | N43: 77535 | O43: 1049241
A44: 146 | C44: 1825410 | D44: 1583716 | E44: 1814407 | F44: 1675559 | G44: 2302379 | H44: 2706281 | I44: 3063367 | J44: 3708843 | K44: 2869448 | L44: 2767000 | M44: 2440274 | N44: 1907150 | O44: 28663834
A45: 146I | C45: 0 | D45: 0 | E45: 0 | F45: 0 | G45: 0 | H45: 0 | O45: 0
A46: 147 | C46: 40614 | D46: 9189 | E46: 82384 | F46: 43080 | G46: 89613 | H46: 14635 | I46: 24210 | J46: 169207 | K46: 6006 | L46: 130347 | M46: 47226 | N46: 84228 | O46: 740739
A47: 148 | C47: 3328665 | D47: 3126365 | E47: 3088399 | F47: 3289730 | G47: 3873880 | H47: 4165459 | I47: 4442010 | J47: 4834982 | K47: 4118072 | L47: 4175830 | M47: 3759788 | N47: 3261423 | O47: 45464603
A48: 158 | C48: 0 | D48: 0 | E48: 0 | F48: 0 | G48: 0 | H48: 0 | I48: 0 | J48: 0 | K48: 0 | L48: 0 | M48: 0 | N48: 0 | O48: 0
A49: 158A | C49: 0 | D49: 0 | E49: 0 | F49: 0 | G49: 0 | H49: 0 | I49: 0 | J49: 0 | K49: 0 | L49: 0 | M49: 0 | N49: 0 | O49: 0
A50: 199 | C50: 0 | D50: 0 | E50: 0 | F50: 0 | G50: 0 | H50: 0 | I50: 0 | J50: 0 | K50: 0 | L50: 0 | M50: 0 | N50: 0 | O50: 0
A51: 410 | G51: 17 | H51: -17 | O51: 0
A52: 460 | G52: 0 | H52: 0 | O52: 0
A53: Total for WA | C53: 10038271 | D53: 8278302 | E53: 8762650 | F53: 10371544 | G53: 18375173 | H53: 27664293 | I53: 35797479 | J53: 36934192 | K53: 28668188 | L53: 23203007 | M53: 17104126 | N53: 11633959 | O53: 236831184
A54: Total | C54: 10038271 | D54: 8278302 | E54: 8762650 | F54: 10371544 | G54: 18375173 | H54: 27664293 | I54: 35797479 | J54: 36934192 | K54: 28668188 | L54: 23203007 | M54: 17104126 | N54: 11633959 | O54: 236831184
